Workbook

Sheet Cat. Res (hidden)
C1: Aplica? | G1: Tipo | I1: Sujeto Obligado | J1: Clave | K1: Categoría
A2: 1 | C2: SI | G2: Observación | I2: Administración Portuaria Integral de Campeche, S.A. de C.V. | J2: 001 | K2: PODER EJECUTIVO
A3: 0.5 | C3: NO | G3: Recomendación | I3: Comisión de Conciliación y Arbitraje Médico del Estado de Campeche | J3: 002 | K3: PODER EJECUTIVO
A4: 0 | G4: Requerimiento | I4: Consejería Jurídica | J4: 003 | K4: PODER EJECUTIVO
A5: Justificado | I5: Fiscalía General del Estado de Campeche | J5: 004 | K5: PODER EJECUTIVO
I6: Oficina del Gobernador | J6: 005 | K6: PODER EJECUTIVO
E7: Mauricio Preve Grajales | I7: Secretaría de Administración e Innovación Gubernamental | J7: 006 | K7: PODER EJECUTIVO
E8: Ricardo Manuel Chi Gallardo | I8: Instituto de Seguridad y Servicios Sociales de los Trabajadores del Estado de Campeche | J8: 007 | K8: PODER EJECUTIVO
E9: Erick Raymundo Zabala Pérez | I9: Secretaría de Cultura | J9: 008 | K9: PODER EJECUTIVO
E10: Francisco Javier Pech Rosado | I10: Secretaría de Desarrollo Económico | J10: 009 | K10: PODER EJECUTIVO
I11: Instituto Estatal para el Fomento de las Actividades Artesanales en Campeche | J11: 010 | K11: PODER EJECUTIVO
I12: Secretaría de Desarrollo Energético Sustentable | J12: 011 | K12: PODER EJECUTIVO
E13: Gabriela Ortiz Gutierrez | I13: Agencia de Energía del Estado de Campeche | J13: 012 | K13: PODER EJECUTIVO
I14: Secretaría de Desarrollo Rural | J14: 013 | K14: PODER EJECUTIVO
I15: Secretaría de Desarrollo Social y Humano | J15: 014 | K15: PODER EJECUTIVO
I16: Comisión Estatal de Desarrollo de Suelo y Vivienda | J16: 015 | K16: PODER EJECUTIVO
I17: Instituto del Deporte del Estado de Campeche | J17: 016 | K17: PODER EJECUTIVO
I18: Instituto de Desarrollo y Formación Social del Estado de Campeche | J18: 017 | K18: PODER EJECUTIVO
I19: Instituto de la Juventud del Estado de Campeche | J19: 018 | K19: PODER EJECUTIVO
I20: Instituto de la Mujer del Estado de Campeche | J20: 019 | K20: PODER EJECUTIVO
I21: Secretaría de Desarrollo Urbano, Obras Públicas e Infraestructura | J21: 020 | K21: PODER EJECUTIVO
I22: Comisión de Agua Potable y Alcantarillado del Estado de Campeche | J22: 021 | K22: PODER EJECUTIVO
I23: Secretaría de Educación | J23: 022 | K23: PODER EJECUTIVO
I24: Colegio de Bachilleres del Estado de Campeche | J24: 023 | K24: PODER EJECUTIVO
I25: Colegio de Educación Profesional Técnica del Estado de Campeche | J25: 024 | K25: PODER EJECUTIVO
I26: Consejo Estatal de Investigación Científica y Desarrollo Tecnológico | J26: 025 | K26: PODER EJECUTIVO
I27: Colegio de Estudios Científicos y Tecnológicos del Estado de Campeche | J27: 026 | K27: PODER EJECUTIVO
I28: Instituto de Capacitación para el Trabajo del Estado de Campeche | J28: 027 | K28: PODER EJECUTIVO
I29: Instituto Estatal de la Educación para los Adultos | J29: 028 | K29: PODER EJECUTIVO
I30: Instituto de la Infraestructura Física Educativa del Estado de Campeche | J30: 029 | K30: PODER EJECUTIVO
I31: Instituto Tecnológico Superior de Calkiní | J31: 030 | K31: PODER EJECUTIVO
I32: Instituto Tecnológico Superior de Champotón | J32: 031 | K32: PODER EJECUTIVO
I33: Instituto Tecnológico Superior de Escárcega | J33: 032 | K33: PODER EJECUTIVO
I34: Instituto Tecnológico Superior de Hopelchén | J34: 033 | K34: PODER EJECUTIVO
I35: Universidad Tecnológica de Calakmul | J35: 034 | K35: PODER EJECUTIVO
I36: Universidad Tecnológica de Campeche | J36: 035 | K36: PODER EJECUTIVO
I37: Universidad Tecnológica de Candelaria | J37: 036 | K37: PODER EJECUTIVO
I38: Fundación Pablo García | J38: 037 | K38: PODER EJECUTIVO
I39: Secretaría de Finanzas | J39: 038 | K39: PODER EJECUTIVO
I40: Secretaría de la Contraloría | J40: 039 | K40: PODER EJECUTIVO
I41: Secretaría de Medio Ambiente, Biodiversidad y Cambio Climático | J41: 040 | K41: PODER EJECUTIVO
I42: Promotora para la Conservación y Desarrollo Sustentable del Estado de Campeche | J42: 041 | K42: PODER EJECUTIVO
I43: Secretaría de Pesca y Acuacultura | J43: 042 | K43: PODER EJECUTIVO
I44: Secretaría de Planeación | J44: 043 | K44: PODER EJECUTIVO
I45: Instituto de Información Estadística, Geográfica y Catastral del Estado de Campeche | J45: 044 | K45: PODER EJECUTIVO
I46: Secretaría de Protección Civil | J46: 045 | K46: PODER EJECUTIVO
I47: Secretaría de Salud | J47: 046 | K47: PODER EJECUTIVO
I48: Hospital Dr. Manuel Campos | J48: 047 | K48: PODER EJECUTIVO
I49: Hospital Psiquiátrico de Campeche | J49: 048 | K49: PODER EJECUTIVO
I50: Instituto de Servicios Descentralizados de Salud Pública del Estado de Campeche | J50: 049 | K50: PODER EJECUTIVO
I51: Régimen Estatal de Protección Social en Salud | J51: 050 | K51: PODER EJECUTIVO
I52: Sistema de Atención a Niños, Niñas y Adolescentes Farmacodependientes del Estado de Campeche “Vida Nueva” | J52: 051 | K52: PODER EJECUTIVO
I53: Sistema para el Desarrollo Integral de la Familia del Estado de Campeche | J53: 052 | K53: PODER EJECUTIVO
I54: Secretaría de Seguridad Pública | J54: 053 | K54: PODER EJECUTIVO
I55: Secretaría de Trabajo y Previsión Social | J55: 054 | K55: PODER EJECUTIVO
I56: Centro de Conciliación Laboral del Estado de Campeche | J56: 055 | K56: PODER EJECUTIVO
I57: Secretaría de Turismo | J57: 056 | K57: PODER EJECUTIVO
I58: Promotora de Eventos Artísticos, Culturales y de Convenciones del Estado de Campeche | J58: 057 | K58: PODER EJECUTIVO
I59: Secretaría General de Gobierno | J59: 058 | K59: PODER EJECUTIVO
I60: Instituto de Acceso a la Justicia del Estado de Campeche | J60: 059 | K60: PODER EJECUTIVO
I61: Sistema de Televisión y Radio de Campeche | J61: 060 | K61: PODER EJECUTIVO
I62: Secretaría Ejecutiva del Sistema Anticorrupción del Estado de Campeche | J62: 061 | K62: PODER EJECUTIVO
I63: Auditoría Superior del Estado de Campeche | J63: 062 | K63: PODER LEGISLATIVO
I64: Congreso del Estado de Campeche | J64: 063 | K64: PODER LEGISLATIVO
I65: Tribunal Superior de Justicia del Estado de Campeche | J65: 064 | K65: PODER JUDICIAL
I66: Municipio de Calakmul | J66: 065 | K66: MUNICIPIOS
I67: Sistema Municipal para el Desarrollo Integral de la Familia de Calakmul | J67: 066 | K67: MUNICIPIOS
I68: Junta Municipal de Constitución | J68: 067 | K68: MUNICIPIOS
I69: Municipio de Calkiní | J69: 068 | K69: MUNICIPIOS
I70: Sistema Municipal para el Desarrollo Integral de la Familia de Calkiní | J70: 069 | K70: MUNICIPIOS
I71: Junta Municipal de Bécal | J71: 070 | K71: MUNICIPIOS
I72: Junta Municipal de Nunkiní | J72: 071 | K72: MUNICIPIOS
I73: Municipio de Campeche | J73: 072 | K73: MUNICIPIOS
I74: Sistema Municipal para el Desarrollo Integral de la Familia de Campeche | J74: 073 | K74: MUNICIPIOS
I75: Sistema Municipal de Agua Potable y Alcantarillado de Campeche | J75: 074 | K75: MUNICIPIOS
I76: Junta Municipal de Alfredo V. Bonfil | J76: 075 | K76: MUNICIPIOS
I77: Junta Municipal de Hampolol | J77: 076 | K77: MUNICIPIOS
I78: Junta Municipal de Pich | J78: 077 | K78: MUNICIPIOS
I79: Junta Municipal de Tixmucuy | J79: 078 | K79: MUNICIPIOS
I80: Municipio de Candelaria | J80: 079 | K80: MUNICIPIOS
I81: Sistema Municipal para el Desarrollo Integral de la Familia de Candelaria | J81: 080 | K81: MUNICIPIOS
I82: Junta Municipal de Miguel Hidalgo | J82: 081 | K82: MUNICIPIOS
I83: Junta Municipal de Monclova | J83: 082 | K83: MUNICIPIOS
I84: Municipio de Carmen | J84: 083 | K84: MUNICIPIOS
I85: Sistema Municipal para el Desarrollo Integral de la Familia de Carmen | J85: 084 | K85: MUNICIPIOS
I86: Sistema Municipal de Agua Potable y Alcantarillado de Carmen | J86: 085 | K86: MUNICIPIOS
I87: Instituto del Deporte y de la Juventud de Carmen | J87: 086 | K87: MUNICIPIOS
I88: Instituto Municipal de la Mujer de Carmen | J88: 087 | K88: MUNICIPIOS
I89: Instituto Municipal de la Vivienda de Carmen | J89: 088 | K89: MUNICIPIOS
I90: Instituto Municipal de Planeación de Carmen | J90: 089 | K90: MUNICIPIOS
I91: Junta Municipal de Atasta | J91: 090 | K91: MUNICIPIOS
I92: Junta Municipal de Mamantel | J92: 091 | K92: MUNICIPIOS
I93: Junta Municipal de Sabancuy | J93: 092 | K93: MUNICIPIOS
I94: Municipio de Champotón | J94: 093 | K94: MUNICIPIOS
I95: Sistema Municipal para el Desarrollo Integral de la Familia de Champotón | J95: 094 | K95: MUNICIPIOS
I96: Junta Municipal de Felipe Carrillo Puerto del Municipio de Champotón | J96: 095 | K96: MUNICIPIOS
I97: Junta Municipal de Hool | J97: 096 | K97: MUNICIPIOS
I98: Junta Municipal de Sihochac | J98: 097 | K98: MUNICIPIOS
I99: Municipio de Escárcega | J99: 098 | K99: MUNICIPIOS
I100: Sistema Municipal para el Desarrollo Integral de la Familia de Escárcega | J100: 099 | K100: MUNICIPIOS
I101: Sistema Municipal de Agua Potable y Alcantarillado de Escárcega | J101: 100 | K101: MUNICIPIOS
I102: Junta Municipal de Centenario | J102: 101 | K102: MUNICIPIOS
I103: Junta Municipal de División del Norte | J103: 102 | K103: MUNICIPIOS
I104: Municipio de Hecelchakán | J104: 103 | K104: MUNICIPIOS
I105: Sistema Municipal para el Desarrollo Integral de la Familia de Hecelchakán | J105: 104 | K105: MUNICIPIOS
I106: Junta Municipal de Pomuch | J106: 105 | K106: MUNICIPIOS
I107: Municipio de Hopelchén | J107: 106 | K107: MUNICIPIOS
I108: Sistema Municipal para el Desarrollo Integral de la Familia de Hopelchén | J108: 107 | K108: MUNICIPIOS
I109: Junta Municipal de Bolonchén de Rejón | J109: 108 | K109: MUNICIPIOS
I110: Junta Municipal de Dzibalchén | J110: 109 | K110: MUNICIPIOS
I111: Junta Municipal de Ukum | J111: 110 | K111: MUNICIPIOS
I112: Municipio de Palizada | J112: 111 | K112: MUNICIPIOS
I113: Sistema Municipal para el Desarrollo Integral de la Familia de Palizada | J113: 112 | K113: MUNICIPIOS
I114: Municipio de Tenabo | J114: 113 | K114: MUNICIPIOS
I115: Sistema Municipal para el Desarrollo Integral de la Familia de Tenabo | J115: 114 | K115: MUNICIPIOS
I116: Junta Municipal de Tinún | J116: 115 | K116: MUNICIPIOS
I117: Municipio de Seybaplaya | J117: 116 | K117: MUNICIPIOS
I118: Municipio de Dzibalché | J118: 117 | K118: MUNICIPIOS
I119: Comisión de Derechos Humanos del Estado de Campeche | J119: 118 | K119: ÓRGANOS AUTÓNOMOS
I120: Comisión de Transparencia y Acceso a la Información Pública del Estado de Campeche | J120: 119 | K120: ÓRGANOS AUTÓNOMOS
I121: Fiscalía Especializada en Combate a la Corrupción del Estado de Campeche | J121: 120 | K121: ÓRGANOS AUTÓNOMOS
I122: Instituto Electoral del Estado de Campeche | J122: 121 | K122: ÓRGANOS AUTÓNOMOS
I123: Tribunal de Justicia Administrativa del Estado de Campeche | J123: 122 | K123: ÓRGANOS AUTÓNOMOS
I124: Tribunal Electoral del Estado de Campeche | J124: 123 | K124: ÓRGANOS AUTÓNOMOS
I125: Fideicomiso de Inversión del Impuesto del 2% sobre Nóminas del Estado de Campeche | J125: 124 | K125: FIDEICOMISOS Y FONDOS PÚBLICOS
I126: Fondo Campeche | J126: 125 | K126: FIDEICOMISOS Y FONDOS PÚBLICOS
I127: Fondo Estatal de Fomento Industrial del Estado de Campeche | J127: 126 | K127: FIDEICOMISOS Y FONDOS PÚBLICOS
I128: Junta Local de Conciliación y Arbitraje del Estado de Campeche | J128: 127 | K128: AUTORIDADES ADMINISTRATIVAS Y JURISDICCIONALES EN MATERIA LABORAL
I129: Instituto Campechano | J129: 128 | K129: INSTITUCIONES DE EDUCACIÓN SUPERIOR PÚBLICAS DOTADAS DE AUTONOMÍA
I130: Universidad Autónoma de Campeche | J130: 129 | K130: INSTITUCIONES DE EDUCACIÓN SUPERIOR PÚBLICAS DOTADAS DE AUTONOMÍA
I131: Universidad Autónoma del Carmen | J131: 130 | K131: INSTITUCIONES DE EDUCACIÓN SUPERIOR PÚBLICAS DOTADAS DE AUTONOMÍA
I132: Morena | J132: 131 | K132: PARTIDOS POLÍTICOS
I133: Movimiento Ciudadano | J133: 132 | K133: PARTIDOS POLÍTICOS
I134: Partido Acción Nacional | J134: 133 | K134: PARTIDOS POLÍTICOS
I135: Partido de la Revolución Democrática | J135: 134 | K135: PARTIDOS POLÍTICOS
I136: Partido del Trabajo | J136: 135 | K136: PARTIDOS POLÍTICOS
I137: Partido Revolucionario Institucional | J137: 136 | K137: PARTIDOS POLÍTICOS
I138: Partido Verde Ecologista de México | J138: 137 | K138: PARTIDOS POLÍTICOS
I139: Partido Encuentro Solidario | J139: 138 | K139: PARTIDOS POLÍTICOS
I140: Partido Redes Sociales Progresistas | J140: 139 | K140: PARTIDOS POLÍTICOS
I141: Partido Fuerza por México | J141: 140 | K141: PARTIDOS POLÍTICOS
I142: Sindicato Único de Personal Académico de la Universidad Autónoma de Campeche | J142: 141 | K142: SINDICATOS
I143: Sindicato Único de Personal Docente del Colegio de Educación Profesional Técnica del Estado de Campeche | J143: 142 | K143: SINDICATOS
I144: Sindicato Único de Trabajadores Académicos, Administrativos y Manuales del Instituto Campechano | J144: 143 | K144: SINDICATOS
I145: Sindicato Único de Trabajadores Administrativos, de Intendencia y Similares de la Universidad Autónoma de Campeche | J145: 144 | K145: SINDICATOS
I146: Sindicato Único de Trabajadores al Servicio de los Poderes, Municipios e Instituciones Descentralizadas del Estado de Campeche | J146: 145 | K146: SINDICATOS
I147: Sindicato Único de Trabajadores al Servicio del Gobierno Municipal | J147: 146 | K147: SINDICATOS
I148: Sindicato Único de Trabajadores de la Universidad Tecnológica de Campeche | J148: 147 | K148: SINDICATOS
I149: Sindicato Único de Trabajadores del Colegio de Bachilleres del Estado de Campeche | J149: 148 | K149: SINDICATOS
I150: Sindicato Único de Trabajadores del Colegio de Estudios Científicos y Tecnológicos del Estado de Campeche | J150: 149 | K150: SINDICATOS
I151: Sindicato Único del Personal Académico, Administrativo, Manual y Apoyo del Colegio de Estudios Científicos y Tecnológicos del Estado de Campeche | J151: 150 | K151: SINDICATOS
I152: Sindicato Único de Trabajadores de la Universidad Autónoma del Carmen | J152: 151 | K152: SINDICATOS

Sheet Resultados
D1: VERIFICACIÓN VINCULANTE 2021
D2: =IF(Aplicabilidad!E2="","",Aplicabilidad!E2) -> Consejería Jurídica
C5: Fecha de Inicio de la Verificación: | G5: Fecha de Término de la verificación
C7: 2021-07-07 | G7: 2021-07-08
C9: INDICE GLOBAL DE CUMPLIMIENTO
E11: =CONCATENATE("Promedio parcial Art. ",C16,":") -> Promedio parcial Art. 74: | F11: =AVERAGE(G16:H16) -> 96.53%
C15: Art. / Fracción | E15: Aplica | G15: Crit. Sust | H15: Crit Adj.
C16: 74 | E16: SI | G16: =IF(ISERROR(AVERAGE('Art 74_I'!E10,'Art 74_II'!E10,'Art 74_III'!E10,'Art 74_IV'!E10,'Art 74_V'!E10,'Art 74_VI'!E10,'Art 74_VII'!E10,'Art 74_VIII'!E10,'Art 74_IX'!E10,'Art 74_X'!E10,'Art 74_XI'!E10,'Art 74_XII'!E10,'Art 74_XIII'!E10,'Art 74_XIV'!E10,'Art 74_XV'!E10,'Art 74_XVI'!E10,'Art 74_XVII'!E10,'Art 74_XVIII'!E10,'Art 74_XIX'!E10,'Art 74_XX'!E10,'Art 74_XXI'!E10,'Art 74_XXII'!E10,'Art 74_XXIII'!E10,'Art 74_XXIV'!E10,'Art 74_XXV'!E10,'Art 74_XXVI'!E10,'Art 74_XXVII'!E10,'Art 74_XXVIII'!E10,'Art 74_XXIX'!E10,'Art 74_XXX'!E10,'Art 74_XXXI'!E10,'Art 74_XXXII'!E10,'Art 74_XXXIII'!E10,'Art 74_XXXIV'!E10,'Art 74_XXXV'!E10,'Art 74_XXXVI'!E10,'Art 74_XXXVII'!E10,'Art 74_XXXVIII'!E10,'Art 74_XXXIX'!E10,'Art 74_XL'!E10,'Art 74_XLI'!E10,'Art 74_XLII'!E10,'Art 74_XLIII'!E10,'Art 74_XLIV'!E10,'Art 74_XLV'!E10,'Art 74_XLVI'!E10,'Art 74_XLVII'!E10,'Art 74_XLVIII'!E10,'Art 74_Ult.P'!E10)),"", AVERAGE('Art 74_I'!E10,'Art 74_II'!E10,'Art 74_III'!E10,'Art 74_IV'!E10,'Art 74_V'!E10,'Art 74_VI'!E10,'Art 74_VII'!E10,'Art 74_VIII'!E10,'Art 74_IX'!E10,'Art 74_X'!E10,'Art 74_XI'!E10,'Art 74_XII'!E10,'Art 74_XIII'!E10,'Art 74_XIV'!E10,'Art 74_XV'!E10,'Art 74_XVI'!E10,'Art 74_XVII'!E10,'Art 74_XVIII'!E10,'Art 74_XIX'!E10,'Art 74_XX'!E10,'Art 74_XXI'!E10,'Art 74_XXII'!E10,'Art 74_XXIII'!E10,'Art 74_XXIV'!E10,'Art 74_XXV'!E10,'Art 74_XXVI'!E10,'Art 74_XXVII'!E10,'Art 74_XXVIII'!E10,'Art 74_XXIX'!E10,'Art 74_XXX'!E10,'Art 74_XXXI'!E10,'Art 74_XXXII'!E10,'Art 74_XXXIII'!E10,'Art 74_XXXIV'!E10,'Art 74_XXXV'!E10,'Art 74_XXXVI'!E10,'Art 74_XXXVII'!E10,'Art 74_XXXVIII'!E10,'Art 74_XXXIX'!E10,'Art 74_XL'!E10,'Art 74_XLI'!E10,'Art 74_XLII'!E10,'Art 74_XLIII'!E10,'Art 74_XLIV'!E10,'Art 74_XLV'!E10,'Art 74_XLVI'!E10,'Art 74_XLVII'!E10,'Art 74_XLVIII'!E10,'Art 74_Ult.P'!E10)) -> 93.57% | H16: =IF(ISERROR(AVERAGE('Art 74_I'!E11,'Art 74_II'!E11,'Art 74_III'!E11,'Art 74_IV'!E11,'Art 74_V'!E11,'Art 74_VI'!E11,'Art 74_VII'!E11,'Art 74_VIII'!E11,'Art 74_IX'!E11,'Art 74_X'!E11,'Art 74_XI'!E11,'Art 74_XII'!E11,'Art 74_XIII'!E11,'Art 74_XIV'!E11,'Art 74_XV'!E11,'Art 74_XVI'!E11,'Art 74_XVII'!E11,'Art 74_XVIII'!E11,'Art 74_XIX'!E11,'Art 74_XX'!E11,'Art 74_XXI'!E11,'Art 74_XXII'!E11,'Art 74_XXIII'!E11,'Art 74_XXIV'!E11,'Art 74_XXV'!E11,'Art 74_XXVI'!E11,'Art 74_XXVII'!E11,'Art 74_XXVIII'!E11,'Art 74_XXIX'!E11,'Art 74_XXX'!E11,'Art 74_XXXI'!E11,'Art 74_XXXII'!E11,'Art 74_XXXIII'!E11,'Art 74_XXXIV'!E11,'Art 74_XXXV'!E11,'Art 74_XXXVI'!E11,'Art 74_XXXVII'!E11,'Art 74_XXXVIII'!E11,'Art 74_XXXIX'!E11,'Art 74_XL'!E11,'Art 74_XLI'!E11,'Art 74_XLII'!E11,'Art 74_XLIII'!E11,'Art 74_XLIV'!E11,'Art 74_XLV'!E11,'Art 74_XLVI'!E11,'Art 74_XLVII'!E11,'Art 74_XLVIII'!E11,'Art 74_Ult.P'!E11)),"", AVERAGE('Art 74_I'!E11,'Art 74_II'!E11,'Art 74_III'!E11,'Art 74_IV'!E11,'Art 74_V'!E11,'Art 74_VI'!E11,'Art 74_VII'!E11,'Art 74_VIII'!E11,'Art 74_IX'!E11,'Art 74_X'!E11,'Art 74_XI'!E11,'Art 74_XII'!E11,'Art 74_XIII'!E11,'Art 74_XIV'!E11,'Art 74_XV'!E11,'Art 74_XVI'!E11,'Art 74_XVII'!E11,'Art 74_XVIII'!E11,'Art 74_XIX'!E11,'Art 74_XX'!E11,'Art 74_XXI'!E11,'Art 74_XXII'!E11,'Art 74_XXIII'!E11,'Art 74_XXIV'!E11,'Art 74_XXV'!E11,'Art 74_XXVI'!E11,'Art 74_XXVII'!E11,'Art 74_XXVIII'!E11,'Art 74_XXIX'!E11,'Art 74_XXX'!E11,'Art 74_XXXI'!E11,'Art 74_XXXII'!E11,'Art 74_XXXIII'!E11,'Art 74_XXXIV'!E11,'Art 74_XXXV'!E11,'Art 74_XXXVI'!E11,'Art 74_XXXVII'!E11,'Art 74_XXXVIII'!E11,'Art 74_XXXIX'!E11,'Art 74_XL'!E11,'Art 74_XLI'!E11,'Art 74_XLII'!E11,'Art 74_XLIII'!E11,'Art 74_XLIV'!E11,'Art 74_XLV'!E11,'Art 74_XLVI'!E11,'Art 74_XLVII'!E11,'Art 74_XLVIII'!E11,'Art 74_Ult.P'!E11)) -> 99.49%
B24: =CONCATENATE("Verificador: ",Aplicabilidad!E7) -> Verificador: Erick Raymundo Zabala Pérez | I24: =CONCATENATE("Coordinador: ",Aplicabilidad!J7) -> Coordinador: Gabriela Ortiz Gutierrez
G27: 70 | H27: =IF(#REF!="NA","NA",#REF!) -> 
G28: 71 | H28: =IF(AND(#REF!="NA",#REF!="NA"),"NA",AVERAGE(#REF!)) -> 
G29: 72 | H29: =IF(#REF!="NA","NA",#REF!) -> 
G30: 73 | H30: =IF(#REF!="NA","NA",#REF!) -> 
C31: IOC | D31: IOE | E31: IOA | F31: Grupo de cálculo para ponderación | G31: 74 | H31: =IF(AND(#REF!="NA",#REF!="NA",#REF!="NA"),"NA",AVERAGE(#REF!)) -> 
C32: =IF(H27="NA","NA",H27) ->  | D32: =IF(AND(H28="NA",H29="NA",H30="NA",H31="NA",H32="NA",H33="NA",H34="NA",H35="NA",H36="NA"),"NA",AVERAGE(H28:H36)) ->  | E32: =IF(AND(H37="NA",H38="NA",H39="NA"),"NA",AVERAGE(H37:H39)) ->  | F32: =IF(AND(C32="NA",D32="NA",E32="NA"),8,IF(AND(C32="NA",D32="NA"),7,IF(AND(C32="NA",E32="NA"),6,IF(AND(D32="NA",E32="NA"),5,IF(E32="NA",4,IF(D32="NA",3,IF(C32="NA",2,1))))))) ->  | G32: 75 | H32: =IF(#REF!="NA","NA",#REF!) -> 
A33: R. POND | G33: 76 | H33: =IF(#REF!="NA","NA",#REF!) -> 
A34: RESULT | C34: =IF(AND(C33="NA",D33="NA",E33="NA"),"NA",SUM(C33:E33)) ->  | G34: 77 | H34: =IF(#REF!="NA","NA",#REF!) -> 
G35: 78 | H35: =IF(#REF!="NA","NA",#REF!) -> 
G36: 79 | H36: =IF(#REF!="NA","NA",#REF!) -> 
A37: GRUPO | B37: EXPLICACIÓN | G37: 80 | H37: =IF(#REF!="NA","NA",#REF!) -> 
A38: 1 | B38: Aplican los tres componentes | G38: 81 | H38: =IF(#REF!="NA","NA",#REF!) -> 
A39: 2 | B39: Aplica solo segundo y tercer componente | G39: 82 | H39: =IF(#REF!="NA","NA",#REF!) -> 
A40: 3 | B40: Aplica solo primer y tercer componente
A41: 4 | B41: Aplica solo primer y segundo componente
A42: 5 | B42: Solo aplica primer componente
A43: 6 | B43: Solo aplica segundo componente
A44: 7 | B44: Solo aplica el tercer componente
A45: 8 | B45: Ningún componente aplica

Sheet Aplicabilidad
N1: SI
D2: =IF(ISERROR(VLOOKUP(E2,'Cat. Res'!I:K,2,FALSE)),"", VLOOKUP(E2,'Cat. Res'!I:K,2,FALSE)) -> 3 | E2: Consejería Jurídica | K2: =IF(ISERROR(CONCATENATE("Clasificación:",CHAR(10),VLOOKUP(E2,'Cat. Res'!I:K,3,FALSE))),"",CONCATENATE("Clasificación:",CHAR(10),VLOOKUP(E2,'Cat. Res'!I:K,3,FALSE))) -> Clasificación: PODER EJECUTIVO | N2: NO
C5: Aplicación de Obligaciones de la Ley General
D7: Responsable de la verificación | E7: Erick Raymundo Zabala Pérez | I7: Coordinador de la verificación | J7: Gabriela Ortiz Gutierrez
D9: No de obligaciones Aplicables | E9: =IF(E2="","Seleccione el S. O. a verificar",SUM(H12:H67)) -> 22
C11: Artículo | D11: Fracción | E11: Inciso | F11: Obligación | G11: Aplicación | J11: Fecha de inico de descarga del Respaldo de la Información | K11: Fecha de término de descarga del Respaldo de la Información
C12: 74 | D12: I | F12: Art 74_I | G12: SI | H12: =IF(G12="si",1,"") -> 1 | J12: 2021-07-06 | K12: 2021-07-06
C13: 74 | D13: II | F13: Art 74_II | G13: SI | H13: =IF(G13="si",1,"") -> 1 | J13: 2021-07-06 | K13: 2021-07-06
C14: 74 | D14: III | F14: Art 74_III | G14: SI | H14: 1 | J14: 2021-07-06 | K14: 2021-07-06
C15: 74 | D15: IV | F15: Art 74_IV
C16: 74 | D16: V | F16: Art 74_V
C17: 74 | D17: VI | F17: Art 74_VI
C18: 74 | D18: VII | F18: Art 74_VII | G18: SI | H18: 1 | J18: 2021-07-06 | K18: 2021-07-06
C19: 74 | D19: VIII | F19: Art 74_VIII | G19: SI | H19: 1 | J19: 2021-07-06 | K19: 2021-07-06
C20: 74 | D20: IX | F20: Art 74_IX | G20: SI | H20: 1 | J20: 2021-07-06 | K20: 2021-07-06
C21: 74 | D21: X | F21: Art 74_X | G21: SI | H21: 1 | J21: 2021-07-06 | K21: 2021-07-06
C22: 74 | D22: XI | F22: Art 74_XI | G22: SI | H22: 1 | J22: 2021-07-06 | K22: 2021-07-06
C23: 74 | D23: XII | F23: Art 74_XII | G23: NO
C24: 74 | D24: XIII | F24: Art 74_XIII
C25: 74 | D25: XIV | F25: Art 74_XIV | G25: NO
C26: 74 | D26: XV | F26: Art 74_XV | G26: NO
C27: 74 | D27: XVI | F27: Art 74_XVI
C28: 74 | D28: XVII | F28: Art 74_XVII | G28: SI | H28: 1 | J28: 2021-07-06 | K28: 2021-07-06
C29: 74 | D29: XVIII | F29: Art 74_XVIII | G29: SI | H29: 1 | J29: 2021-07-06 | K29: 2021-07-06
C30: 74 | D30: XIX | F30: Art 74_XIX | G30: SI | H30: 1 | J30: 2021-07-06 | K30: 2021-07-06
C31: 74 | D31: XX | F31: Art 74_XX | G31: SI | H31: 1 | J31: 2021-07-06 | K31: 2021-07-06
C32: 74 | D32: XXI | F32: Art 74_XXI | G32: SI | H32: 1 | J32: 2021-07-06 | K32: 2021-07-06
C33: 74 | D33: XXII | F33: Art 74_XXII
C34: 74 | D34: XXIII | F34: Art 74_XXIII
C35: 74 | D35: XXIV | F35: Art 74_XXIV | G35: SI | H35: 1 | J35: 2021-07-06 | K35: 2021-07-06
C36: 74 | D36: XXV | F36: Art 74_XXV
C37: 74 | D37: XXVI | F37: Art 74_XXVI
C38: 74 | D38: XXVII | F38: Art 74_XXVII | G38: NO
C39: 74 | D39: XXVIII | F39: Art 74_XXVIII | G39: NO
C40: 74 | D40: XXIX | F40: Art 74_XXIX | G40: SI | H40: 1 | J40: 2021-07-06 | K40: 2021-07-06
C41: 74 | D41: XXX | F41: Art 74_XXX
C42: 74 | D42: XXXI | F42: Art 74_XXXI | G42: SI | H42: 1 | J42: 2021-07-06 | K42: 2021-07-06
C43: 74 | D43: XXXII | F43: Art 74_XXXII | G43: NO
C44: 74 | D44: XXXIII | F44: Art 74_XXXIII
C45: 74 | D45: XXXIV | F45: Art 74_XXXIV | G45: SI | H45: 1 | J45: 2021-07-06 | K45: 2021-07-06
C46: 74 | D46: XXXV | F46: Art 74_XXXV
C47: 74 | D47: XXXVI | F47: Art 74_XXXVI
C48: 74 | D48: XXXVII | F48: Art 74_XXXVII
C49: 74 | D49: XXXVIII | F49: Art 74_XXXVIII | G49: NO
C50: 74 | D50: XXXIX | F50: Art 74_XXXIX | G50: SI | H50: 1 | J50: 2021-07-06 | K50: 2021-07-06
C51: 74 | D51: XL | F51: Art 74_XL | G51: SI | H51: 1 | J51: 2021-07-06 | K51: 2021-07-06
C52: 74 | D52: XLI | F52: Art 74_XLI
C53: 74 | D53: XLII | F53: Art 74_XLII
C54: 74 | D54: XLIII | F54: Art 74_XLIII | G54: NO
C55: 74 | D55: XLIV | F55: Art 74_XLIV
C56: 74 | D56: XLV | F56: Art 74_XLV | G56: SI | H56: 1 | J56: 2021-07-06 | K56: 2021-07-06
C57: 74 | D57: XLVI | F57: Art 74_XLVI
C58: 74 | D58: XLVII | F58: Art 74_XLVII
C59: 74 | D59: XLVIII | F59: Art 74_XLVIII | G59: SI | H59: 1 | J59: 2021-07-06 | K59: 2021-07-06
C60: 74 | D60: Ult.P | F60: Art 74_Ult.P | G60: SI | H60: 1 | J60: 2021-07-06 | K60: 2021-07-06
C61: 75 | D61: I | F61: Art 75_I
C62: 75 | D62: II | F62: Art 75_II
C63: 75 | D63: III | F63: Art 75_III
C64: 75 | D64: IV | F64: Art 75_IV
C65: 75 | D65: V | F65: Art 75_V
C66: 71 | D66: I | E66: F | F66: Art 75_I_F
C67: 75 | D67: VI | F67: Art 75_VI

Sheet Art 74_I
C1: =IF(Aplicabilidad!E2="","",Aplicabilidad!E2) -> Consejería Jurídica
B3: Códigos de valoración : Cumplió totalmente = 1; Cumplió parcialmente = 0.5; No cumplió = 0; Justificado = Justificado
B5: Art. 74 - Fracción I. Marco Normativo
C7: Fecha de Inicio de la Verificación: | G7: Fecha de Término de la verificación
C8: =IF(Resultados!$C$7="","",Resultados!$C$7) -> 2021-07-07 | G8: =IF(Resultados!G7="","",Resultados!G7) -> 2021-07-08
C10: Criterios Sustantivos | E10: =IF(Aplicabilidad!G12<>"SI","NA",(+SUM(E19:E25))/(+SUM(D19:D25))) -> 100%
C11: Criterios Adjetivos | E11: =IF(Aplicabilidad!G12<>"SI","NA",(+SUM(E30:E38))/(+SUM(D30:D38))) -> 100%
C12: Obligación | E12: =IF(Aplicabilidad!G12<>"SI","NA",E10*0.6+E11*0.4) -> 100.00%
C16: Criterios Sustantivos de contenido LTG 2018 - LTG 2020 (DOF 28/12/20) | D16: =COUNTA(F19:F38) -> 1
C18: Criterio | E18: Valoración | F18: Tipo | G18: Observaciones, Recomendaciones y/o Requerimientos
C19: Criterio 1. Ejercicio | D19: =IF(E19="Justificado",0,1) -> 1 | E19: 1
C20: Criterio 2. Periodo que se informa (fecha de inicio y fecha de término con el formato día/mes/año) | D20: =IF(E20="Justificado",0,1) -> 1 | E20: 1
C21: Criterio 3. Tipo de normatividad (catálogo): Constitución Política de los Estados Unidos Mexicanos/Tratado internacional/Constitución Política de la entidad federativa/Estatuto/Ley General/Ley Federal/Ley Orgánica/Ley local/Ley Reglamentaria/Código/Reglamento/Decreto/Manual/Reglas de operación/ Criterios/Política/Condiciones/Norma/Bando/Resolución/Lineamientos/Circular/Acuerdo/Convenio/Contrato/Estatuto sindical/Estatuto Universitario/Estatuto de personas morales/Memorando de entendimiento/Otro | D21: 1 | E21: 1
C22: Criterio 4. Denominación de la norma que se reporta | D22: 1 | E22: 1
C23: Criterio 5. Fecha de publicación en el DOF u otro medio oficial o institucional expresada en el formato día/mes/año. En su caso, se incluirá la fecha de publicación y/o fecha de firma o aprobación y en el caso de Tratados Internacionales se registrará la fecha de publicación y/o fecha de ratificación con el formato día/mes/año | D23: 1 | E23: 1
C24: Criterio 6. Fecha de última modificación, en su caso, expresada en el formato día/mes/año. De no existir modificación, se repetirá la fecha de publicación | D24: =IF(E24="Justificado",0,1) -> 1 | E24: 1
C25: Criterio 7. Hipervínculo al documento completo de cada norma | D25: =IF(E25="Justificado",0,1) -> 1 | E25: 1
C27: Criterios Adjetivos LTG 2018 - LTG 2020 (DOF 28/12/20)
C29: Criterio | E29: Valoración | F29: Tipo | G29: Observaciones, Recomendaciones y/o Requerimientos
C30: Criterio 8. Periodo de actualización de la información: trimestral. Únicamente cuando se expida alguna reforma, adición, derogación, abrogación o se realice cualquier tipo de modificación al marco normativo aplicable al sujeto obligado, la información deberá publicarse y/o actualizarse en un plazo no mayor a 15 días hábiles a partir de su publicación en el DOF, Periódico o Gaceta Oficial, o acuerdo de aprobación en el caso de normas publicadas por medios distintos, como el sitio de Internet | D30: =IF(E30="Justificado",0,1) -> 1 | E30: 1
C31: Criterio 9. La información publicada deberá estar actualizada al periodo que corresponde, de acuerdo con la Tabla de actualización y conservación de la información | D31: 1 | E31: 1
C32: Criterio 10. Conservar en el sitio de Internet: información vigente | D32: 1 | E32: 1
C33: Criterio 11. Área(s) responsable(s) que genera(n), posee(n), publica(n) y actualiza(n) la información. | D33: 1 | E33: 1
C34: Criterio 12. Fecha de actualización de la información publicada con el formato día/mes/año | D34: 1 | E34: 1
C35: Criterio 13. Fecha de validación de la información publicada con el formato día/mes/año | D35: 1 | E35: 1
C36: Criterio 14. Nota. Este criterio se cumple en caso de que sea necesario que el sujeto obligado incluya alguna aclaración relativa a la información publicada y/o explicación por la falta de información | D36: 1 | E36: 1
C37: Criterio 15. La información publicada se organiza mediante el formato 1, en el que se incluyen todos los campos especificados en los criterios sustantivos de contenido | D37: 1 | E37: 1
C38: Criterio 16. El soporte de la información permite su reutilización | D38: 1 | E38: 1
D46: 2017 | E46: 2018
C47: CS | D47: NA | E47: =IF(Aplicabilidad!G12<>"SI","NA",SUM(E19:E25)/SUM(D19:D25)) -> 100.00%
C48: CA | D48: NA | E48: =IF(Aplicabilidad!G12<>"SI","NA",SUM(E30:E38)/SUM(D30:D38)) -> 100.00%
C49: OBLIGACIÓN | D49: NA | E49: =IF(Aplicabilidad!G12<>"SI","NA",E47*0.6+E48*0.4) -> 100.00%

Sheet Art 74_II
C1: =IF(Aplicabilidad!E2="","",Aplicabilidad!E2) -> Consejería Jurídica
B3: Códigos de valoración : Cumplió totalmente = 1; Cumplió parcialmente = 0.5; No cumplió = 0; Justificado = Justificado
B5: Art. 74 - Fracción II. Estructura orgánica
C7: Fecha de Inicio de la Verificación: | G7: Fecha de Término de la verificación
C8: =IF(Resultados!$C$7="","",Resultados!$C$7) -> 2021-07-07 | D8: 2018-05-25 | G8: =IF(Resultados!G7="","",Resultados!G7) -> 2021-07-08
C10: Criterios Sustantivos | E10: =IF(Aplicabilidad!G13<>"SI","NA",(+SUM(E19:E32))/(+SUM(D19:D32))) -> 100%
C11: Criterios Adjetivos | E11: =IF(Aplicabilidad!G13<>"SI","NA",(+SUM(E37:E45))/(+SUM(D37:D45))) -> 100%
C12: Obligación | E12: =IF(Aplicabilidad!G13<>"SI","NA",E10*0.6+E11*0.4) -> 100.00%
C16: Criterios Sustantivos de contenido LTG 2018 - LTG 2020 (DOF 28/12/20) | D16: =COUNTA(F19:F45) -> 1
C18: Criterio | E18: Valoración | F18: Tipo | G18: Observaciones, Recomendaciones y/o Requerimientos
C19: Criterio 1. Ejercicio | D19: =IF(E19="Justificado",0,1) -> 1 | E19: 1
C20: Criterio 2. Periodo que se informa (fecha de inicio y fecha de término con el formato día/mes/año) | D20: =IF(E20="Justificado",0,1) -> 1 | E20: 1
C21: Criterio 3. Denominación del área (de acuerdo con el catálogo que en su caso regule la actividad del sujeto obligado) | D21: 1 | E21: 1
C22: Criterio 4. Denominación del puesto (de acuerdo con el catálogo que en su caso regule la actividad del sujeto obligado). La información deberá estar ordenada de tal forma que sea posible visualizar los niveles de jerarquía y sus relaciones de dependencia | D22: 1 | E22: 1
C23: Criterio 5. Denominación del cargo (de conformidad con nombramiento otorgado) | D23: 1 | E23: 1
C24: Criterio 6. Área de adscripción inmediata superior | D24: 1 | E24: 1
C25: Criterio 7. Por cada puesto y/o cargo de la estructura se deberá especificar la denominación de la norma que establece sus atribuciones, responsabilidades y/o funciones, según sea el caso y el fundamento legal (artículo y/o fracción) que sustenta el puesto. (Criterio Modificado DOF 28/12/2020) | D25: 1 | E25: 1
D26: 0 | E26: Justificado
C27: Criterio 8. Por cada puesto o cargo deben registrarse las atribuciones, responsabilidades y/o funciones, según sea el caso | D27: 1 | E27: 1
C28: Criterio 9. Hipervínculo al perfil y/o requerimientos del puesto o cargo, en caso de existir de acuerdo con la normatividad que aplique | D28: 0 | E28: Justificado
C29: Criterio 10. Por cada área del sujeto obligado se debe incluir, en su caso, el número total de prestadores de servicios profesionales o miembros que integren el sujeto obligado de conformidad con las disposiciones aplicables (por ejemplo, en puestos honoríficos) | D29: 1 | E29: 1
C30: Criterio 11. Ejercicio | D30: 1 | E30: 1
C31: Criterio 12. Periodo que se informa (fecha de inicio y fecha de término con el formato día/mes/año) | D31: =IF(E31="Justificado",0,1) -> 1 | E31: 1
C32: Criterio 13. Hipervínculo al organigrama completo del sujeto obligado (forma gráfica de la estructura orgánica), acorde a su normatividad, el cual deberá contener el número de dictamen o similar | D32: =IF(E32="Justificado",0,1) -> 1 | E32: 1
C34: Criterios Adjetivos LTG 2018 - LTG 2020 (DOF 28/12/20)
C36: Criterio | E36: Valoración | F36: Tipo | G36: Observaciones, Recomendaciones y/o Requerimientos
C37: Criterio 15. Periodo de actualización de la información: trimestral. En su caso, 15 días hábiles después de la aprobación de alguna modificación a la estructura orgánica | D37: =IF(E37="Justificado",0,1) -> 1 | E37: 1
C38: Criterio 16. La información publicada deberá estar actualizada al periodo que corresponde, de acuerdo con la Tabla de actualización y conservación de la información | D38: 1 | E38: 1
C39: Criterio 17.Conservar en el sitio de Internet: información vigente | D39: 1 | E39: 1
C40: Criterio 18. Área(s) responsable(s) genera(n), posee(n), publica(n) y actualiza(n) la información. | D40: 1 | E40: 1
C41: Criterio 19. Fecha de actualización de la información publicada con el formato día/mes/año | D41: 1 | E41: 1
C42: Criterio 20. Fecha de validación de la información publicada con el formato día/mes/año | D42: 1 | E42: 1
C43: Criterio 21. Nota. Este criterio se cumple en caso de que sea necesario que el sujeto obligado incluya alguna aclaración relativa a la información publicada y/o explicación por la falta de información | D43: 1 | E43: 1
C44: Criterio 22. La información publicada se organiza mediante los formatos 2ª y 2b, en el que se incluyen todos los campos especificados en los criterios sustantivos de contenido | D44: 1 | E44: 1
C45: Criterio 23. El soporte de la información permite su reutilización | D45: 1 | E45: 1
D53: 2017 | E53: 2018
C54: CS | D54: NA | E54: =IF(Aplicabilidad!G13<>"SI","NA",SUM(E19:E32)/SUM(D19:D32)) -> 100.00%
C55: CA | D55: NA | E55: =IF(Aplicabilidad!G13<>"SI","NA",SUM(E37:E45)/SUM(D37:D45)) -> 100.00%
C56: OBLIGACIÓN | D56: NA | E56: =IF(Aplicabilidad!G13<>"SI","NA",E54*0.6+E55*0.4) -> 100.00%

Sheet Art 74_III
C1: =IF(Aplicabilidad!E2="","",Aplicabilidad!E2) -> Consejería Jurídica
B3: Códigos de valoración : Cumplió totalmente = 1; Cumplió parcialmente = 0.5; No cumplió = 0; Justificado = Justificado
B5: Art. 74 - Fracción III. Facultades de cada Área
C7: Fecha de Inicio de la Verificación: | G7: Fecha de Término de la verificación
C8: =IF(Resultados!$C$7="","",Resultados!$C$7) -> 2021-07-07 | D8: 2018-05-25 | G8: =IF(Resultados!G7="","",Resultados!G7) -> 2021-07-08
C10: Criterios Sustantivos | E10: =IF(Aplicabilidad!G14<>"SI","NA",(+SUM(E19:E24))/(+SUM(D19:D24))) -> 100%
C11: Criterios Adjetivos | E11: =IF(Aplicabilidad!G14<>"SI","NA",(+SUM(E29:E37))/(+SUM(D29:D37))) -> 100%
C12: Obligación | E12: =IF(Aplicabilidad!G14<>"SI","NA",E10*0.6+E11*0.4) -> 100.00%
C16: Criterios Sustantivos de contenido LTG 2018 - LTG 2020 (DOF 28/12/20) | D16: =COUNTA(F19:F37) -> 1
C18: Criterio | E18: Valoración | F18: Tipo | G18: Observaciones, Recomendaciones y/o Requerimientos
C19: Criterio 1. Ejercicio | D19: =IF(E19="Justificado",0,1) -> 1 | E19: 1
C20: Criterio 2. Periodo que se informa (fecha de inicio y fecha de término con el formato día/mes/año) | D20: =IF(E20="Justificado",0,1) -> 1 | E20: 1
C21: Criterio 3. Denominación del área (de acuerdo con el catálogo que en su caso regule la actividad del sujeto obligado) | D21: 1 | E21: 1
C22: Criterio 4.Denominación de la norma en la que se establecen sus facultades y el fundamento legal (artículo y/o fracción) (Criterio Modificado DOF 28/12/2020) | D22: 1 | E22: 1
D23: =IF(E23="Justificado",0,1) -> 0 | E23: Justificado
C24: Criterio 5. Hipervínculo al fragmento del reglamento interior, estatuto orgánico o normatividad equivalente en el que se observen las facultades que correspondan a cada área | D24: =IF(E24="Justificado",0,1) -> 1 | E24: 1
C26: Criterios Adjetivos LTG 2018 - LTG 2020 (DOF 28/12/20)
C28: Criterio | E28: Valoración | F28: Tipo | G28: Observaciones, Recomendaciones y/o Requerimientos
C29: Criterio 7. Periodo de actualización de la información: trimestral. En su caso, 15 días hábiles después de alguna modificación | D29: =IF(E29="Justificado",0,1) -> 1 | E29: 1
C30: Criterio 8. La información publicada deberá estar actualizada al periodo que corresponde, de acuerdo con la Tabla de actualización y conservación de la información | D30: 1 | E30: 1
C31: Criterio 9. Conservar en el sitio de Internet: información vigente | D31: 1 | E31: 1
C32: Criterio 10. Área(s) responsable(s) que genera(n), posee(n), publica(n) y actualiza(n) la información | D32: 1 | E32: 1
C33: Criterio 11. Fecha de actualización de la información publicada con el formato día/mes/año | D33: 1 | E33: 1
C34: Criterio 12. Fecha de validación de la información publicada con el formato día/mes/año | D34: 1 | E34: 1
C35: Criterio 13. Nota. Este criterio se cumple en caso de que sea necesario que el sujeto obligado incluya alguna aclaración relativa a la información publicada y/o explicación por la falta de información. | D35: 1 | E35: 1
C36: Criterio 14. La información publicada se organiza mediante el formato 3, en el que se incluyen todos los campos especificados en los criterios sustantivos de contenido | D36: 1 | E36: 1
C37: Criterio 15. El soporte de la información permite su reutilización | D37: 1 | E37: 1
D45: 2017 | E45: 2018
C46: CS | D46: NA | E46: =IF(Aplicabilidad!G14<>"SI","NA",SUM(E19:E24)/SUM(D19:D24)) -> 100.00%
C47: CA | D47: NA | E47: =IF(Aplicabilidad!G14<>"SI","NA",SUM(E29:E37)/SUM(D29:D37)) -> 100.00%
C48: OBLIGACIÓN | D48: NA | E48: =IF(Aplicabilidad!G14<>"SI","NA",E46*0.6+E47*0.4) -> 100.00%

Sheet Art 74_IV (hidden)
C1: =IF(Aplicabilidad!E2="","",Aplicabilidad!E2) -> Consejería Jurídica
B3: Códigos de valoración : Cumplió totalmente = 1; Cumplió parcialmente = 0.5; No cumplió = 0; Justificado = Justificado
B5: Art. 74 - Fracción IV. Metas y objetivos
C7: Fecha de Inicio de la Verificación: | G7: Fecha de Término de la verificación
C8: =IF(Resultados!$C$7="","",Resultados!$C$7) -> 2021-07-07 | D8: 2018-05-25 | G8: =IF(Resultados!G7="","",Resultados!G7) -> 2021-07-08
C10: Criterios Sustantivos | E10: =IF(Aplicabilidad!G15<>"SI","NA",(SUM(E19:E25)+SUM(E33:E40))/(SUM(D19:D25)+SUM(D33:D40))) -> NA
C11: Criterios Adjetivos | E11: =IF(Aplicabilidad!G15<>"SI","NA",(SUM(E45:E53))/(SUM(D45:D53))) -> NA
C12: Obligación | E12: =IF(Aplicabilidad!G15<>"SI","NA",E10*0.6+E11*0.4) -> NA
C16: Criterios Sustantivos de contenido LTG 2015-2017 | D16: =COUNTA(F19:F26) -> 0
C18: Criterio | E18: Valoración | F18: Tipo | G18: Observaciones, Recomendaciones y/o Requerimientos
C19: Criterio 1. Ejercicio | D19: =IF(E19="Justificado",0,1) -> 1
C20: Criterio 2. Denominación del Área o Unidad responsable. Se pondrá entre paréntesis el nombre del documento que en su caso regule la actividad del sujeto obligado: reglamento interior / manual de organización / otro | D20: =IF(E20="Justificado",0,1) -> 1
C21: Criterio 3. Descripción breve y clara de cada objetivo | D21: 1
C22: Criterio 4. Cada objetivo deberá desplegar sus indicadores asociados | D22: 1
C23: Criterio 5. Cada indicador deberá desplegar la(s) meta(s) | D23: 1
C24: Criterio 6. Cada meta deberá especificar su unidad de medida | D24: =IF(E24="Justificado",0,1) -> 1
C25: Criterio 7. Hipervínculo al documento del o los programas operativos / presupuestario / sectorial / regionales / institucionales / especiales / de trabajo y/o anuales, según corresponda en un formato que permita la reutilización de la información | D25: =IF(E25="Justificado",0,1) -> 1
C30: Criterios Sustantivos de contenido LTG 2018 | D30: =COUNTA(F33:F53) -> 1
C32: Criterio | E32: Valoración | F32: Tipo | G32: Observaciones, Recomendaciones y/o Requerimientos
C33: Criterio 1. Ejercicio | D33: =IF(E33="Justificado",0,1) -> 1
C34: Criterio 2. Periodo que se informa (fecha de inicio y fecha de término con el formato día/mes/año) | D34: =IF(E34="Justificado",0,1) -> 1
C35: Criterio 3. Denominación del área | D35: 1
C36: Criterio 4. Descripción breve y clara de cada objetivo | D36: 1
C37: Criterio 5. Por cada objetivo, se publicarán los indicadores asociados | D37: 1
C38: Criterio 6. Cada indicador deberá señalar la(s) meta(s) | D38: 1
C39: Criterio 7. Cada meta deberá especificar su unidad de medida | D39: =IF(E39="Justificado",0,1) -> 1
C40: Criterio 8. Hipervínculo al documento del o los programas operativos, presupuestarios, sectoriales, regionales, institucionales, especiales, de trabajo y/o anuales; según corresponda, en un formato que permita la reutilización de la información | D40: =IF(E40="Justificado",0,1) -> 1
C42: Criterios Adjetivos LTG 2018
C44: Criterio | E44: Valoración | F44: Tipo | G44: Observaciones, Recomendaciones y/o Requerimientos
C45: Criterio 9. Periodo de actualización de la información: anual, durante el primer trimestre del ejercicio en curso | D45: =IF(E45="Justificado",0,1) -> 1
C46: Criterio 10. La información publicada deberá estar actualizada al periodo que corresponde, de acuerdo con la Tabla de actualización y conservación de la información | D46: 1
C47: Criterio 11. Conservar en el sitio de Internet y a través de la Plataforma Nacional la información de acuerdo con la Tabla de actualización y conservación de la información | D47: 1
C48: Criterio 12. Área(s) responsable(s) que genera(n), posee(n), publica(n) y actualiza(n) la información | D48: 1
C49: Criterio 13. Fecha de actualización de la información publicada con el formato día/mes/año | D49: 1
C50: Criterio 14. Fecha de validación de la información publicada con el formato día/mes/año | D50: 1
C51: Criterio 15. Nota. Este criterio se cumple en caso de que sea necesario que el sujeto obligado incluya alguna aclaración relativa a la información publicada y/o explicación por la falta de información | D51: 1
C52: Criterio 16. La información publicada se organiza mediante el formato 4, en el que se incluyen todos los campos especificados en los criterios sustantivos de contenido | D52: 1
C53: Criterio 17. El soporte de la información permite su reutilización | D53: 1
D61: 2017 | E61: 2018
C62: CS | D62: =IF(Aplicabilidad!G15<>"SI","NA",SUM(E19:E25)/SUM(D19:D25)) -> NA | E62: =IF(Aplicabilidad!G15<>"SI","NA",SUM(E33:E40)/SUM(D33:D40)) -> NA
C63: CA | D63: =IF(Aplicabilidad!G15<>"SI","NA",SUM(#REF!)/SUM(#REF!)) -> NA | E63: =IF(Aplicabilidad!G15<>"SI","NA",SUM(E45:E53)/SUM(D45:D53)) -> NA
C64: OBLIGACIÓN | D64: =IF(Aplicabilidad!G15<>"SI","NA",D62*0.6+D63*0.4) -> NA | E64: =IF(Aplicabilidad!G15<>"SI","NA",E62*0.6+E63*0.4) -> NA

Sheet Art 74_V (hidden)
C1: =IF(Aplicabilidad!E2="","",Aplicabilidad!E2) -> Consejería Jurídica
B3: Códigos de valoración : Cumplió totalmente = 1; Cumplió parcialmente = 0.5; No cumplió = 0; Justificado = Justificado
B5: Art. 74 - Fracción V. Indicadores interés público
C7: Fecha de Inicio de la Verificación: | G7: Fecha de Término de la verificación
C8: =IF(Resultados!$C$7="","",Resultados!$C$7) -> 2021-07-07 | D8: 2018-05-25 | G8: =IF(Resultados!G7="","",Resultados!G7) -> 2021-07-08
C10: Criterios Sustantivos | E10: =IF(Aplicabilidad!G16<>"SI","NA",(SUM(E19:E33)+SUM(E41:E55))/(SUM(D19:D33)+SUM(D41:D55))) -> NA
C11: Criterios Adjetivos | E11: =IF(Aplicabilidad!G16<>"SI","NA",(SUM(E60:E68))/(SUM(D60:D68))) -> NA
C12: Obligación | E12: =IF(Aplicabilidad!G16<>"SI","NA",E10*0.6+E11*0.4) -> NA
C16: Criterios Sustantivos de contenido LTG 2015-2017 | D16: =COUNTA(F19:F34) -> 0
C18: Criterio | E18: Valoración | F18: Tipo | G18: Observaciones, Recomendaciones y/o Requerimientos
C19: Criterio 1. Ejercicio | D19: =IF(E19="Justificado",0,1) -> 1
C20: Criterio 2. Periodo que se informa | D20: =IF(E20="Justificado",0,1) -> 1
C21: Criterio 3. Descripción breve y clara de cada objetivo | D21: 1
C22: Criterio 4. Nombre del(os) indicador(es) | D22: 1
C23: Criterio 5. La(s) dimensión(es) a medir | D23: 1
C24: Criterio 6. Definición del indicador, es decir, explicación breve y clara respecto de lo que debe medir el indicador | D24: 1
C25: Criterio 7. Método de cálculo, es decir, las variables que intervienen en la fórmula. Se deberá especificar el significado de las siglas y/o abreviaturas | D25: 1
C26: Criterio 8. Unidad de medida | D26: 1
C27: Criterio 9. Frecuencia de medición | D27: 1
C28: Criterio 10. Línea base | D28: 1
C29: Criterio 11. Metas programadas | D29: 1
C30: Criterio 12. Metas ajustadas, en su caso | D30: 1
C31: Criterio 13. Avance de las metas al periodo que se informa | D31: 1
C32: Criterio 14. Sentido del indicador (Ascendente/Descendente) | D32: =IF(E32="Justificado",0,1) -> 1
C33: Criterio 15. Fuente de información (especificar la fuente de información que alimenta al indicador, por lo menos integrando: nombre de ésta e institución responsable de su medición) | D33: =IF(E33="Justificado",0,1) -> 1
C38: Criterios Sustantivos de contenido LTG 2018 | D38: =COUNTA(F41:F68) -> 1
C40: Criterio | E40: Valoración | F40: Tipo | G40: Observaciones, Recomendaciones y/o Requerimientos
C41: Criterio 1. Ejercicio | D41: =IF(E41="Justificado",0,1) -> 1
C42: Criterio 2. Periodo que se informa (fecha de inicio y fecha de término con el formato día/mes/año) | D42: =IF(E42="Justificado",0,1) -> 1
C43: Criterio 3. Descripción breve y clara de cada objetivo | D43: 1
C44: Criterio 4. Nombre del(os) indicador(es) | D44: 1
C45: Criterio 5. Dimensión(es) a medir | D45: 1
C46: Criterio 6. Definición del indicador, es decir, explicación breve y clara respecto de lo que debe medir el indicador | D46: 1
C47: Criterio 7. Método de cálculo, es decir, las variables que intervienen en la fórmula. Se deberá especificar el significado de las siglas y/o abreviaturas | D47: 1
C48: Criterio 8. Unidad de medida | D48: 1
C49: Criterio 9. Frecuencia de medición | D49: 1
C50: Criterio 10. Línea base (Punto de partida para evaluar y dar seguimiento al indicador) | D50: 1
C51: Criterio 11. Metas programadas | D51: 1
C52: Criterio 12. Metas ajustadas, en su caso | D52: 1
C53: Criterio 13. Avance de las metas al periodo que se informa | D53: 1
C54: Criterio 14. Sentido del indicador (catálogo): Ascendente/ Descendente | D54: =IF(E54="Justificado",0,1) -> 1
C55: Criterio 15. Fuente de información (especificar la fuente de información que alimenta al indicador, por lo menos integrando: nombre de ésta, e institución responsable de su medición) | D55: =IF(E55="Justificado",0,1) -> 1
C57: Criterios Adjetivos LTG 2018
C59: Criterio | E59: Valoración | F59: Tipo | G59: Observaciones, Recomendaciones y/o Requerimientos
C60: Criterio 16. Periodo de actualización de la información: trimestral | D60: =IF(E60="Justificado",0,1) -> 1
C61: Criterio 17. La información publicada deberá estar actualizada al periodo que corresponde de acuerdo con la Tabla de actualización y conservación de la información | D61: 1
C62: Criterio 18. Conservar en el sitio de Internet y a través de la Plataforma Nacional la información de acuerdo con la Tabla de actualización y conservación de la información | D62: 1
C63: Criterio 19. Área(s) responsable(s) que genera(n) posee(n), publica(n) y/o actualiza(n)la información | D63: 1
C64: Criterio 20. Fecha de actualización de la información publicada con el formato día/mes/año | D64: 1
C65: Criterio 21. Fecha de validación de la información publicada con el formato día/mes/año | D65: 1
C66: Criterio 22. Nota. Este criterio se cumple en caso de que sea necesario que el sujeto obligado incluya alguna aclaración relativa a la información publicada y/o explicación por la falta de información | D66: 1
C67: Criterio 23. La información publicada se organiza mediante el formato 5, en el que se incluyen todos los campos especificados en los criterios sustantivos de contenido | D67: 1
C68: Criterio 24. El soporte de la información permite su reutilización | D68: 1
D76: 2017 | E76: 2018
C77: CS | D77: =IF(Aplicabilidad!G16<>"SI","NA",SUM(E19:E33)/SUM(D19:D33)) -> NA | E77: =IF(Aplicabilidad!G16<>"SI","NA",SUM(E41:E55)/SUM(D41:D55)) -> NA
C78: CA | D78: =IF(Aplicabilidad!G16<>"SI","NA",SUM(#REF!)/SUM(#REF!)) -> NA | E78: =IF(Aplicabilidad!G16<>"SI","NA",SUM(E60:E68)/SUM(D60:D68)) -> NA
C79: OBLIGACIÓN | D79: =IF(Aplicabilidad!G16<>"SI","NA",D77*0.6+D78*0.4) -> NA | E79: =IF(Aplicabilidad!G16<>"SI","NA",E77*0.6+E78*0.4) -> NA

Sheet Art 74_VI (hidden)
C1: =IF(Aplicabilidad!E2="","",Aplicabilidad!E2) -> Consejería Jurídica
B3: Códigos de valoración : Cumplió totalmente = 1; Cumplió parcialmente = 0.5; No cumplió = 0; Justificado = Justificado
B5: Art. 74 - Fracción VI. Indicadores de resultados
C7: Fecha de Inicio de la Verificación: | G7: Fecha de Término de la verificación
C8: =IF(Resultados!$C$7="","",Resultados!$C$7) -> 2021-07-07 | D8: 2018-05-25 | G8: =IF(Resultados!G7="","",Resultados!G7) -> 2021-07-08
C10: Criterios Sustantivos | E10: =IF(Aplicabilidad!G17<>"SI","NA",(SUM(E19:E34)+SUM(E42:E57))/(SUM(D19:D34)+SUM(D42:D57))) -> NA
C11: Criterios Adjetivos | E11: =IF(Aplicabilidad!G17<>"SI","NA",(SUM(E62:E70))/(SUM(D62:D70))) -> NA
C12: Obligación | E12: =IF(Aplicabilidad!G17<>"SI","NA",E10*0.6+E11*0.4) -> NA
C16: Criterios Sustantivos de contenido LTG 2015-2017 | D16: =COUNTA(F19:F35) -> 0
C18: Criterio | E18: Valoración | F18: Tipo | G18: Observaciones, Recomendaciones y/o Requerimientos
C19: Criterio 1. Ejercicio | D19: =IF(E19="Justificado",0,1) -> 1
C20: Criterio 2. Periodo que se informa | D20: =IF(E20="Justificado",0,1) -> 1
C21: Criterio 3. Nombre del programa o concepto al que corresponde el indicador | D21: 1
C22: Criterio 4. Descripción breve y clara de cada objetivo institucional | D22: 1
C23: Criterio 5. Nombre del(os) indicador(es) | D23: 1
C24: Criterio 6. Dimensión(es) a medir (eficacia, eficiencia, calidad y economía) | D24: 1
C25: Criterio 7. Definición del indicador, es decir, explicación breve y clara respecto de lo que éste debe medir | D25: 1
C26: Criterio 8. Método de cálculo con las variables que intervienen en la fórmula, se deberá incluir el significado de las siglas y/o abreviaturas | D26: 1
C27: Criterio 9. Unidad de medida | D27: 1
C28: Criterio 10. Frecuencia de medición | D28: 1
C29: Criterio 11. Línea base | D29: 1
C30: Criterio 12. Metas programadas | D30: 1
C31: Criterio 13. Metas ajustadas que existan, en su caso | D31: 1
C32: Criterio 14. Avance de metas | D32: 1
C33: Criterio 15. Sentido del indicador (Ascendente/Descendente) | D33: =IF(E33="Justificado",0,1) -> 1
C34: Criterio 16. Fuentes de información (especificar la fuente de información que alimenta al indicador, por lo menos integrando: nombre de ésta e institución responsable de la fuente) | D34: =IF(E34="Justificado",0,1) -> 1
C39: Criterios Sustantivos de contenido LTG 2018 | D39: =COUNTA(F42:F70) -> 1
C41: Criterio | E41: Valoración | F41: Tipo | G41: Observaciones, Recomendaciones y/o Requerimientos
C42: Criterio 1. Ejercicio | D42: =IF(E42="Justificado",0,1) -> 1
C43: Criterio 2. Periodo que se informa (fecha de inicio y fecha de término con el formato día/mes/año) | D43: =IF(E43="Justificado",0,1) -> 1
C44: Criterio 3. Nombre del programa o concepto al que corresponde el indicador | D44: 1
C45: Criterio 4. Descripción breve y clara de cada objetivo institucional | D45: 1
C46: Criterio 5. Nombre del(os) indicador(es) | D46: 1
C47: Criterio 6. Dimensión(es) a medir. Por ejemplo: eficacia, eficiencia, calidad y economía | D47: 1
C48: Criterio 7. Definición del indicador, es decir, explicación breve y clara respecto de lo que éste debe medir | D48: 1
C49: Criterio 8. Método de cálculo con las variables que intervienen en la fórmula, se deberá incluir el significado de las siglas y/o abreviaturas | D49: 1
C50: Criterio 9. Unidad de medida | D50: 1
C51: Criterio 10. Frecuencia de medición | D51: 1
C52: Criterio 11. Línea base (Punto de partida para evaluar y dar seguimiento al indicador) | D52: 1
C53: Criterio 12. Metas programadas | D53: 1
C54: Criterio 13. Metas ajustadas que existan, en su caso | D54: 1
C55: Criterio 14. Avance de metas | D55: 1
C56: Criterio 15. Sentido del indicador (catálogo): Ascendente/Descendente | D56: =IF(E56="Justificado",0,1) -> 1
C57: Criterio 16. Fuentes de información (especificar la fuente de información que alimenta al indicador, por lo menos integrando: nombre de ésta e institución responsable de la fuente) | D57: =IF(E57="Justificado",0,1) -> 1
C59: Criterios Adjetivos LTG 2018
C61: Criterio | E61: Valoración | F61: Tipo | G61: Observaciones, Recomendaciones y/o Requerimientos
C62: Criterio 17. Periodo de actualización de la información: trimestral | D62: =IF(E62="Justificado",0,1) -> 1
C63: Criterio 18. La información publicada deberá estar actualizada al periodo que corresponde de acuerdo con la Tabla de actualización y conservación de la información | D63: 1
C64: Criterio 19. Conservar en el sitio de Internet y a través de la Plataforma Nacional la información de acuerdo con la Tabla de actualización y conservación de la información | D64: 1
C65: Criterio 20. Área(s) responsable(s) que genera(n), posee(n), publica(n) y/o actualiza(n)la información | D65: 1
C66: Criterio 21. Fecha de actualización de la información publicada con el formato día/mes/año | D66: 1
C67: Criterio 22. Fecha de validación de la información publicada con el formato día/mes/año | D67: 1
C68: Criterio 23. Nota. Este criterio se cumple en caso de que sea necesario que el sujeto obligado incluya alguna aclaración relativa a la información publicada y/o explicación por la falta de información | D68: 1
C69: Criterio 24. La información publicada se organiza mediante el formato 6, en el que se incluyen todos los campos especificados en los criterios sustantivos de contenido | D69: 1
C70: Criterio 25. El soporte de la información permite su reutilización | D70: 1
D78: 2017 | E78: 2018
C79: CS | D79: =IF(Aplicabilidad!G17<>"SI","NA",SUM(E19:E34)/SUM(D19:D34)) -> NA | E79: =IF(Aplicabilidad!G17<>"SI","NA",SUM(E42:E57)/SUM(D42:D57)) -> NA
C80: CA | D80: =IF(Aplicabilidad!G17<>"SI","NA",SUM(#REF!)/SUM(#REF!)) -> NA | E80: =IF(Aplicabilidad!G17<>"SI","NA",SUM(E62:E70)/SUM(D62:D70)) -> NA
C81: OBLIGACIÓN | D81: =IF(Aplicabilidad!G17<>"SI","NA",D79*0.6+D80*0.4) -> NA | E81: =IF(Aplicabilidad!G17<>"SI","NA",E79*0.6+E80*0.4) -> NA

Sheet Art 74_VII
C1: =IF(Aplicabilidad!E2="","",Aplicabilidad!E2) -> Consejería Jurídica
B3: Códigos de valoración : Cumplió totalmente = 1; Cumplió parcialmente = 0.5; No cumplió = 0; Justificado = Justificado
B5: Art. 74 - Fracción VII. Directorio
C7: Fecha de Inicio de la Verificación: | G7: Fecha de Término de la verificación
C8: =IF(Resultados!$C$7="","",Resultados!$C$7) -> 2021-07-07 | D8: 2018-05-25 | G8: =IF(Resultados!G7="","",Resultados!G7) -> 2021-07-08
C10: Criterios Sustantivos | E10: =IF(Aplicabilidad!G18<>"SI","NA",(+SUM(E19:E28))/(+SUM(D19:D28))) -> 100%
C11: Criterios Adjetivos | E11: =IF(Aplicabilidad!G18<>"SI","NA",(+SUM(E33:E41))/(+SUM(D33:D41))) -> 100%
C12: Obligación | E12: =IF(Aplicabilidad!G18<>"SI","NA",E10*0.6+E11*0.4) -> 100.00%
C16: Criterios Sustantivos de contenido LTG 2018 | D16: =COUNTA(F19:F41) -> 1
C18: Criterio | E18: Valoración | F18: Tipo | G18: Observaciones, Recomendaciones y/o Requerimientos
C19: Criterio 1. Ejercicio | D19: =IF(E19="Justificado",0,1) -> 1 | E19: 1
C20: Criterio 2. Periodo que se informa (fecha de inicio y fecha de término con el formato día/mes/año) | D20: =IF(E20="Justificado",0,1) -> 1 | E20: 1
C21: Criterio 3. Clave o nivel del puesto (de acuerdo con el catálogo que regule la actividad del sujeto obligado) | D21: 1 | E21: 1
C22: Criterio 4. Denominación del cargo (de conformidad con nombramiento otorgado) | D22: 1 | E22: 1
C23: Criterio 5. Nombre del servidor(a) público(a)(nombre[s], primer apellido, segundo apellido), integrante y/o miembro del sujeto obligado, y/o persona que desempeñe un empleo, cargo o comisión y/o ejerza actos de autoridad. En su caso, incluir una nota que especifique el motivo por el cual no existe servidor(a) público(a) ocupando el cargo, por ejemplo: Vacante | D23: 1 | E23: 1
C24: Criterio 6. Área de adscripción (de acuerdo con el catálogo que, en su caso, regule la actividad del sujeto obligado) | D24: 1 | E24: 1
C25: Criterio 7. Fecha de alta en el cargo con el formato día/mes/año | D25: 1 | E25: 1
C26: Criterio 8. Domicilio para recibir correspondencia oficial (tipo de vialidad [catálogo], nombre de vialidad [calle], número exterior, número interior [en su caso], tipo de asentamiento humano [catálogo], nombre de asentamiento humano [colonia], clave de la localidad, nombre de la localidad, clave del municipio, nombre del municipio o delegación, clave de la entidad federativa, nombre de la entidad federativa [catálogo], código postal) | D26: 1 | E26: 1
C27: Criterio 9. Número(s) de teléfono(s) oficial(es) y extensión (es) | D27: =IF(E27="Justificado",0,1) -> 1 | E27: 1
C28: Criterio 10. Correo electrónico oficial, en su caso | D28: =IF(E28="Justificado",0,1) -> 1 | E28: 1
C30: Criterios Adjetivos LTG 2018
C32: Criterio | E32: Valoración | F32: Tipo | G32: Observaciones, Recomendaciones y/o Requerimientos
C33: Criterio 11. Periodo de actualización de la información: trimestral. En su caso, 15 días hábiles después de alguna modificación | D33: =IF(E33="Justificado",0,1) -> 1 | E33: 1
C34: Criterio 12. La información publicada deberá estar actualizada al periodo que corresponde de acuerdo con la Tabla de actualización y conservación de la información | D34: 1 | E34: 1
C35: Criterio 13.Conservar en sitio de Internet: información vigente | D35: 1 | E35: 1
C36: Criterio 14. Área(s) responsable(s)que genera(n), posee(n), publica(n) y actualiza(n) la información | D36: 1 | E36: 1
C37: Criterio 15. Fecha de actualización de la información publicada con el formato día/mes/año | D37: 1 | E37: 1
C38: Criterio 16. Fecha de validación de la información publicada con el formato día/mes/año | D38: 1 | E38: 1
C39: Criterio 17. Nota. Este criterio se cumple en caso de que sea necesario que el sujeto obligado incluya alguna aclaración relativa a la información publicada y/o explicación por la falta de información | D39: 1 | E39: 1
C40: Criterio 18. La información publicada se organiza mediante el formato 7, en el que se incluyen todos los campos especificados en los criterios sustantivos de contenido | D40: 1 | E40: 1
C41: Criterio 19. El soporte de la información permite su reutilización | D41: 1 | E41: 1
D49: 2017 | E49: 2018
C50: CS | D50: NA | E50: =IF(Aplicabilidad!G18<>"SI","NA",SUM(E19:E28)/SUM(D19:D28)) -> 100.00%
C51: CA | D51: NA | E51: =IF(Aplicabilidad!G18<>"SI","NA",SUM(E33:E41)/SUM(D33:D41)) -> 100.00%
C52: OBLIGACIÓN | D52: NA | E52: =IF(Aplicabilidad!G18<>"SI","NA",E50*0.6+E51*0.4) -> 100.00%

Sheet Art 74_VIII
C1: =IF(Aplicabilidad!E2="","",Aplicabilidad!E2) -> Consejería Jurídica
B3: Códigos de valoración : Cumplió totalmente = 1; Cumplió parcialmente = 0.5; No cumplió = 0; Justificado = Justificado
B5: Art. 74 - Fracción VIII. Remuneración servidores públicos
C7: Fecha de Inicio de la Verificación: | G7: Fecha de Término de la verificación
C8: =IF(Resultados!$C$7="","",Resultados!$C$7) -> 2021-07-07 | D8: 2018-05-25 | G8: =IF(Resultados!G7="","",Resultados!G7) -> 2021-07-08
C10: Criterios Sustantivos | E10: =IF(Aplicabilidad!G19<>"SI","NA",(SUM(E19:E38)+SUM(E46:E120))/(SUM(D19:D38)+SUM(D46:D120))) -> 100%
C11: Criterios Adjetivos | E11: =IF(Aplicabilidad!G19<>"SI","NA",(SUM(E132:E141))/(SUM(D132:D141))) -> 100%
C12: Obligación | E12: =IF(Aplicabilidad!G19<>"SI","NA",E10*0.6+E11*0.4) -> 100.00%
C16: Criterios Sustantivos de contenido LTG 2018 - LTG 2020 (DOF 28/12/20) | D16: =COUNTA(F19:F39) -> 0
C18: Criterio | E18: Valoración | F18: Tipo | G18: Observaciones, Recomendaciones y/o Requerimientos
C19: Criterio 1. Tipo de integrante del sujeto obligado (funcionario, servidor[a] público[a] de base, de confianza, integrantes, miembros del sujeto obligado y/o toda persona que desempeñe un empleo, cargo o comisión y/o ejerza actos de autoridad, empleado, representante popular, miembro del poder judicial, miembro de órgano autónomo [especificar denominación], personal de confianza, prestador de servicios profesionales, otro [especificar denominación]) | D19: =IF(E19="Justificado",0,1) -> 0 | E19: Justificado
C20: Criterio 2. Clave o nivel del puesto (en su caso, de acuerdo con el catálogo que regule la actividad del sujeto obligado) | D20: =IF(E20="Justificado",0,1) -> 0 | E20: Justificado
C21: Criterio 3. Denominación o descripción del puesto (de acuerdo con el catálogo que en su caso regule la actividad del sujeto obligado) | D21: 0 | E21: Justificado
C22: Criterio 4. Denominación del cargo (de conformidad con nombramiento otorgado) | D22: 0 | E22: Justificado
C23: Criterio 5. Área de adscripción (de acuerdo con el catálogo de unidades administrativas o puestos, si así corresponde) | D23: 0 | E23: Justificado
C24: Criterio 6. Nombre completo del(a) servidor(a) público(a) y/o toda persona que desempeñe un empleo, cargo o comisión y/o ejerzan actos de autoridad (nombre [s], primer apellido, segundo apellido) | D24: 0 | E24: Justificado
C25: Criterio 7. Sexo: Femenino/Masculino | D25: 0 | E25: Justificado
C26: Criterio 8. Remuneración mensual bruta (se refiere a las percepciones totales sin descuento alguno): Pesos mexicanos / Otra moneda (especificar nombre y nacionalidad de ésta) | D26: 0 | E26: Justificado
C27: Criterio 9. Remuneración mensual neta (se refiere a la remuneración mensual bruta menos las deducciones genéricas previstas por ley: ISR, ISSSTE, otra [especificar]) (Pesos mexicanos / Otra moneda [especificar nombre y nacionalidad de ésta]) | D27: 0 | E27: Justificado
C28: Criterio 10. Percepciones en efectivo o en especie y adicionales, así como su periodicidad (Pesos mexicanos / Otra moneda [especificar nombre y nacionalidad de ésta]) | D28: 0 | E28: Justificado
C29: Criterio 11. Ingresos y sistemas de compensación, así como su periodicidad (Pesos mexicanos / Otra moneda [especificar nombre y nacionalidad de ésta]) | D29: 0 | E29: Justificado
C30: Criterio 12. Gratificaciones y su periodicidad (Pesos mexicanos / Otra moneda [especificar nombre y nacionalidad de ésta]) | D30: 0 | E30: Justificado
C31: Criterio 13. Primas y su periodicidad (Pesos mexicanos / Otra moneda [especificar nombre y nacionalidad de ésta]) | D31: 0 | E31: Justificado
C32: Criterio 14. Comisiones y su periodicidad (Pesos mexicanos / Otra moneda [especificar nombre y nacionalidad de ésta]) | D32: 0 | E32: Justificado
C33: Criterio 15. Dietas y su periodicidad (Pesos mexicanos / Otra moneda [especificar nombre y nacionalidad de ésta]) | D33: 0 | E33: Justificado
C34: Criterio 16. Bonos y su periodicidad (Pesos mexicanos / Otra moneda [especificar nombre y nacionalidad de ésta]) | D34: 0 | E34: Justificado
C35: Criterio 17. Estímulos y su periodicidad (Pesos mexicanos / Otra moneda [especificar nombre y nacionalidad de ésta]) | D35: 0 | E35: Justificado
C36: Criterio 18. Apoyos económicos y su periodicidad (Pesos mexicanos / Otra moneda [especificar nombre y nacionalidad de ésta]) | D36: 0 | E36: Justificado
C37: Criterio 19. Prestaciones económicas y/o en especie que se otorguen por tipo de trabajador y de conformidad con la normatividad correspondiente (Pesos mexicanos / Otra moneda [especificar nombre y nacionalidad de ésta]) | D37: =IF(E37="Justificado",0,1) -> 0 | E37: Justificado
C38: Criterio 20. Otro tipo de percepción (Pesos mexicanos / Otra moneda [especificar nombre y nacionalidad de ésta]) | D38: =IF(E38="Justificado",0,1) -> 0 | E38: Justificado
C43: Criterios Sustantivos de contenido LTG 2018 - LTG 2020 (DOF 28/12/20) | D43: =COUNTA(F46:F141) -> 1
C45: Criterio | E45: Valoración | F45: Tipo | G45: Observaciones, Recomendaciones y/o Requerimientos
C46: Criterio 1. Ejercicio | D46: =IF(E46="Justificado",0,1) -> 1 | E46: 1
C47: Criterio 2. Periodo que se informa (fecha de inicio y fecha de término con el formato día/mes/año) | D47: =IF(E47="Justificado",0,1) -> 1 | E47: 1
C48: Criterio 3. Tipo de integrante del sujeto obligado (catálogo): funcionario/servidor[a] público[a]/ servidor[a] público[a] eventual/integrante/empleado/representante popular/ miembro del poder judicial/miembro de órgano autónomo/personal de confianza/prestador de servicios profesionales/otro | D48: 1 | E48: 1
C49: Criterio 4. Clave o nivel del puesto (en su caso, de acuerdo con el catálogo que regule la actividad del sujeto obligado) | D49: 1 | E49: 1
C50: Criterio 5. Denominación o descripción del puesto (de acuerdo con el catálogo que en su caso regule la actividad del sujeto obligado) | D50: 1 | E50: 1
C51: Criterio 6. Denominación del cargo (de conformidad con nombramiento otorgado) | D51: 1 | E51: 1
C52: Criterio 7. Área de adscripción (de acuerdo con el catálogo de áreas o puestos, si así corresponde) | D52: 1 | E52: 1
C53: Criterio 8. Nombre completo del(a) servidor(a) público(a) y/o toda persona que desempeñe un empleo, cargo o comisión y/o ejerzan actos de autoridad (nombre [s], primer apellido, segundo apellido) | D53: 1 | E53: 1
C54: Criterio 9. Sexo (catálogo): Femenino/Masculino | D54: 1 | E54: 1
C55: Criterio 10. Monto de la remuneración mensual bruta, de conformidad al Tabulador de sueldos y salarios que corresponda (se refiere a las percepciones totales sin descuento alguno) | D55: 1 | E55: 1
C56: Criterio 11. Tipo de moneda de la remuneración bruta. Por ejemplo: Peso, Dólar, Euro, Libra, Yen | D56: 1 | E56: 1
C57: Criterio 12. Monto de la remuneración mensual neta, de conformidad al Tabulador de sueldos y salarios que corresponda (se refiere a la remuneración mensual bruta menos las deducciones genéricas previstas por ley: ISR, ISSSTE, otra) | D57: 1 | E57: 1
C58: Criterio 13. Tipo de moneda de la remuneración neta. Por ejemplo: Peso, Dólar, Euro, Libra, Yen | D58: 1 | E58: 1
C59: Criterio 14. Denominación de las percepciones adicionales en dinero | D59: 1 | E59: 1
C60: Criterio 15. Monto bruto de las percepciones adicionales en dinero | D60: 1 | E60: 1
C61: Criterio 16. Monto neto de las percepciones adicionales en dinero | D61: 1 | E61: 1
C62: Criterio 17. Tipo de moneda de las percepciones adicionales en dinero. Por ejemplo: Peso, Dólar, Euro, Libra, Yen | D62: 1 | E62: 1
C63: Criterio 18. Periodicidad de las percepciones adicionales en dinero | D63: 1 | E63: 1
C64: Criterio 19. Descripción de las percepciones adicionales en especie | D64: 1 | E64: 1
C65: Criterio 20. Periodicidad de las percepciones adicionales en especie | D65: 1 | E65: 1
C66: Criterio 21. Denominación de los ingresos | D66: 1 | E66: 1
C67: Criterio 22. Monto bruto de los ingresos | D67: 1 | E67: 1
C68: Criterio 23. Monto neto de los ingresos | D68: 1 | E68: 1
C69: Criterio 24. Tipo de moneda de los ingresos. Por ejemplo: Peso, Dólar, Euro, Libra, Yen | D69: 1 | E69: 1
C70: Criterio 25. Periodicidad de los ingresos | D70: 1 | E70: 1
C71: Criterio 26. Denominación de los sistemas de compensación | D71: 1 | E71: 1
C72: Criterio 27. Monto bruto de los sistemas de compensación | D72: 1 | E72: 1
C73: Criterio 28. Monto neto de los sistemas de compensación | D73: 1 | E73: 1
C74: Criterio 29. Tipo de moneda de los sistemas de compensación. Por ejemplo: Peso, Dólar, Euro, Libra, Yen | D74: 1 | E74: 1
C75: Criterio 30. Periodicidad de los sistemas de compensación | D75: 1 | E75: 1
C76: Criterio 31. Denominación de las gratificaciones | D76: 1 | E76: 1
C77: Criterio 32. Monto bruto de las gratificaciones | D77: 1 | E77: 1
C78: Criterio 33. Monto neto de las gratificaciones | D78: 1 | E78: 1
C79: Criterio 34. Tipo de moneda de las gratificaciones. Por ejemplo: Peso, Dólar, Euro, Libra, Yen | D79: 1 | E79: 1
C80: Criterio 35. Periodicidad de las gratificaciones | D80: 1 | E80: 1
C81: Criterio 36. Denominación de las primas | D81: 1 | E81: 1
C82: Criterio 37. Monto bruto de las primas | D82: 1 | E82: 1
C83: Criterio 38. Monto neto de las primas | D83: 1 | E83: 1
C84: Criterio 39. Tipo de moneda de las primas. Por ejemplo: Peso, Dólar, Euro, Libra, Yen | D84: 1 | E84: 1
C85: Criterio 40. Periodicidad de las primas | D85: 1 | E85: 1
C86: Criterio 41. Denominación de las comisiones | D86: 1 | E86: 1
C87: Criterio 42. Monto bruto de las comisiones | D87: 1 | E87: 1
C88: Criterio 43. Monto neto de las comisiones | D88: 1 | E88: 1
C89: Criterio 44. Tipo de moneda de las comisiones. Por ejemplo: Peso, Dólar, Euro, Libra, Yen | D89: 1 | E89: 1
C90: Criterio 45. Periodicidad de las comisiones | D90: 1 | E90: 1
C91: Criterio 46. Denominación de las dietas | D91: 1 | E91: 1
C92: Criterio 47. Monto bruto de las dietas | D92: 1 | E92: 1
C93: Criterio 48. Monto neto de las dietas | D93: 1 | E93: 1
C94: Criterio 49. Tipo de moneda de las dietas. Por ejemplo: Peso, Dólar, Euro, Libra, Yen | D94: 1 | E94: 1
C95: Criterio 50. Periodicidad de las dietas | D95: 1 | E95: 1
C96: Criterio 51. Denominación de los bonos | D96: 1 | E96: 1
C97: Criterio 52. Monto bruto de los bonos | D97: 1 | E97: 1
C98: Criterio 53. Monto neto de los bonos | D98: 1 | E98: 1
C99: Criterio 54. Tipo de moneda de los bonos. Por ejemplo: Peso, Dólar, Euro, Libra, Yen | D99: 1 | E99: 1
C100: Criterio 55. Periodicidad de los bonos | D100: 1 | E100: 1
C101: Criterio 56. Denominación de los estímulos | D101: 1 | E101: 1
C102: Criterio 57. Monto bruto de los estímulos | D102: 1 | E102: 1
C103: Criterio 58. Monto neto de los estímulos | D103: 1 | E103: 1
C104: Criterio 59. Tipo de moneda de los estímulos. Por ejemplo: Peso, Dólar, Euro, Libra, Yen | D104: 1 | E104: 1
C105: Criterio 60. Periodicidad de los estímulos | D105: 1 | E105: 1
C106: Criterio 61. Denominación de los apoyos económicos. Por ejemplo, la asistencia legislativa que cubre a los CC. Diputados en apoyo para el desempeño de las funciones legislativas | D106: 1 | E106: 1
C107: Criterio 62. Monto bruto de los apoyos económicos | D107: 1 | E107: 1
C108: Criterio 63. Monto neto de los apoyos económicos | D108: 1 | E108: 1
C109: Criterio 64. Tipo de moneda de los apoyos económicos. Por ejemplo: Peso, Dólar, Euro, Libra, Yen | D109: 1 | E109: 1
C110: Criterio 65. Periodicidad de los apoyos económicos | D110: 1 | E110: 1
C111: Criterio 66. Denominación de las prestaciones económicas. Por ejemplo, prestaciones de seguridad social, seguros y toda cantidad distinta del sueldo que el servidor público reciba en moneda circulante o en divisas, prevista en el nombramiento, en el contrato o en una disposición legal | D111: =IF(E111="Justificado",0,1) -> 1 | E111: 1
C112: Criterio 67. Monto bruto de las prestaciones económicas | D112: 1 | E112: 1
C113: Criterio 68. Monto neto de las prestaciones económicas | D113: 1 | E113: 1
C114: Criterio 69. Tipo de moneda de las prestaciones económicas. Por ejemplo: Peso, Dólar, Euro, Libra, Yen (especificar nombre) | D114: 1 | E114: 1
C115: Criterio 70. Periodicidad de las prestaciones económicas | D115: 1 | E115: 1
C116: Criterio 71. Descripción de las prestaciones en especie. Éstas podrán ser por ejemplo, todo beneficio que el servidor(a) público(a)reciba en bienes distintos de la moneda circulante. | D116: =IF(E116="Justificado",0,1) -> 1 | E116: 1
C117: Criterio 72. Periodicidad de las prestaciones en especie | D117: =IF(E117="Justificado",0,1) -> 1 | E117: 1
C118: Criterio 75. Ejercicio (Formato adicionado DOF 28/12/2020) | D118: =IF(E118="Justificado",0,1) -> 1 | E118: 1
C119: Criterio 74. Periodo que se informa (fecha de inicio y fecha de término con el formato día/mes/año) (Formato adicionado DOF 28/12/2020) | D119: 1 | E119: 1
C120: Criterio 73. Hipervínculo al/los tabulador/es de sueldos y salarios del sujeto obligado de conformidad con la normatividad aplicable. El tabulador deberá estar en un formato de datos abiertos (Formato adicionado DOF 28/12/2020) | D120: =IF(E120="Justificado",0,1) -> 1 | E120: 1
C129: Criterios Adjetivos LTG 2018 - LTG 2020 (DOF 28/12/20)
C131: Criterio | E131: Valoración | F131: Tipo | G131: Observaciones, Recomendaciones y/o Requerimientos
C132: Criterio 73 (LTG 2018 ). Periodo de actualización de la información: semestral. En caso de que exista alguna modificación antes de la conclusión del periodo, la información deberá actualizarse a más tardar en los 15 días hábiles posteriores. | D132: =IF(E132="Justificado",0,1) -> 1 | E132: 1
C133: Criterio 73. (LTG 2020 (DOF 28/12/2020) Periodo de actualización de la información: Trimestral. En caso de que exista alguna modificación antes de la conclusión del periodo, la información deberá actualizarse a más tardar en los 15 días hábiles posteriores. | D133: 1 | E133: 1
C134: Criterio 74. La información publicada deberá estar actualizada al periodo que corresponde de acuerdo con la Tabla de actualización y conservación de la información | D134: 1 | E134: 1
C135: Criterio 75. Conservar en el sitio de Internet y a través de la Plataforma Nacional la información Información del ejercicio en curso y la correspondiente al ejercicio inmediato anterior | D135: 1 | E135: 1
C136: Criterio 76. Área(s) responsable(s) que genera(n), posee(n), publica(n) y/o actualiza(n)la información | D136: 1 | E136: 1
C137: Criterio 77. Fecha de actualización de la información publicada con el formato día/mes/año | D137: 1 | E137: 1
C138: Criterio 78. Fecha de validación de la información publicada con el formato día/mes/año | D138: 1 | E138: 1
C139: Criterio 79. Nota. Este criterio se cumple en caso de que sea necesario que el sujeto obligado incluya alguna aclaración relativa a la información publicada y/o explicación por la falta de información | D139: 1 | E139: 1
C140: Criterio 80 . La información publicada se organiza mediante el formato 8, en el que se incluyen todos los campos especificados en los criterios sustantivos de contenido | D140: 1 | E140: 1
C141: Criterio 81. El soporte de la información permite su reutilización | D141: 1 | E141: 1

Sheet Art 74_IX
C1: =IF(Aplicabilidad!E2="","",Aplicabilidad!E2) -> Consejería Jurídica
B3: Códigos de valoración : Cumplió totalmente = 1; Cumplió parcialmente = 0.5; No cumplió = 0; Justificado = Justificado
B5: Art. 74 - Fracción IX. Gastos de representación y viáticos
C7: Fecha de Inicio de la Verificación: | G7: Fecha de Término de la verificación
C8: =IF(Resultados!$C$7="","",Resultados!$C$7) -> 2021-07-07 | D8: 2018-05-25 | G8: =IF(Resultados!G7="","",Resultados!G7) -> 2021-07-08
C10: Criterios Sustantivos | E10: =IF(Aplicabilidad!G20<>"SI","NA",(SUM(E19:E70)+SUM(E78:E104))/(SUM(D19:D70)+SUM(D78:D104))) -> 94%
C11: Criterios Adjetivos | E11: =IF(Aplicabilidad!G20<>"SI","NA",(SUM(E109:E117))/(SUM(D109:D117))) -> 100%
C12: Obligación | E12: =IF(Aplicabilidad!G20<>"SI","NA",E10*0.6+E11*0.4) -> 96.67%
C16: Criterios Sustantivos de contenido LTG 2018 - LTG 2020 (DOF 28/12/20) | D16: =COUNTA(F19:F71) -> 0
C18: Criterio | E18: Valoración | F18: Tipo | G18: Observaciones, Recomendaciones y/o Requerimientos
C19: Criterio 1. Ejercicio | D19: =IF(E19="Justificado",0,1) -> 0 | E19: Justificado
C20: Criterio 2. Periodo que se informa | D20: =IF(E20="Justificado",0,1) -> 0 | E20: Justificado
C21: Criterio 3. Tipo de integrante del sujeto obligado (funcionario, servidor[a] público[a], integrantes, miembros y/o toda persona que desempeñe un empleo, cargo o comisión en los sujetos obligados y/o ejerza actos de autoridad en ellos, empleado, representante popular, miembro del poder judicial, miembro de órgano autónomo [especificar denominación], personal de confianza, prestador de servicios profesionales, otro [especificar denominación]) | D21: 0 | E21: Justificado
C22: Criterio 4. Clave o nivel del puesto (de acuerdo con el catálogo que en su caso regule la actividad del sujeto obligado) | D22: 0 | E22: Justificado
C23: Criterio 5. Denominación del puesto (de acuerdo con el catálogo que en su caso regule la actividad del sujeto obligado, por ej. Subdirector[a] A) | D23: 0 | E23: Justificado
C24: Criterio 6. Denominación del cargo (de conformidad con el nombramiento otorgado, por ej. Subdirector[a] de recursos humanos) | D24: 0 | E24: Justificado
C25: Criterio 7. Área de adscripción o unidad administrativa (de acuerdo con el catálogo de unidades administrativas o puestos si así corresponde) | D25: 0 | E25: Justificado
C26: Criterio 8. Nombre completo del (la) servidor(a) público(a), trabajador, prestador de servicios, miembro y/o toda persona que desempeñe un empleo, cargo o comisión y/o ejerza actos de autoridad en el sujeto obligado (nombre[s], primer apellido, segundo apellido) | D26: 0 | E26: Justificado
C27: Criterio 9. Denominación del encargo o comisión | D27: 0 | E27: Justificado
C28: Criterio 10. Tipo de viaje (nacional / internacional) | D28: 0 | E28: Justificado
C29: Criterio 11. Número de personas acompañantes en el encargo o comisión del trabajador, prestador de servicios, servidor(a) público(a), miembro y/o toda persona que desempeñe un empleo, cargo o comisión y/o ejerza actos de autoridad en el sujeto obligado comisionado | D29: 0 | E29: Justificado
C30: Criterio 12. Importe ejercido por el total de acompañantes | D30: 0 | E30: Justificado
C31: Criterio 13. Origen del encargo o comisión (país, estado y ciudad) | D31: 0 | E31: Justificado
C32: Criterio 14. Destino del encargo o comisión (país, estado y ciudad) | D32: 0 | E32: Justificado
C33: Criterio 15. Motivo del encargo o comisión | D33: 0 | E33: Justificado
C34: Criterio 16. Fecha de salida: con el formato día/mes/año (por ej. 31/Marzo/2016) | D34: 0 | E34: Justificado
C35: Criterio 17. Fecha de regreso: con el formato día/mes/año (por ej. 30/Abril/2016) | D35: 0 | E35: Justificado
C36: Criterio 18. Clave de la partida de cada uno de los conceptos correspondientes, con base en el Clasificador por Objeto del Gasto o Clasificador Contable que aplique | D36: 0 | E36: Justificado
C37: Criterio 19. Denominación de la partida de cada uno de los conceptos correspondientes, los cuales deberán ser armónicos con el Clasificador por Objeto del Gasto o Clasificador Contable que aplique. Por ejemplo: pasajes aéreos, terrestres, marítimos, lacustres y fluviales; autotransporte; viáticos en el país o en el extranjero; gastos de instalación y traslado de menaje; servicios integrales de traslado y viáticos; otros servicios de traslado y hospedaje; otra (especificar) | D37: 0 | E37: Justificado
C38: Criterio 20. Importe ejercido erogado por concepto de viáticos | D38: 0 | E38: Justificado
C39: Criterio 21. Importe total ejercido erogado con motivo del encargo o comisión | D39: 0 | E39: Justificado
C40: Criterio 22. Importe total de gastos no erogados derivados del encargo o comisión | D40: 0 | E40: Justificado
C41: Criterio 23. Fecha de entrega del informe de la comisión o encargo encomendado, con el formato día/mes/año (por ej. 31/Marzo/2016) | D41: 0 | E41: Justificado
C42: Criterio 24. Hipervínculo al informe de la comisión o encargo encomendado, donde se señalen las actividades realizadas, los resultados obtenidos, las contribuciones a la institución y las conclusiones; en su caso, se deberá incluir una leyenda explicando lo que corresponda | D42: 0 | E42: Justificado
C43: Criterio 25. Hipervínculo a las facturas o comprobantes que soporten las erogaciones realizadas | D43: 0 | E43: Justificado
C44: Criterio 26. Hipervínculo a la normatividad que regula los gastos por concepto de viáticos del sujeto obligado | D44: 0 | E44: Justificado
C45: Criterio 27. Ejercicio | D45: 0 | E45: Justificado
C46: Criterio 28. Periodo que se reporta | D46: 0 | E46: Justificado
C47: Criterio 29. Tipo de miembro del sujeto obligado (funcionario, servidor[a] público[a] y/o toda persona que desempeñe un empleo, cargo o comisión y/o ejerza actos de autoridad en el sujeto obligado; empleado, representante popular, miembro del poder judicial, miembro de órgano autónomo [especificar denominación], personal de confianza, integrante, prestador de servicios profesionales, otro [señalar denominación]) | D47: 0 | E47: Justificado
C48: Criterio 30. Clave o nivel del puesto (de acuerdo con el catálogo que en su caso regule la actividad del sujeto obligado) | D48: 0 | E48: Justificado
C49: Criterio 31. Denominación del puesto (de acuerdo con el catálogo que en su caso regule la actividad del sujeto obligado, por ej. Subdirector[a] A) | D49: 0 | E49: Justificado
C50: Criterio 32. Denominación del cargo (de conformidad con el nombramiento otorgado, por ej. Subdirector[a] de recursos humanos) | D50: 0 | E50: Justificado
C51: Criterio 33. Área de adscripción (de acuerdo con el catálogo de unidades administrativas o puestos, si así corresponde) | D51: 0 | E51: Justificado
C52: Criterio 34. Nombre completo del (la) servidor(a) público(a), trabajador, prestador de servicios, miembro y/o toda persona que desempeñe un empleo, cargo o comisión y/o ejerzan actos de autoridad en el sujeto obligado (nombre[s], primer apellido y segundo apellido) | D52: 0 | E52: Justificado
C53: Criterio 35. Denominación del acto de representación | D53: 0 | E53: Justificado
C54: Criterio 36. Tipo de viaje (nacional/internacional) | D54: 0 | E54: Justificado
C55: Criterio 37. Número de personas acompañantes en el acto de representación del trabajador, prestador de servicios, servidor(a) público(a), miembro y/o toda persona que desempeñe un empleo, cargo o comisión y/o ejerzan actos de autoridad comisionado | D55: 0 | E55: Justificado
C56: Criterio 38. Importe ejercido por el total de acompañantes | D56: 0 | E56: Justificado
C57: Criterio 39. Origen del acto de representación (país, estado y ciudad) | D57: 0 | E57: Justificado
C58: Criterio 40. Destino del acto de representación (país, estado y ciudad) | D58: 0 | E58: Justificado
C59: Criterio 41. Motivo del acto de representación | D59: 0 | E59: Justificado
C60: Criterio 42. Fecha de salida: con el formato día/mes/año (por ej. 31/Marzo/2016) | D60: 0 | E60: Justificado
C61: Criterio 43. Fecha de regreso: con el formato día/mes/año (por ej. 30/Abril/2016) | D61: 0 | E61: Justificado
C62: Criterio 44. Clave de la partida de cada uno de los conceptos correspondientes, con base en el Clasificador por Objeto del Gasto o Clasificador Contable que aplique | D62: 0 | E62: Justificado
C63: Criterio 45. Denominación de la partida de cada uno de los conceptos correspondientes, los cuales deberán ser armónicos con el Clasificador por Objeto del Gasto o Clasificador Contable que aplique. Por ejemplo: pasajes aéreos, terrestres, marítimos, lacustres y fluviales; autotransporte; viáticos en el país o en el extranjero; gastos de instalación y traslado de menaje; servicios integrales de traslado y viáticos; otros servicios de traslado y hospedaje; otro (especificar) | D63: 0 | E63: Justificado
C64: Criterio 46. Importe ejercido erogado por concepto de gastos de representación | D64: 0 | E64: Justificado
C65: Criterio 47. Importe total ejercido erogado con motivo del acto de representación | D65: 0 | E65: Justificado
C66: Criterio 48. Importe total de gastos no erogados derivados del acto de representación | D66: 0 | E66: Justificado
C67: Criterio 49. Fecha de entrega del informe del acto de representación encomendado, con el formato día/mes/año (por ej. 31/Marzo/2016) | D67: 0 | E67: Justificado
C68: Criterio 50. Hipervínculo al informe del acto de representación encomendado, donde se señalen las actividades realizadas, los resultados obtenidos, las contribuciones a la institución y las conclusiones; en su caso, se deberá incluir una leyenda explicando lo que corresponda | D68: 0 | E68: Justificado
C69: Criterio 51. Hipervínculo a las facturas o comprobantes que soporten las erogaciones realizadas | D69: =IF(E69="Justificado",0,1) -> 0 | E69: Justificado
C70: Criterio 52. Hipervínculo a la normatividad que regula los gastos de representación del sujeto obligado | D70: =IF(E70="Justificado",0,1) -> 0 | E70: Justificado
C75: Criterios Sustantivos de contenido LTG 2018 - LTG 2020 (DOF 28/12/20) | D75: =COUNTA(F78:F117) -> 4
C77: Criterio | E77: Valoración | F77: Tipo | G77: Observaciones, Recomendaciones y/o Requerimientos
C78: Criterio 1. Ejercicio | D78: =IF(E78="Justificado",0,1) -> 1 | E78: 1
C79: Criterio 2. Periodo que se informa (fecha de inicio y fecha de término con el formato día/mes/año) | D79: =IF(E79="Justificado",0,1) -> 1 | E79: 1
C80: Criterio 3. Tipo de integrante del sujeto obligado (catálogo): (funcionario, servidor[a] público[a], eventual/integrante/empleado/representante popular/ miembro del poder judicial/miembro de órgano autónomo/personal de confianza/prestador de servicios profesionales/ servidor público eventual/ otro [especificar denominación]) | D80: 1 | E80: 1
C81: Criterio 4. Clave o nivel del puesto (de acuerdo con el catálogo que en su caso regule la actividad del sujeto obligado) | D81: 1 | E81: 1
C82: Criterio 5. Denominación del puesto (de acuerdo con el catálogo que en su caso regule la actividad del sujeto obligado, por ejemplo: Subdirector[a] A) | D82: 1 | E82: 1
C83: Criterio 6. Denominación del cargo (de conformidad con el nombramiento otorgado, por ejemplo: Subdirector[a] de recursos humanos) | D83: 1 | E83: 1
C84: Criterio 7. Área de adscripción (de acuerdo con el catálogo de áreas o puestos si así corresponde) | D84: 1 | E84: 1
C85: Criterio 8. Nombre completo del (la) servidor(a) público(a), trabajador, prestador de servicios, miembro y/o toda persona que desempeñe un empleo, cargo o comisión y/o ejerza actos de autoridad en el sujeto obligado (nombre[s], primer apellido, segundo apellido) | D85: 1 | E85: 1
C86: Criterio 9. Tipo de gasto (catálogo): Viáticos/Representación | D86: 1 | E86: 1
C87: Criterio 10. Denominación del encargo o comisión | D87: 1 | E87: 1
C88: Criterio 11. Tipo de viaje (catálogo): Nacional / Internacional | D88: 1 | E88: 1
C89: Criterio 12. Número de personas acompañantes en el encargo o comisión del trabajador, prestador de servicios, servidor(a) público(a), miembro y/o toda persona que desempeñe un empleo, cargo o comisión y/o ejerza actos de autoridad en el sujeto obligado comisionado | D89: 1 | E89: 1
C90: Criterio 13. Importe ejercido por el total de acompañantes | D90: 1 | E90: 1
C91: Criterio 14. Origen del encargo o comisión (país, estado y ciudad) | D91: 1 | E91: 1
C92: Criterio 15. Destino del encargo o comisión (país, estado y ciudad) | D92: 1 | E92: 1
C93: Criterio 16. Motivo del encargo o comisión | D93: 1 | E93: 1
C94: Criterio 17. Fecha de salida del encargo o comisión con el formato día/mes/año | D94: 1 | E94: 1
C95: Criterio 18. Fecha de regreso del encargo o comisión: con el formato día/mes/año | D95: 1 | E95: 1
C96: Criterio 19. Clave de la partida de cada uno de los conceptos correspondientes, con base en el Clasificador por Objeto del Gasto o Clasificador Contable que aplique | D96: 1 | E96: 1
C97: Criterio 20. Denominación de la partida de cada uno de los conceptos correspondientes, los cuales deberán ser armónicos con el Clasificador por Objeto del Gasto o Clasificador Contable que aplique. Por ejemplo: pasajes aéreos, terrestres, marítimos, lacustres y fluviales; autotransporte; viáticos en el país o en el extranjero; gastos de instalación y traslado de menaje; servicios integrales de traslado y viáticos; otros servicios de traslado y hospedaje; otra (especificar) | D97: 1 | E97: 1
C98: Criterio 21. Importe ejercido erogado por concepto de gastos de viáticos o gastos de representación | D98: 1 | E98: 0.5 | F98: Requerimiento | G98: Existen registros donde no hay información publicada ni nota informativa que justifique la falta de información.
C99: Criterio 22. Importe total ejercido erogado con motivo del encargo o comisión | D99: 1 | E99: 0.5 | F99: Requerimiento | G99: Existen registros donde no hay información publicada ni nota informativa que justifique la falta de información.
C100: Criterio 23. Importe total de gastos no erogados derivados del encargo o comisión | D100: 1 | E100: 0.5 | F100: Requerimiento | G100: Existen registros donde no hay información publicada ni nota informativa que justifique la falta de información.
C101: Criterio 24. Fecha de entrega del informe de la comisión o encargo encomendado, con el formato día/mes/año | D101: 1 | E101: 1
C102: Criterio 25. Hipervínculo al informe de la comisión o encargo encomendado, donde se señalen las actividades realizadas, los resultados obtenidos, las contribuciones a la institución y las conclusiones; en su caso, se deberá incluir una nota explicando lo que corresponda | D102: 1 | E102: 1
C103: Criterio 26. Hipervínculo a las facturas o comprobantes que soporten las erogaciones realizadas | D103: =IF(E103="Justificado",0,1) -> 1 | E103: 1
C104: Criterio 27. Hipervínculo a la normatividad que regula los gastos por concepto de viáticos y gastos de representación del sujeto obligado | D104: =IF(E104="Justificado",0,1) -> 1 | E104: 1
C106: Criterios Adjetivos LTG 2018 - LTG 2020 (DOF 28/12/20)
C108: Criterio | E108: Valoración | F108: Tipo | G108: Observaciones, Recomendaciones y/o Requerimientos
C109: Criterio 28. Periodo de actualización de la información: trimestral | D109: =IF(E109="Justificado",0,1) -> 1 | E109: 1
C110: Criterio 29. La información publicada deberá estar actualizada al periodo que corresponde de acuerdo con la Tabla de actualización y conservación de la información | D110: 1 | E110: 1
C111: Criterio 30. Conservar en el sitio de Internet: información del ejercicio en curso y la correspondiente al ejercicio anterior. | D111: 1 | E111: 1
C112: Criterio 31. Área(s) responsable(s) que genera(n), posee(n), publica(n) y/o actualiza(n)la información | D112: 1 | E112: 1
C113: Criterio 32. Fecha de actualización de la información publicada con el formato día/mes/año | D113: 1 | E113: 1
C114: Criterio 33. Fecha de validación de la información publicada con el formato día/mes/año | D114: 1 | E114: 1
C115: Criterio 34. Nota. Este criterio se cumple en caso de que sea necesario que el sujeto obligado incluya alguna aclaración relativa a la información publicada y/o explicación por la falta de información | D115: 1 | E115: 1
C116: Criterio 35. La información publicada se organiza mediante el formato 9a, en el cual se incluye todos los campos especificados en los criterios sustantivos de contenido | D116: 1 | E116: 1
C117: Criterio 36. El soporte de la información permite su reutilización | D117: 1 | E117: 1
D125: 2017 | E125: 2018
C126: CS | D126: =IF(Aplicabilidad!G20<>"SI","NA",SUM(E19:E70)/SUM(D19:D70)) ->  | E126: =IF(Aplicabilidad!G20<>"SI","NA",SUM(E78:E104)/SUM(D78:D104)) -> 94.44%
C127: CA | D127: =IF(Aplicabilidad!G20<>"SI","NA",SUM(#REF!)/SUM(#REF!)) ->  | E127: =IF(Aplicabilidad!G20<>"SI","NA",SUM(E109:E117)/SUM(D109:D117)) -> 100.00%
C128: OBLIGACIÓN | D128: =IF(Aplicabilidad!G20<>"SI","NA",D126*0.6+D127*0.4) ->  | E128: =IF(Aplicabilidad!G20<>"SI","NA",E126*0.6+E127*0.4) -> 96.67%

Sheet Art 74_X
C1: =IF(Aplicabilidad!E2="","",Aplicabilidad!E2) -> Consejería Jurídica
B3: Códigos de valoración : Cumplió totalmente = 1; Cumplió parcialmente = 0.5; No cumplió = 0; Justificado = Justificado
B5: Art. 74 - Fracción X. Total de plazas (base y confianza)
C7: Fecha de Inicio de la Verificación: | G7: Fecha de Término de la verificación
C8: =IF(Resultados!$C$7="","",Resultados!$C$7) -> 2021-07-07 | D8: 2018-05-25 | G8: =IF(Resultados!G7="","",Resultados!G7) -> 2021-07-08
C10: Criterios Sustantivos | E10: =IF(Aplicabilidad!G21<>"SI","NA",(+SUM(E19:E35))/(+SUM(D19:D35))) -> 100%
C11: Criterios Adjetivos | E11: =IF(Aplicabilidad!G21<>"SI","NA",(+SUM(E40:E48))/(+SUM(D40:D48))) -> 100%
C12: Obligación | E12: =IF(Aplicabilidad!G21<>"SI","NA",E10*0.6+E11*0.4) -> 100.00%
C16: Criterios Sustantivos de contenido LTG 2018 - LTG 2020 (DOF 28/12/20) | D16: =COUNTA(F19:F48) -> 1
C18: Criterio | E18: Valoración | F18: Tipo | G18: Observaciones, Recomendaciones y/o Requerimientos
C19: Criterio 1. Ejercicio | D19: =IF(E19="Justificado",0,1) -> 1 | E19: 1
C20: Criterio 2. Periodo que se informa (fecha de inicio y fecha de término con el formato día/mes/año) | D20: =IF(E20="Justificado",0,1) -> 1 | E20: 1
C21: Criterio 3. Denominación del área (de acuerdo con el catálogo que en su caso regule la actividad del sujeto obligado) | D21: 1 | E21: 1
C22: Criterio 4. Denominación del puesto (de acuerdo con el catálogo que en su caso regule la actividad del sujeto obligado). La información deberá estar ordenada de tal forma que sea posible visualizar los niveles de autoridad y sus relaciones de dependencia | D22: 1 | E22: 1
C23: Criterio 5. Clave o nivel del puesto (de acuerdo con el catálogo que en su caso regule la actividad del sujeto obligado) | D23: 1 | E23: 1
C24: Criterio 6. Tipo de plaza (catálogo): base/confianza/milicia permanente/milicia auxiliar | D24: 1 | E24: 1
C25: Criterio 7. Área de adscripción inmediata superior | D25: 1 | E25: 1
C26: Criterio 8. Por cada puesto y/o cargo de la estructura especificar el estado (catálogo): ocupado/vacante. | D26: 1 | E26: 1
C27: Criterio 9. Por cada puesto y/o cargo de la estructura vacante se incluirá un hipervínculo a las convocatorias a concursos para ocupar cargos públicos abiertos a la sociedad en general o sólo abiertos a los(as) servidores(as) públicos(as) del sujeto obligado, difundidas en la fracción XIV del artículo 70 de la Ley General | D27: 0 | E27: Justificado
C28: Criterio 10. Ejercicio | D28: 1 | E28: 1
C29: Criterio 11. Periodo que se informa (fecha de inicio y fecha de término con el formato día/mes/año) | D29: 1 | E29: 1
C30: Criterio 12. Total de plazas de base | D30: 1 | E30: 1
C31: Criterio 13. Total de plazas de base ocupadas | D31: 1 | E31: 1
C32: Criterio 14. Total de plazas de base vacantes | D32: 1 | E32: 1
C33: Criterio 15. Total de plazas de confianza | D33: 1 | E33: 1
C34: Criterio 16. Total de plazas de confianza ocupadas | D34: =IF(E34="Justificado",0,1) -> 1 | E34: 1
C35: Criterio 17. Total de plazas de confianza vacantes | D35: =IF(E35="Justificado",0,1) -> 1 | E35: 1
C37: Criterios Adjetivos LTG 2018 - LTG 2020 (DOF 28/12/20)
C39: Criterio | E39: Valoración | F39: Tipo | G39: Observaciones, Recomendaciones y/o Requerimientos
C40: Criterio 18. Periodo de actualización de la información: trimestral | D40: =IF(E40="Justificado",0,1) -> 1 | E40: 1
C41: Criterio 19. La información publicada deberá estar actualizada al periodo que corresponde de acuerdo con la Tabla de actualización y conservación de la información | D41: 1 | E41: 1
C42: Criterio 20. Conservar en el sitio de Internet y a través de la Plataforma Nacional la información vigente | D42: 1 | E42: 1
C43: Criterio 21. Área(s) responsable(s) que genera(n), posee(n), publica(n) y/o actualiza(n)la información | D43: 1 | E43: 1
C44: Criterio 22. Fecha de actualización de la información publicada con el formato día/mes/año | D44: 1 | E44: 1
C45: Criterio 23. Fecha de validación de la información publicada con el formato día/mes/año | D45: 1 | E45: 1
C46: Criterio 24. Nota. Este criterio se cumple en caso de que sea necesario que el sujeto obligado incluya alguna aclaración relativa a la información publicada y/o explicación por la falta de información | D46: 1 | E46: 1
C47: Criterio 25. La información publicada se organiza mediante los formatos 10a y 10b, en los cuales se incluyen todos los campos especificados en los criterios sustantivos de contenido | D47: 1 | E47: 1
C48: Criterio 26. El soporte de la información permite su reutilización | D48: 1 | E48: 1
D56: 2017 | E56: 2018
C57: CS | D57: NA | E57: =IF(Aplicabilidad!G21<>"SI","NA",SUM(E19:E35)/SUM(D19:D35)) -> 100.00%
C58: CA | D58: NA | E58: =IF(Aplicabilidad!G21<>"SI","NA",SUM(E40:E48)/SUM(D40:D48)) -> 100.00%
C59: OBLIGACIÓN | D59: NA | E59: =IF(Aplicabilidad!G21<>"SI","NA",E57*0.6+E58*0.4) -> 100.00%

Sheet Art 74_XI
C1: =IF(Aplicabilidad!E2="","",Aplicabilidad!E2) -> Consejería Jurídica
B3: Códigos de valoración : Cumplió totalmente = 1; Cumplió parcialmente = 0.5; No cumplió = 0; Justificado = Justificado
B5: Art. 74 - Fracción XI. Contrataciones honorarios
C7: Fecha de Inicio de la Verificación: | G7: Fecha de Término de la verificación
C8: =IF(Resultados!$C$7="","",Resultados!$C$7) -> 2021-07-07 | D8: 2018-05-25 | G8: =IF(Resultados!G7="","",Resultados!G7) -> 2021-07-08
C10: Criterios Sustantivos | E10: =IF(Aplicabilidad!G22<>"SI","NA",(SUM(E19:E32)+SUM(E40:E53))/(SUM(D19:D32)+SUM(D40:D53))) -> 100%
C11: Criterios Adjetivos | E11: =IF(Aplicabilidad!G22<>"SI","NA",(SUM(E58:E66))/(SUM(D58:D66))) -> 100%
C12: Obligación | E12: =IF(Aplicabilidad!G22<>"SI","NA",E10*0.6+E11*0.4) -> 100.00%
C16: Criterios Sustantivos de contenido LTG 2018 - LTG 2020 (DOF 28/12/20) | D16: =COUNTA(F19:F33) -> 0
C18: Criterio | E18: Valoración | F18: Tipo | G18: Observaciones, Recomendaciones y/o Requerimientos
C19: Criterio 1. Ejercicio | D19: =IF(E19="Justificado",0,1) -> 1 | E19: 1
C20: Criterio 2. Periodo que se informa | D20: =IF(E20="Justificado",0,1) -> 1 | E20: 1
C21: Criterio 3. Tipo de contratación: régimen de servicios profesionales por honorarios o servicios profesionales por honorarios asimilados a salarios | D21: 1 | E21: 1
C22: Criterio 4. Partida presupuestal de los recursos con que se cubran los honorarios pactados, con base en el Clasificador por Objeto del Gasto o Clasificador Contable que aplique | D22: 1 | E22: 1
C23: Criterio 5. Nombre completo de la persona contratada (nombre[s], primer apellido, segundo apellido) | D23: 1 | E23: 1
C24: Criterio 6. Número de contrato | D24: 1 | E24: 1
C25: Criterio 7. Hipervínculo al contrato correspondiente | D25: 1 | E25: 1
C26: Criterio 8. Fecha de inicio del contrato expresada con el formato día/mes/año (ej. 31/Marzo/2016) | D26: 1 | E26: 1
C27: Criterio 9. Fecha de término del contrato expresada con el formato día/mes/año (ej. 31/Diciembre/2016) | D27: 1 | E27: 1
C28: Criterio 10. Servicios contratados (objeto del contrato) | D28: 1 | E28: 1
C29: Criterio 11. Remuneración mensual bruta o contraprestación | D29: 1 | E29: 1
C30: Criterio 12. Monto total a pagar | D30: 1 | E30: 1
C31: Criterio 13. Prestaciones, en su caso | D31: =IF(E31="Justificado",0,1) -> 0 | E31: Justificado
C32: Criterio 14. Hipervínculo a la normatividad que regula la celebración de contratos de servicios profesionales por honorarios | D32: =IF(E32="Justificado",0,1) -> 1 | E32: 1
C37: Criterios Sustantivos de contenido LTG 2018 - LTG 2020 (DOF 28/12/20) | D37: =COUNTA(F40:F66) -> 1
C39: Criterio | E39: Valoración | F39: Tipo | G39: Observaciones, Recomendaciones y/o Requerimientos
C40: Criterio 1. Ejercicio | D40: =IF(E40="Justificado",0,1) -> 1 | E40: 1
C41: Criterio 2. Periodo que se informa (fecha de inicio y fecha de término con el formato día/mes/año) | D41: =IF(E41="Justificado",0,1) -> 1 | E41: 1
C42: Criterio 3. Tipo de contratación (catálogo): Servicios profesionales por honorarios / Servicios profesionales por honorarios asimilados a salarios | D42: 1 | E42: 1
C43: Criterio 4. Partida presupuestal de los recursos con que se cubran los honorarios pactados, con base en el Clasificador por Objeto del Gasto o Clasificador Contable que aplique | D43: 1 | E43: 1
C44: Criterio 5. Nombre completo de la persona contratada (nombre[s], primer apellido, segundo apellido) | D44: 1 | E44: 1
C45: Criterio 6. Número de contrato | D45: 1 | E45: 1
C46: Criterio 7. Hipervínculo al contrato correspondiente | D46: 1 | E46: 1
C47: Criterio 8. Fecha de inicio del contrato expresada con el formato día/mes/año | D47: 1 | E47: 1
C48: Criterio 9. Fecha de término del contrato expresada con el formato día/mes/año | D48: 1 | E48: 1
C49: Criterio 10. Servicios contratados (objeto del contrato) | D49: 1 | E49: 1
C50: Criterio 11. Remuneración mensual bruta o contraprestación | D50: 1 | E50: 1
C51: Criterio 12. Monto total a pagar | D51: 1 | E51: 1
C52: Criterio 13. Prestaciones, en su caso | D52: =IF(E52="Justificado",0,1) -> 0 | E52: Justificado
C53: Criterio 14. Hipervínculo a la normatividad que regula la celebración de contratos de servicios profesionales por honorarios | D53: =IF(E53="Justificado",0,1) -> 1 | E53: 1
C55: Criterios Adjetivos LTG 2018 - LTG 2020 (DOF 28/12/20)
C57: Criterio | E57: Valoración | F57: Tipo | G57: Observaciones, Recomendaciones y/o Requerimientos
C58: Criterio 15. Periodo de actualización de la información: trimestral | D58: =IF(E58="Justificado",0,1) -> 1 | E58: 1
C59: Criterio 16. La información publicada deberá estar actualizada al periodo que corresponde de acuerdo con la Tabla de actualización y conservación de la información | D59: 1 | E59: 1
C60: Criterio 17. Conservar en el sitio de Internet y a través de la Plataforma Nacional la Información del ejercicio en curso y la correspondiente al ejercicio anterior | D60: 1 | E60: 1
C61: Criterio 18. Área(s) responsable(s) que genera(n), posee(n), publica(n) y/o actualiza(n)la información | D61: 1 | E61: 1
C62: Criterio 19. Fecha de actualización de la información publicada con el formato día/mes/año | D62: 1 | E62: 1
C63: Criterio 20. Fecha de validación de la información publicada con el formato día/mes/año | D63: 1 | E63: 1
C64: Criterio 21. Nota. Este criterio se cumple en caso de que sea necesario que el sujeto obligado incluya alguna aclaración relativa a la información publicada y/o explicación por la falta de información | D64: 1 | E64: 1
C65: Criterio 22. La información publicada se organiza mediante el formato 11, en el que se incluyen todos los campos especificados en los criterios sustantivos de contenido | D65: 1 | E65: 1
C66: Criterio 23. El soporte de la información permite su reutilización | D66: 1 | E66: 1
D74: 2017 | E74: 2018
C75: CS | D75: =IF(Aplicabilidad!G22<>"SI","NA",SUM(E19:E32)/SUM(D19:D32)) -> 100.00% | E75: =IF(Aplicabilidad!G22<>"SI","NA",SUM(E40:E53)/SUM(D40:D53)) -> 100.00%
C76: CA | D76: =IF(Aplicabilidad!G22<>"SI","NA",SUM(#REF!)/SUM(#REF!)) ->  | E76: =IF(Aplicabilidad!G22<>"SI","NA",SUM(E58:E66)/SUM(D58:D66)) -> 100.00%
C77: OBLIGACIÓN | D77: =IF(Aplicabilidad!G22<>"SI","NA",D75*0.6+D76*0.4) ->  | E77: =IF(Aplicabilidad!G22<>"SI","NA",E75*0.6+E76*0.4) -> 100.00%

Sheet Art 74_XII (hidden)
C1: =IF(Aplicabilidad!E2="","",Aplicabilidad!E2) -> Consejería Jurídica
B3: Códigos de valoración : Cumplió totalmente = 1; Cumplió parcialmente = 0.5; No cumplió = 0; Justificado = Justificado
B5: Art. 74 - Fracción XII. Declaraciones patrimoniales
C7: Fecha de Inicio de la Verificación: | G7: Fecha de Término de la verificación
C8: =IF(Resultados!$C$7="","",Resultados!$C$7) -> 2021-07-07 | D8: 2018-05-25 | G8: =IF(Resultados!G7="","",Resultados!G7) -> 2021-07-08
C10: Criterios Sustantivos | E10: =IF(Aplicabilidad!G23<>"SI","NA",(SUM(E19:E27)+SUM(E46:E55))/(SUM(D19:D27)+SUM(D46:D55))) -> NA
C11: Criterios Adjetivos | E11: =IF(Aplicabilidad!G23<>"SI","NA",(SUM(E60:E68))/(SUM(D60:D68))) -> NA
C12: Obligación | E12: =IF(Aplicabilidad!G23<>"SI","NA",E10*0.6+E11*0.4) -> NA
C16: Criterios Sustantivos de contenido LTG 2018 - LTG 2020 (DOF 28/12/20) | D16: =COUNTA(F19:F39) -> 1
C18: Criterio | E18: Valoración | F18: Tipo | G18: Observaciones, Recomendaciones y/o Requerimientos
C19: Criterio 1. Ejercicio | D19: =IF(E19="Justificado",0,1) -> 0 | E19: Justificado
C20: Criterio 2. Tipo de integrante del sujeto obligado (funcionario, servidor[a] público[a], empleado y/o toda persona que desempeñe un empleo, cargo o comisión y/o ejerza actos de autoridad, representante popular, miembro del poder judicial, miembro de órgano autónomo [especificar denominación], personal de confianza, prestador de servicios profesionales, otro [especificar denominación]) | D20: =IF(E20="Justificado",0,1) -> 0 | E20: Justificado
C21: Criterio 3. Clave o nivel del puesto [(en su caso] de acuerdo con el catálogo que regule la actividad del sujeto obligado) | D21: 0 | E21: Justificado
C22: Criterio 4. Denominación del puesto (de acuerdo con el catálogo que en su caso regule la actividad del sujeto obligado) | D22: 0 | E22: Justificado
C23: Criterio 5. Denominación del cargo (de conformidad con nombramiento otorgado) | D23: 0 | E23: Justificado
C24: Criterio 6. Área de adscripción (de acuerdo con el catálogo de unidades administrativas o puestos, si así corresponde) | D24: 0 | E24: Justificado
C25: Criterio 7. Nombre completo del/la servidor(a) público(a) y/o toda persona que desempeñe un empleo, cargo o comisión y/o ejerza actos de autoridad (nombre [s], primer apellido, segundo apellido) | D25: 0 | E25: Justificado
C26: Criterio 8. Modalidad de la Declaración de Situación Patrimonial: inicio / modificación / conclusión | D26: =IF(E26="Justificado",0,1) -> 0 | E26: Justificado
C27: Criterio 9. Hipervínculo a la versión pública de la Declaración de Situación Patrimonial o a los sistemas habilitados que registren y resguarden las bases de datos correspondientes | D27: =IF(E27="Justificado",0,1) -> 0 | E27: Justificado
C29: Criterios Adjetivos LTG 2015-2017
C31: Criterio | E31: Valoración | F31: Tipo | G31: Observaciones, Recomendaciones y/o Requerimientos
C32: Criterio 10. Periodo de actualización de la información: trimestral | D32: =IF(E32="Justificado",0,1) -> 0 | E32: Justificado
C33: Criterio 11. La información publicada deberá estar actualizada al periodo que corresponde de acuerdo con la Tabla de actualización y conservación de la información | D33: 0 | E33: Justificado
C34: Criterio 12. Conservar en el sitio de Internet y a través de la Plataforma Nacional la información de acuerdo con la Tabla de actualización y conservación de la información | D34: 0 | E34: Justificado
C35: Criterio 13. Área(s) o unidad(es) administrativa(s) que genera(n) o posee(n) la información respectiva y son responsables de publicarla y actualizarla | D35: 0 | E35: Justificado
C36: Criterio 14. Fecha de actualización de la información publicada con el formato día/mes/año (por ej. 31/Marzo/2016) | D36: 0 | E36: Justificado
C37: Criterio 15. Fecha de validación de la información publicada con el formato día/mes/año (por ej. 31/Marzo/2016) | D37: 0 | E37: Justificado
C38: Criterio 16. La información publicada se organiza mediante el formato 12, en el que se incluyen todos los campos especificados en los criterios sustantivos de contenido | D38: 0 | E38: Justificado
C39: Criterio 17. El soporte de la información permite su reutilización | D39: 0 | E39: Justificado
C43: Criterios Sustantivos de contenido LTG 2018 - LTG 2020 (DOF 28/12/20) | D43: =COUNTA(F46:F68) -> 1
C45: Criterio | E45: Valoración | F45: Tipo | G45: Observaciones, Recomendaciones y/o Requerimientos
C46: Criterio 1. Ejercicio | D46: =IF(E46="Justificado",0,1) -> 1
C47: Criterio 2. Periodo que se informa (fecha de inicio y fecha de término con el formato día/mes/año) | D47: =IF(E47="Justificado",0,1) -> 1
C48: Criterio 3. Tipo de integrante del sujeto obligado (catálogo): funcionario/servidor[a] público[a]/ servidor[a] público[a] eventual/integrante/empleado/representante popular/ miembro del poder judicial/miembro de órgano autónomo/personal de confianza/prestador de servicios profesionales/otro | D48: 1
C49: Criterio 4. Clave o nivel del puesto [(en su caso] de acuerdo con el catálogo que regule la actividad del sujeto obligado) | D49: 1
C50: Criterio 5. Denominación del puesto (de acuerdo con el catálogo que en su caso regule la actividad del sujeto obligado) | D50: 1
C51: Criterio 6. Denominación del cargo (de conformidad con nombramiento otorgado) | D51: 1
C52: Criterio 7. Área de adscripción (de acuerdo con el catálogo que en su caso regule la actividad del sujeto obligado) | D52: 1
C53: Criterio 8. Nombre completo del(la) servidor(a) público(a) y/o toda persona que desempeñe un empleo, cargo o comisión y/o ejerza actos de autoridad (nombre [s], primer apellido, segundo apellido) | D53: 1
C54: Criterio 9. Modalidad de la Declaración de Situación Patrimonial (catálogo): Inicio/Modificación/Conclusión | D54: =IF(E54="Justificado",0,1) -> 1
C55: Criterio 10. Hipervínculo a la versión pública de la Declaración de Situación Patrimonial o a los sistemas habilitados que registren y resguarden las bases de datos correspondientes | D55: =IF(E55="Justificado",0,1) -> 1
C57: Criterios Adjetivos LTG 2018 - LTG 2020 (DOF 28/12/20)
C59: Criterio | E59: Valoración | F59: Tipo | G59: Observaciones, Recomendaciones y/o Requerimientos
C60: Criterio 11. Periodo de actualización de la información: trimestral | D60: =IF(E60="Justificado",0,1) -> 1
C61: Criterio 12. La información publicada deberá estar actualizada al periodo que corresponde de acuerdo con la Tabla de actualización y conservación de la información | D61: 1
C62: Criterio 13. Conservar en el sitio de Internet y a través de la Plataforma Nacional la Información del ejercicio en curso y la correspondiente al ejercicio anterior | D62: 1
C63: Criterio 14. Área(s) responsable(s) que genera(n), posee(n), publica(n) y/o actualiza(n)la información | D63: 1
C64: Criterio 15. Fecha de actualización de la información publicada con el formato día/mes/año | D64: 1
C65: Criterio 16. Fecha de validación de la información publicada con el formato día/mes/año | D65: 1
C66: Criterio 17. Nota. Este criterio se cumple en caso de que sea necesario que el sujeto obligado incluya alguna aclaración relativa a la información publicada y/o explicación por la falta de información | D66: 1
C67: Criterio 18. La información publicada se organiza mediante el formato 12, en el que se incluyen todos los campos especificados en los criterios sustantivos de contenido | D67: 1
C68: Criterio 19. El soporte de la información permite su reutilización | D68: 1
D76: 2017 | E76: 2018
C77: CS | D77: =IF(Aplicabilidad!G23<>"SI","NA",SUM(E19:E27)/SUM(D19:D27)) -> NA | E77: =IF(Aplicabilidad!G23<>"SI","NA",SUM(E46:E55)/SUM(D46:D55)) -> NA
C78: CA | D78: =IF(Aplicabilidad!G23<>"SI","NA",SUM(E32:E39)/SUM(D32:D39)) -> NA | E78: =IF(Aplicabilidad!G23<>"SI","NA",SUM(E60:E68)/SUM(D60:D68)) -> NA
C79: OBLIGACIÓN | D79: =IF(Aplicabilidad!G23<>"SI","NA",D77*0.6+D78*0.4) -> NA | E79: =IF(Aplicabilidad!G23<>"SI","NA",E77*0.6+E78*0.4) -> NA

Sheet Art 74_XIII (hidden)
C1: =IF(Aplicabilidad!E2="","",Aplicabilidad!E2) -> Consejería Jurídica
B3: Códigos de valoración : Cumplió totalmente = 1; Cumplió parcialmente = 0.5; No cumplió = 0; Justificado = Justificado
B5: Art. 74 - Fracción XIII. Datos de Unidad de Transparencia
C7: Fecha de Inicio de la Verificación: | G7: Fecha de Término de la verificación
C8: =IF(Resultados!$C$7="","",Resultados!$C$7) -> 2021-07-07 | D8: 2018-05-25 | G8: =IF(Resultados!G7="","",Resultados!G7) -> 2021-07-08
C10: Criterios Sustantivos | E10: =IF(Aplicabilidad!G24<>"SI","NA",(+SUM(E19:E29))/(+SUM(D19:D29))) -> NA
C11: Criterios Adjetivos | E11: =IF(Aplicabilidad!G24<>"SI","NA",(+SUM(E34:E42))/(+SUM(D34:D42))) -> NA
C12: Obligación | E12: =IF(Aplicabilidad!G24<>"SI","NA",E10*0.6+E11*0.4) -> NA
C16: Criterios Sustantivos de contenido LTG 2018 - LTG 2020 (DOF 28/12/20) | D16: =COUNTA(F19:F42) -> 1
C18: Criterio | E18: Valoración | F18: Tipo | G18: Observaciones, Recomendaciones y/o Requerimientos
C19: Criterio 1. Ejercicio | D19: =IF(E19="Justificado",0,1) -> 1
C20: Criterio 2. Periodo que se informa (fecha de inicio y fecha de término con el formato día/mes/año) | D20: =IF(E20="Justificado",0,1) -> 1
C21: Criterio 3. Domicilio oficial de la Unidad de Transparencia (tipo de vialidad [catálogo], nombre de vialidad [calle], número exterior, número interior [en su caso], Tipo de asentamiento humano [catálogo], nombre de asentamiento humano [colonia], Clave de la localidad, nombre de la localidad, clave del municipio, nombre del municipio o delegación, clave de la entidad federativa, nombre de la entidad federativa [catálogo], código postal) | D21: 1
C22: Criterio 4. Teléfono(s) oficial(es) y, en su caso, extensión(es) | D22: 1
C23: Criterio 5. Horario de atención de la Unidad de Transparencia | D23: 1
C24: Criterio 6. Correo electrónico oficial activo de la Unidad de Transparencia mediante el cual se recibirán las solicitudes de información | D24: 1
C25: Criterio 7. Nota que indique que se reciben solicitudes de información pública. Ejemplo: “Se reciben solicitudes de información pública respecto a <<sujeto obligado>>, a través del correo electrónico oficial de la Unidad de Transparencia, en el domicilio oficial de ésta, vía telefónica, por correo postal, mensajería, telégrafo, verbalmente ante el personal habilitado que las capturará en el sistema electrónico de solicitudes; o cualquier medio aprobado por el Sistema Nacional” | D25: 1
C26: Criterio 8. Hipervínculo a la dirección electrónica del Sistema de solicitudes de acceso a la información | D26: 1
C27: Criterio 9. Nombres completos del(la) responsable de la Unidad de Transparencia y del personal habilitado para cumplir con las funciones establecidas en el artículo 45 de la Ley General, independientemente de que su nivel sea menor al de jefe de departamento u homólogo (nombre[s], primer apellido, segundo apellido) | D27: 1
C28: Criterio 10. Cargo o puesto que ocupan el(la) responsable de la Unidad de Transparencia y el personal habilitado para cumplir con las funciones establecidas en el artículo 45 de la Ley General en el sujeto obligado | D28: =IF(E28="Justificado",0,1) -> 1
C29: Criterio 11. Función que desempeña el personal asignado en la Unidad de Transparencia | D29: =IF(E29="Justificado",0,1) -> 1
C31: Criterios Adjetivos LTG 2018 - LTG 2020 (DOF 28/12/20)
C33: Criterio | E33: Valoración | F33: Tipo | G33: Observaciones, Recomendaciones y/o Requerimientos
C34: Criterio 12. Periodo de actualización de la información: trimestral. En su caso, 15 días hábiles después de una modificación | D34: =IF(E34="Justificado",0,1) -> 1
C35: Criterio 13. La información publicada deberá estar actualizada al periodo que corresponde de acuerdo con la Tabla de actualización y conservación de la información | D35: 1
C36: Criterio 14. Conservar en el sitio de Internet y a través de la Plataforma Nacional la información vigente de acuerdo con la Tabla de actualización y conservación de la información | D36: 1
C37: Criterio 15. Área(s) responsable(s) que genera(n), posee(n), publica(n) y/o actualiza(n)la información | D37: 1
C38: Criterio 16. Fecha de actualización de la información publicada con el formato día/mes/año | D38: 1
C39: Criterio 17. Fecha de validación de la información publicada con el formato día/mes/año | D39: 1
C40: Criterio 18. Nota. Este criterio se cumple en caso de que sea necesario que el sujeto obligado incluya alguna aclaración relativa a la información publicada y/o explicación por la falta de información | D40: 1
C41: Criterio 19. La información publicada se organiza mediante el formato 13, en el que se incluyen todos los campos especificados en los criterios sustantivos de contenido | D41: 1
C42: Criterio 20. El soporte de la información permite su reutilización | D42: 1
D50: 2017 | E50: 2018
C51: CS | D51: NA | E51: =IF(Aplicabilidad!G24<>"SI","NA",SUM(E19:E29)/SUM(D19:D29)) -> NA
C52: CA | D52: NA | E52: =IF(Aplicabilidad!G24<>"SI","NA",SUM(E34:E42)/SUM(D34:D42)) -> NA
C53: OBLIGACIÓN | D53: NA | E53: =IF(Aplicabilidad!G24<>"SI","NA",E51*0.6+E52*0.4) -> NA

Sheet Art 74_XIV (hidden)
C1: =IF(Aplicabilidad!E2="","",Aplicabilidad!E2) -> Consejería Jurídica
B3: Códigos de valoración : Cumplió totalmente = 1; Cumplió parcialmente = 0.5; No cumplió = 0; Justificado = Justificado
B5: Art. 74 - Fracción XIV. Concursos para ocupar cargos
C7: Fecha de Inicio de la Verificación: | G7: Fecha de Término de la verificación
C8: =IF(Resultados!$C$7="","",Resultados!$C$7) -> 2021-07-07 | D8: 2018-05-25 | G8: =IF(Resultados!G7="","",Resultados!G7) -> 2021-07-08
C10: Criterios Sustantivos | E10: =IF(Aplicabilidad!G25<>"SI","NA",(+SUM(E19:E37))/(+SUM(D19:D37))) -> NA
C11: Criterios Adjetivos | E11: =IF(Aplicabilidad!G25<>"SI","NA",(+SUM(E42:E50))/(+SUM(D42:D50))) -> NA
C12: Obligación | E12: =IF(Aplicabilidad!G25<>"SI","NA",E10*0.6+E11*0.4) -> NA
C16: Criterios Sustantivos de contenido LTG 2018 - LTG 2020 (DOF 28/12/20) | D16: =COUNTA(F19:F50) -> 1
C18: Criterio | E18: Valoración | F18: Tipo | G18: Observaciones, Recomendaciones y/o Requerimientos
C19: Criterio 1. Ejercicio | D19: =IF(E19="Justificado",0,1) -> 1
C20: Criterio 2. Periodo que se informa (fecha de inicio y fecha de término con el formato día/mes/año) | D20: =IF(E20="Justificado",0,1) -> 1
C21: Criterio 3. Tipo de evento (catálogo): concurso/convocatoria/invitación/aviso | D21: 1
C22: Criterio 4. Alcance del concurso (catálogo): Abierto al público en general/Abierto sólo a servidores(as) públicos(as) del sujeto obligado | D22: 1
C23: Criterio 5. Tipo de cargo o puesto (catálogo): Confianza/Base/Otro | D23: 1
C24: Criterio 6. Clave o nivel del puesto (de acuerdo con el catálogo de claves y niveles de puesto de cada sujeto obligado) | D24: 1
C25: Criterio 7. Denominación del puesto (de acuerdo con el catálogo que en su caso regule la actividad del sujeto obligado) | D25: 1
C26: Criterio 8. Denominación del cargo de conformidad con nombramiento otorgado | D26: 1
C27: Criterio 9. Denominación del Área (de acuerdo con el catálogo que en su caso regule la actividad del sujeto obligado) | D27: 1
C28: Criterio 10. Salario bruto mensual | D28: 1
C29: Criterio 11. Salario neto mensual | D29: 1
C30: Criterio 12. Fecha de publicación del concurso, convocatoria, invitación y/o aviso con el formato día/mes/año | D30: 1
C31: Criterio 13. Número de la convocatoria | D31: 1
C32: Criterio 14. Hipervínculo al documento de la convocatoria, invitación y/o aviso en el que se indique la información necesaria para participar, entre otras: funciones a realizar, perfil del puesto, requisitos para participar, documentación solicitada, cómo y dónde registrarse, fases y fechas del proceso de selección, guías para evaluaciones | D32: 1
C33: Criterio 15. Estado del proceso del concurso, convocatoria, invitación y/o aviso (catálogo): En proceso/En evaluación/Finalizado/ Cancelado/ Desierto | D33: 1
C34: Criterio 16. Número total de candidatos registrados | D34: 1
C35: Criterio 17. Nombre(s), primer apellido, segundo apellido de la persona aceptada/contratada para ocupar la plaza, cargo, puesto o función | D35: 1
C36: Criterio 18. Hipervínculo a la versión pública del acta o documento que asigne al(la) ganador(a) | D36: =IF(E36="Justificado",0,1) -> 1
C37: Criterio 19. En su caso, hipervínculo al sistema electrónico de convocatorias y/o concursos correspondiente al sujeto obligado y el hipervínculo al mismo | D37: =IF(E37="Justificado",0,1) -> 1
C39: Criterios Adjetivos LTG 2018 - LTG 2020 (DOF 28/12/20)
C41: Criterio | E41: Valoración | F41: Tipo | G41: Observaciones, Recomendaciones y/o Requerimientos
C42: Criterio 20. Periodo de actualización de la información: trimestral. En su caso, se actualizará la información, previo a la fecha de vencimiento de las convocatorias para ocupar cargos públicos; de conformidad con la normativa aplicable al sujeto obligado | D42: =IF(E42="Justificado",0,1) -> 1
C43: Criterio 21. La información publicada deberá estar actualizada al periodo que corresponde de acuerdo con la Tabla de actualización y conservación de la información | D43: 1
C44: Criterio 22. Conservar en el sitio de Internet y a través de la Plataforma Nacional la Información vigente y del ejercicio en curso | D44: 1
C45: Criterio 23. Área(s) responsable(s) que genera(n), posee(n), publica(n) y/o actualiza(n)la información | D45: 1
C46: Criterio 24. Fecha de actualización de la información publicada con el formato día/mes/año | D46: 1
C47: Criterio 25. Fecha de validación de la información publicada con el formato día/mes/año | D47: 1
C48: Criterio 26. Nota. Este criterio se cumple en caso de que sea necesario que el sujeto obligado incluya alguna aclaración relativa a la información publicada y/o explicación por la falta de información | D48: 1
C49: Criterio 27. La información publicada se organiza mediante el formato 14 en el que se incluyen todos los campos especificados en los criterios sustantivos de contenido | D49: 1
C50: Criterio 28. El soporte de la información permite su reutilización | D50: 1
D58: 2017 | E58: 2018
C59: CS | D59: NA | E59: =IF(Aplicabilidad!G25<>"SI","NA",SUM(E19:E37)/SUM(D19:D37)) -> NA
C60: CA | D60: NA | E60: =IF(Aplicabilidad!G25<>"SI","NA",SUM(E42:E50)/SUM(D42:D50)) -> NA
C61: OBLIGACIÓN | D61: NA | E61: =IF(Aplicabilidad!G25<>"SI","NA",E59*0.6+E60*0.4) -> NA

Sheet Art 74_XV (hidden)
C1: =IF(Aplicabilidad!E2="","",Aplicabilidad!E2) -> Consejería Jurídica
B3: Códigos de valoración : Cumplió totalmente = 1; Cumplió parcialmente = 0.5; No cumplió = 0; Justificado = Justificado
B5: Art. 74 - Fracción XV. Programas sociales
C7: Fecha de Inicio de la Verificación: | G7: Fecha de Término de la verificación
C8: =IF(Resultados!$C$7="","",Resultados!$C$7) -> 2021-07-07 | D8: 2018-05-25 | G8: =IF(Resultados!G7="","",Resultados!G7) -> 2021-07-08
C10: Criterios Sustantivos | E10: =IF(Aplicabilidad!G26<>"SI","NA",(SUM(E19:E75)+SUM(E83:E154))/(SUM(D19:D75)+SUM(D83:D154))) -> NA
C11: Criterios Adjetivos | E11: =IF(Aplicabilidad!G26<>"SI","NA",(SUM(E159:E167))/(SUM(D159:D167))) -> NA
C12: Obligación | E12: =IF(Aplicabilidad!G26<>"SI","NA",E10*0.6+E11*0.4) -> NA
C16: Criterios Sustantivos de contenido LTG 2018 - LTG 2020 (DOF 28/12/20) | D16: =COUNTA(F19:F76) -> 0
C18: Criterio | E18: Valoración | F18: Tipo | G18: Observaciones, Recomendaciones y/o Requerimientos
C19: Criterio 1. Tipo de programa: Programas de transferencia, Programas de servicios, Programas de infraestructura social, Programas de subsidio o Mixto | D19: =IF(E19="Justificado",0,1) -> 0 | E19: Justificado
C20: Criterio 2. Ejercicio | D20: =IF(E20="Justificado",0,1) -> 0 | E20: Justificado
C21: Criterio 3. El programa es desarrollado por más de un área o sujeto obligado (Sí / No) | D21: 0 | E21: Justificado
C22: Criterio 4. Sujeto(s) obligado(s), en su caso, corresponsable(s) del programa | D22: 0 | E22: Justificado
C23: Criterio 5. Área(s) (de acuerdo con el catálogo que en su caso regule la actividad del sujeto obligado) o unidad(es) responsable(s) del desarrollo del programa | D23: 0 | E23: Justificado
C24: Criterio 6. Denominación del programa | D24: 0 | E24: Justificado
C25: Criterio 7. En su caso, la denominación del documento normativo en el cual se especifique la creación del programa: Ley / Lineamiento / Convenio / Otro (especificar) | D25: 0 | E25: Justificado
C26: Criterio 8. Hipervínculo al documento normativo en el cual se especifica la creación del programa | D26: 0 | E26: Justificado
C27: Criterio 9. Periodo de vigencia o ciclo correspondiente al programa llevado a cabo (fecha de inicio y fecha de término publicada con el formato día/mes/año [por ej. 31/Marzo/2016]) | D27: 0 | E27: Justificado
C28: Criterio 10. Diseño | D28: 0 | E28: Justificado
C29: Criterio 11. Objetivos (generales y específicos) | D29: 0 | E29: Justificado
C30: Criterio 12. Alcances (corto, mediano o largo plazo) | D30: 0 | E30: Justificado
C31: Criterio 13. Metas físicas | D31: 0 | E31: Justificado
C32: Criterio 14. Población beneficiada estimada (número de personas) | D32: 0 | E32: Justificado
C33: Criterio 15. Nota metodológica de cálculo (en caso de tratarse de una estimación) | D33: 0 | E33: Justificado
C34: Criterio 16. Monto del presupuesto aprobado | D34: 0 | E34: Justificado
C35: Criterio 17. Monto del presupuesto modificado | D35: 0 | E35: Justificado
C36: Criterio 18. Monto del presupuesto ejercido | D36: 0 | E36: Justificado
C37: Criterio 19. Monto destinado a cubrir el déficit de operación | D37: 0 | E37: Justificado
C38: Criterio 20. Monto destinado a cubrir los gastos de administración asociados con el otorgamiento de subsidios de las entidades y órganos administrativos desconcentrados | D38: 0 | E38: Justificado
C39: Criterio 21. Hipervínculo, en su caso, al documento donde se establezcan las modificaciones a los alcances o modalidades del programa | D39: 0 | E39: Justificado
C40: Criterio 22. Hipervínculo al Calendario de su programación presupuestal | D40: 0 | E40: Justificado
C41: Criterio 23. Criterios de elegibilidad previstos | D41: 0 | E41: Justificado
C42: Criterio 24. Requisitos y procedimientos de acceso | D42: 0 | E42: Justificado
C43: Criterio 25. Monto, apoyo o beneficio (en dinero o en especie) mínimo que recibirá(n) el(los) beneficiario(s) | D43: 0 | E43: Justificado
C44: Criterio 26. Monto, apoyo o beneficio (en dinero o en especie) máximo que recibirá(n) el(los) beneficiario(s) | D44: 0 | E44: Justificado
C45: Criterio 27. Procedimiento de queja o inconformidad ciudadana | D45: 0 | E45: Justificado
C46: Criterio 28. Mecanismos de exigibilidad | D46: 0 | E46: Justificado
C47: Criterio 29. Mecanismos de cancelación de apoyo, en su caso | D47: 0 | E47: Justificado
C48: Criterio 30. Periodo que se informa | D48: 0 | E48: Justificado
C49: Criterio 31. Mecanismos de evaluación | D49: 0 | E49: Justificado
C50: Criterio 32. Instancia(s) evaluadora(s) | D50: 0 | E50: Justificado
C51: Criterio 33. Hipervínculo a los Resultados de los informes de evaluación | D51: 0 | E51: Justificado
C52: Criterio 34. Seguimiento que ha dado el sujeto obligado a las recomendaciones que en su caso se hayan emitido | D52: 0 | E52: Justificado
C53: Criterio 35. Denominación del indicador | D53: 0 | E53: Justificado
C54: Criterio 36. Definición | D54: 0 | E54: Justificado
C55: Criterio 37. Método de cálculo (fórmula) | D55: 0 | E55: Justificado
C56: Criterio 38. Unidad de medida | D56: 0 | E56: Justificado
C57: Criterio 39. Dimensión (eficiencia, eficacia, economía, calidad) | D57: 0 | E57: Justificado
C58: Criterio 40. Frecuencia de medición | D58: 0 | E58: Justificado
C59: Criterio 41. Resultados | D59: 0 | E59: Justificado
C60: Criterio 42. Denominación del documento, metodología, base de datos o documento que corresponda en el cual se basaron para medir y/o generar el indicador utilizado | D60: 0 | E60: Justificado
C61: Criterio 43. Formas de participación social | D61: 0 | E61: Justificado
C62: Criterio 44. Articulación con otros programas sociales (Sí / No) | D62: 0 | E62: Justificado
C63: Criterio 45. Denominación del(los) programa(s) al(los) cual(es) está articulado | D63: 0 | E63: Justificado
C64: Criterio 46. Está sujeto a Reglas de Operación (Sí / No) | D64: 0 | E64: Justificado
C65: Criterio 47. Hipervínculo al documento de Reglas de Operación, publicado en el DOF, gaceta, periódico o documento equivalente | D65: 0 | E65: Justificado
C66: Criterio 48. Hipervínculo a los informes periódicos sobre la ejecución del programa | D66: 0 | E66: Justificado
C67: Criterio 49. Hipervínculo al resultados de las evaluaciones realizadas a dichos informes | D67: 0 | E67: Justificado
C68: Criterio 50. Fecha de publicación, en el DOF gaceta, periódico o documento equivalente, de las evaluaciones realizadas a los programas con el formato día/mes/año (por ej. 31/Marzo/2016) | D68: 0 | E68: Justificado
C69: Criterio 51. Hipervínculo al padrón de beneficiarios o participantes. Deberá publicarse en un documento explotable y constituido con los siguientes campos: | D69: 0 | E69: Justificado
C70: Criterio 52. Nombre de la persona física (nombre[s], primer apellido, segundo apellido), denominación social de las personas morales beneficiarias o denominación (en su caso) de un grupo constituido por varias personas físicas o morales, de acuerdo con la identificación que el sujeto obligado le otorgue[6] | D70: 0 | E70: Justificado
C71: Criterio 53. Monto (en pesos), recurso, beneficio o apoyo (en dinero o en especie) otorgado a cada una de las personas físicas, morales o grupos que el sujeto obligado determine | D71: 0 | E71: Justificado
C72: Criterio 54. Unidad territorial (colonia, municipio, delegación, estado y/o país) | D72: 0 | E72: Justificado
C73: Criterio 55. Edad (en su caso) | D73: 0 | E73: Justificado
C74: Criterio 56. Sexo (en su caso) | D74: =IF(E74="Justificado",0,1) -> 0 | E74: Justificado
C75: Criterio 57. Hipervínculo a información estadística general de las personas beneficiadas por el programa | D75: =IF(E75="Justificado",0,1) -> 0 | E75: Justificado
C80: Criterios Sustantivos de contenido LTG 2018 - LTG 2020 (DOF 28/12/20) | D80: =COUNTA(F83:F167) -> 1
C82: Criterio | E82: Valoración | F82: Tipo | G82: Observaciones, Recomendaciones y/o Requerimientos
C83: Criterio 1 . Ejercicio | D83: =IF(E83="Justificado",0,1) -> 1
C84: Criterio 2 . Periodo que se informa (fecha de inicio y fecha de término con el formato día/mes/año) | D84: =IF(E84="Justificado",0,1) -> 1
C85: Criterio 3. Ámbito (Catálogo): Local/Federal (Criterio adicionado DOF 28/12/2020) | D85: 1
C86: Criterio 4. Tipo de programa (catálogo): Programa de transferencia/Programa de servicios/Programa de infraestructura social/Programa de subsidio/Programa mixto | D86: 1
C87: Criterio 5. Denominación del programa | D87: 1
C88: Criterio 6. Denominación del subprograma, vertiente o modalidad a la que pertenece el beneficiario, en su caso. (Criterio adicionado DOF 28/12/2020) | D88: 1
C89: Criterio 7. El programa es desarrollado por más de un área o sujeto obligado (catálogo): Sí/No | D89: 1
C90: Criterio 8. Sujeto(s) obligado(s), en su caso, corresponsable(s) del programa | D90: 1
C91: Criterio 9. Área(s) (de acuerdo con el catálogo que en su caso regule la actividad del sujeto obligado) responsable(s) del desarrollo del programa | D91: 1
C92: Criterio 10. Denominación del documento normativo en el cual se especifique la creación del programa | D92: 1
C93: Criterio 11. Hipervínculo al documento normativo en el cual se especifique la creación del programa | D93: 1
C94: Criterio 12. El periodo de vigencia del programa está definido (catálogo): Sí/No | D94: 1
C95: Criterio 13. Fecha de inicio de vigencia del programa llevado a cabo (con el formato día/mes/año) | D95: 1
C96: Criterio 14 . Fecha de término de vigencia del programa llevado a cabo (con el formato día/mes/año) | D96: 1
C97: Criterio 15. Diseño | D97: 1
C98: Criterio 16. Objetivo(s) general(es) | D98: 1
C99: Criterio 17. Objetivo(s) específico(s) | D99: 1
C100: Criterio 18. Alcances (catálogo): Corto plazo/Mediano plazo/Largo plazo/Permanente | D100: 1
C101: Criterio 19. Metas físicas | D101: 1
C102: Criterio 20. Población beneficiada estimada (número de personas) | D102: 1
C103: Criterio 21. Nota metodológica de cálculo (en caso de tratarse de una estimación) | D103: 1
C104: Criterio 22. Monto del presupuesto aprobado | D104: 1
C105: Criterio 23. Monto del presupuesto modificado | D105: 1
C106: Criterio 24. Monto del presupuesto ejercido | D106: 1
C107: Criterio 25. Monto destinado a cubrir el déficit de operación | D107: 1
C108: Criterio 26. Monto destinado a cubrir los gastos de administración asociados con el otorgamiento de subsidios de las entidades y órganos administrativos desconcentrados | D108: 1
C109: Criterio 27. Hipervínculo, en su caso, al documento donde se establezcan las modificaciones a los alcances o modalidades del programa | D109: 1
C110: Criterio 28. Hipervínculo al Calendario de su programación presupuestal | D110: 1
C111: Criterio 29. Criterios de elegibilidad previstos | D111: 1
C112: Criterio 30. Requisitos y procedimientos de acceso | D112: 1
C113: Criterio 31. Monto, apoyo o beneficio (en dinero o en especie) mínimo que recibirá(n) el(los) beneficiario(s) | D113: 1
C114: Criterio 32. Monto, apoyo o beneficio (en dinero o en especie) máximo que recibirá(n) el(los) beneficiario(s) | D114: 1
C115: Criterio 33. Procedimiento de queja o inconformidad ciudadana | D115: 1
C116: Criterio 34. Mecanismos de exigibilidad | D116: 1
C117: Criterio 35. Mecanismos de cancelación de apoyo, en su caso | D117: 1
C118: Criterio 36. Periodo evaluado | D118: 1
C119: Criterio 37. Mecanismos de evaluación | D119: 1
C120: Criterio 38. Instancia(s) evaluadora(s) | D120: 1
C121: Criterio 39. Hipervínculo a los Informes de resultados de la evaluación | D121: 1
C122: Criterio 40. Seguimiento que ha dado el sujeto obligado a las recomendaciones que en su caso se hayan emitido | D122: 1
C123: Criterio 41. Denominación del indicador | D123: 1
C124: Criterio 42. Definición | D124: 1
C125: Criterio 43. Método de cálculo (fórmula) | D125: 1
C126: Criterio 44. Unidad de medida | D126: 1
C127: Criterio 45. Dimensión (catálogo): eficiencia/eficacia/ economía/calidad | D127: 1
C128: Criterio 46. Frecuencia de medición | D128: 1
C129: Criterio 47. Resultados | D129: 1
C130: Criterio 48. Denominación del documento, metodología, base de datos o documento que corresponda en el cual se basaron para medir y/o generar el indicador utilizado | D130: 1
C131: Criterio 49. Formas de participación social | D131: 1
C132: Criterio 50. Articulación con otros programas sociales (catálogo): Sí/No | D132: 1
C133: Criterio 51. Denominación del(los) programa(s) al(los) cual(es) está articulado | D133: 1
C134: Criterio 52. Está sujeto a Reglas de Operación (catálogo): Sí/No | D134: 1
C135: Criterio 53. Hipervínculo al documento de Reglas de Operación, publicado en el DOF, gaceta, periódico o documento equivalente | D135: 1
C136: Criterio 54. Hipervínculo a los informes periódicos sobre la ejecución del programa | D136: 1
C137: Criterio 55. Hipervínculo al resultado de las evaluaciones realizadas a dichos informes | D137: 1
C138: Criterio 56. Fecha de publicación, en el DOF, gaceta, periódico o documento equivalente, de las evaluaciones realizadas a los programas (con el formato día/mes/año). | D138: 1
C139: Criterio 57. Hipervínculo al padrón de beneficiarios o participantes. Este documento deberá ser el publicado en el DOF, Gaceta o cualquier medio oficial según corresponda | D139: 1
C140: Criterio 58. Hipervínculo al Padrón de Beneficiarios de programas de desarrollo social federal elaborado y publicado por la Secretaría del Bienestar (Criterio adicionado DOF 28/12/2020) | D140: 1
C141: Criterio 59. Ejercicio | D141: 1
C142: Criterio 60. Periodo que se informa (fecha de inicio y fecha de término con el formato día/mes/año) | D142: 1
C143: Criterio 61. Ámbito (Catálogo): Local/Federal (Criterio adicionado DOF 28/12/2020) | D143: 1
C144: Criterio 62. Tipo de programa (catálogo): Programa de transferencia/ Programa de servicios/ Programa de infraestructura social/ Programa de subsidio/ Programa mixto | D144: 1
C145: Criterio 63. Denominación del programa | D145: 1
C146: Criterio 64. Denominación del subprograma, vertiente o modalidad a la que pertenece el beneficiario, en su caso. (Criterio adicionado DOF 28/12/2020) | D146: 1
C147: Criterio 65. Nombre de la persona física (nombre[s], primer apellido, segundo apellido), denominación social de las personas morales beneficiarias o denominación (en su caso) de un grupo constituido por varias personas físicas o morales, de acuerdo con la identificación que el sujeto obligado le otorgue | D147: 1
C148: Criterio 66. Fecha en que la persona se volvió beneficiaria del programa (con el formato día/mes/año) (Criterio adicionado DOF 28/12/2020) | D148: =IF(E148="Justificado",0,1) -> 1
C149: Criterio 67. Monto, recurso, beneficio o apoyo (en dinero o en especie) otorgado a cada una de las personas físicas, morales o grupos que el sujeto obligado determine | D149: 1
C150: Criterio 68. Monto en pesos del beneficio o apoyo en especie entregado a cada una de las personas físicas, morales o grupos que el sujeto obligado determine si el Beneficio no tiene representación monetaria (Criterio adicionado DOF 28/12/2020) | D150: 1
C151: Criterio 69. Unidad territorial (colonia, municipio, delegación, estado y/o país) | D151: 1
C152: Criterio 70. Edad (en su caso) | D152: 1
C153: Criterio 71. Sexo, en su caso (catálogo): Femenino/ Masculino | D153: 1
C154: Criterio 72. Hipervínculo a información estadística general de las personas beneficiadas por el programa | D154: 1
C156: Criterios Adjetivos LTG 2018 - LTG 2020 (DOF 28/12/20)
C158: Criterio | E158: Valoración | F158: Tipo | G158: Observaciones, Recomendaciones y/o Requerimientos
C159: Criterio 73. Periodo de actualización de la información: trimestral (la información de los programas que se desarrollarán a lo largo del ejercicio deberá publicarse durante el primer mes del año) | D159: =IF(E159="Justificado",0,1) -> 1
C160: Criterio74. La información publicada deberá estar actualizada al periodo que corresponde de acuerdo con la Tabla de actualización y conservación de la información | D160: 1
C161: Criterio 75. Conservar en el sitio de Internet y a través de la Plataforma Nacional la información del ejercicio en curso y la correspondiente a los dos ejercicios anteriores | D161: 1
C162: Criterio 76. Área(s) responsable(s) que genera(n), posee(n), publica(n) y/o actualiza(n)la información | D162: 1
C163: Criterio 77. Fecha de actualización de la información publicada con el formato día/mes/año | D163: 1
C164: Criterio 78. Fecha de validación de la información publicada con el formato día/mes/año | D164: 1
C165: Criterio 79. Nota. Este criterio se cumple en caso de que sea necesario que el sujeto obligado incluya alguna aclaración relativa a la información publicada y/o explicación por la falta de información | D165: 1
C166: Criterio 80. La información publicada se organiza mediante los formatos 15a y 15b, en los que se incluyen todos los campos especificados en los criterios sustantivos de contenido | D166: 1
C167: Criterio 81. El soporte de la información permite su reutilización | D167: 1
D175: 2017 | E175: 2018
C176: CS | D176: =IF(Aplicabilidad!G26<>"SI","NA",SUM(E19:E75)/SUM(D19:D75)) -> NA | E176: =IF(Aplicabilidad!G26<>"SI","NA",SUM(E83:E154)/SUM(D83:D154)) -> NA
C177: CA | D177: =IF(Aplicabilidad!G26<>"SI","NA",SUM(#REF!)/SUM(#REF!)) -> NA | E177: =IF(Aplicabilidad!G26<>"SI","NA",SUM(E159:E167)/SUM(D159:D167)) -> NA
C178: OBLIGACIÓN | D178: =IF(Aplicabilidad!G26<>"SI","NA",D176*0.6+D177*0.4) -> NA | E178: =IF(Aplicabilidad!G26<>"SI","NA",E176*0.6+E177*0.4) -> NA

Sheet Art 74_XVI (hidden)
C1: =IF(Aplicabilidad!E2="","",Aplicabilidad!E2) -> Consejería Jurídica
B3: Códigos de valoración : Cumplió totalmente = 1; Cumplió parcialmente = 0.5; No cumplió = 0; Justificado = Justificado
B5: Art. 74 - Fracción XVI. Relaciones laborales y recursos públicos a sindicatos
C7: Fecha de Inicio de la Verificación: | G7: Fecha de Término de la verificación
C8: =IF(Resultados!$C$7="","",Resultados!$C$7) -> 2021-07-07 | D8: 2018-05-25 | G8: =IF(Resultados!G7="","",Resultados!G7) -> 2021-07-08
C10: Criterios Sustantivos | E10: =IF(Aplicabilidad!G27<>"SI","NA",(SUM(E19:E42)+SUM(E50:E68))/(SUM(D19:D42)+SUM(D50:D68))) -> NA
C11: Criterios Adjetivos | E11: =IF(Aplicabilidad!G27<>"SI","NA",(SUM(E73:E81))/(SUM(D73:D81))) -> NA
C12: Obligación | E12: =IF(Aplicabilidad!G27<>"SI","NA",E10*0.6+E11*0.4) -> NA
C16: Criterios Sustantivos de contenido LTG 2018 - LTG 2020 (DOF 28/12/20) | D16: =COUNTA(F19:F43) -> 0
C18: Criterio | E18: Valoración | F18: Tipo | G18: Observaciones, Recomendaciones y/o Requerimientos
C19: Criterio 1. Tipo de personal: Base / Confianza | D19: =IF(E19="Justificado",0,1) -> 1
C20: Criterio 2. Tipo de normatividad. Incluir catálogo: Constitución Política de los Estados Unidos Mexicanos / Tratados internacionales / Constitución Política de la entidad federativa o Estatuto de gobierno del Distrito Federal / Leyes generales, federales y locales / Códigos / Reglamentos / Decreto de creación / Manuales administrativos, de integración, organizacionales / Reglas de operación / Criterios / Políticas / Otros documentos normativos: normas, bandos, resoluciones, lineamientos circulares, acuerdos, convenios, contratos, estatutos sindicales, estatutos universitarios, estatutos de personas morales, memorandos de entendimiento, entre otros aplicables al sujeto obligado de conformidad con sus facultades y atribuciones | D20: =IF(E20="Justificado",0,1) -> 1
C21: Criterio 3. Denominación del documento, en su caso, Condiciones Generales de Trabajo | D21: 1
C22: Criterio 4. Fecha de aprobación, registro ante la autoridad correspondiente o la publicación oficial de las Condiciones Generales de Trabajo, por ejemplo Diario Oficial de la Federación, gaceta o periódico correspondiente; con el formato día/mes/año (por ej. 31/Marzo/2016) | D22: 1
C23: Criterio 5. Fecha, en su caso, de la última modificación de la norma o de las Condiciones Generales de Trabajo con el formato día/mes/año (por ej. 31/Marzo/2016) | D23: 1
C24: Criterio 6. Hipervínculo al documento Condiciones Generales de Trabajo completo o a la normatividad correspondiente | D24: 1
C25: Criterio 7. Denominación del contrato convenio, o documento que regule las relaciones laborales | D25: 1
C26: Criterio 8. Fecha de aprobación, registro ante la autoridad correspondiente o en su caso, publicación en el DOF, gaceta u órgano de difusión oficial, en su caso con el formato día/mes/año (por ej. 31/Marzo/2016) | D26: 1
C27: Criterio 9. Fecha de última modificación, en su caso, y con el formato día/mes/año (por ej. 31/Marzo/2016) | D27: 1
C28: Criterio 10. Hipervínculo al documento completo | D28: 1
C29: Criterio 11. Ejercicio | D29: 1
C30: Criterio 12. Periodo que se informa | D30: 1
C31: Criterio 13. Fecha de entrega de los recursos públicos, con el formato día/mes/año (por ejemplo 31/Marzo/2016) | D31: 1
C32: Criterio 14. Tipo de recursos públicos: efectivo / en especie (materiales) / donativos | D32: 1
C33: Criterio 15. Descripción breve de los recursos | D33: 1
C34: Criterio 16. Denominación del(os) sindicato(s) al(os) cual(es) se les entregó el recurso público | D34: 1
C35: Criterio 17. Hipervínculo al acta constitutiva del sindicato | D35: 1
C36: Criterio 18. Hipervínculo al oficio, petición, carta o documento en el que conste la petición del donativo | D36: 1
C37: Criterio 19. Monto de los recursos públicos entregados en efectivo, en especie o donativos | D37: 1
C38: Criterio 20. Objetivos por los cuales se entrega el donativo | D38: 1
C39: Criterio 21. Descripción de los recursos en especie, en su caso | D39: 1
C40: Criterio 22. Hipervínculo, en su caso, al informe de uso de recursos que entregue el sindicato al sujeto obligado | D40: 1
C41: Criterio 23. Hipervínculo, en su caso, al(los) Programa(s) con objetivos y metas por los que se entregan los recursos para cubrir las prestaciones establecidas en las Condiciones Generales de Trabajo de los Contratos Colectivos de Trabajo | D41: =IF(E41="Justificado",0,1) -> 1
C42: Criterio 24. Hipervínculo, en su caso, a los Programas con objetivos y metas por los que se entregan los donativos | D42: =IF(E42="Justificado",0,1) -> 1
C47: Criterios Sustantivos de contenido LTG 2018 - LTG 2020 (DOF 28/12/20) | D47: =COUNTA(F50:F81) -> 1
C49: Criterio | E49: Valoración | F49: Tipo | G49: Observaciones, Recomendaciones y/o Requerimientos
C50: Criterio 1. Ejercicio | D50: =IF(E50="Justificado",0,1) -> 1
C51: Criterio 2. Periodo que se informa (fecha de inicio y fecha de término con el formato día/mes/año) | D51: =IF(E51="Justificado",0,1) -> 1
C52: Criterio 3. Tipo de personal (catálogo): Base / Confianza | D52: 1
C53: Criterio 4. Tipo de normatividad (catálogo): Constitución Política de los Estados Unidos Mexicanos/Tratado internacional/Constitución Política de la entidad federativa/Estatuto/Ley General/Ley Federal/Ley Orgánica/Ley local/Ley Reglamentaria/Código/Reglamento/Decreto/Manual/Reglas de operación/ Criterios/Política/Condiciones/Norma/Bando/Resolución/Lineamientos/Circular/Acuerdo/Convenio/Contrato/Estatuto sindical/Estatuto Universitario/Estatuto de personas morales/Memorando de entendimiento/Otro | D53: 1
C54: Criterio 5. Denominación de las condiciones generales de trabajo, contrato, convenio o documento que regule las relaciones laborales | D54: 1
C55: Criterio 6. Fecha de aprobación, registro ante la autoridad correspondiente o la publicación oficial, por ejemplo: Diario Oficial de la Federación, gaceta o periódico correspondiente; con el formato día/mes/año | D55: 1
C56: Criterio 7. Fecha, en su caso, de la última modificación de las Condiciones Generales de Trabajo, contrato, convenio o documento que regule las relaciones laborales con el formato día/mes/año | D56: 1
C57: Criterio 8. Hipervínculo al documento de condiciones Generales de Trabajo, contrato, convenio o documento que regule las relaciones laborales completo | D57: 1
C58: Criterio 9. Ejercicio | D58: 1
C59: Criterio 10. Periodo que se informa (fecha de inicio y fecha de término) | D59: 1
C60: Criterio 11. Tipo de recursos públicos (catálogo): efectivo / en especie (materiales) / donativos | D60: 1
C61: Criterio 12. Descripción y/o monto de los recursos públicos entregados en efectivo, especie o donativos | D61: 1
C62: Criterio 13. Motivos por los cuales se entrega el recurso en efectivo, especie o donativo | D62: 1
C63: Criterio 14. Fecha de entrega de los recursos públicos, con el formato día/mes/año | D63: 1
C64: Criterio 15. Denominación del(os) sindicato(s) al(os) cual(es) se les entregó el recurso público | D64: 1
C65: Criterio 16. Hipervínculo al oficio, petición, carta o documento en el que conste la petición del donativo, en su caso | D65: 1
C66: Criterio 17. Hipervínculo, en su caso, al informe de uso de recursos en efectivo, especie o donativos que entregue el sindicato al sujeto obligado | D66: 1
C67: Criterio 18. Hipervínculo, en su caso, al(los) Programa(s) con objetivos y metas por los que se entregan los recursos para cubrir las prestaciones establecidas en las Condiciones Generales de Trabajo de los Contratos Colectivos de Trabajo | D67: =IF(E67="Justificado",0,1) -> 1
C68: Criterio 19. Hipervínculo, en su caso, a los Programas con objetivos y metas por los que se entregan los donativos | D68: =IF(E68="Justificado",0,1) -> 1
C70: Criterios Adjetivos LTG 2018 - LTG 2020 (DOF 28/12/20)
C72: Criterio | E72: Valoración | F72: Tipo | G72: Observaciones, Recomendaciones y/o Requerimientos
C73: Criterio 20. Periodo de actualización de la información: trimestral; cuando se establezca, modifique o derogue cualquier norma laboral aplicable al sujeto obligado, la información normativa deberá actualizarse en un plazo no mayor a 15 días hábiles a partir de su publicación y/o aprobación | D73: =IF(E73="Justificado",0,1) -> 1
C74: Criterio 21. La información publicada deberá estar actualizada al periodo que corresponde de acuerdo con la Tabla de actualización y conservación de la información | D74: 1
C75: Criterio 22. Conservar en el sitio de Internet y a través de la Plataforma Nacional la información vigente de acuerdo con la Tabla de actualización y conservación de la información | D75: 1
C76: Criterio 23. Área(s) responsable(s) que genera(n), posee(n), publica(n) y/o actualiza(n)la información | D76: 1
C77: Criterio 24. Fecha de actualización de la información publicada con el formato día/mes/año | D77: 1
C78: Criterio 25. Fecha de validación de la información publicada con el formato día/mes/año | D78: 1
C79: Criterio 26. Nota. Este criterio se cumple en caso de que sea necesario que el sujeto obligado incluya alguna aclaración relativa a la información publicada y/o explicación por la falta de información | D79: 1
C80: Criterio 27. La información publicada se organiza mediante los formatos 16a y 16b, en los que se incluyen todos los campos especificados en los criterios sustantivos de contenido | D80: 1
C81: Criterio 28. El soporte de la información permite su reutilización | D81: 1
D89: 2017 | E89: 2018
C90: CS | D90: =IF(Aplicabilidad!G27<>"SI","NA",SUM(E19:E42)/SUM(D19:D42)) -> NA | E90: =IF(Aplicabilidad!G27<>"SI","NA",SUM(E50:E68)/SUM(D50:D68)) -> NA
C91: CA | D91: =IF(Aplicabilidad!G27<>"SI","NA",SUM(#REF!)/SUM(#REF!)) -> NA | E91: =IF(Aplicabilidad!G27<>"SI","NA",SUM(E73:E81)/SUM(D73:D81)) -> NA
C92: OBLIGACIÓN | D92: =IF(Aplicabilidad!G27<>"SI","NA",D90*0.6+D91*0.4) -> NA | E92: =IF(Aplicabilidad!G27<>"SI","NA",E90*0.6+E91*0.4) -> NA

Sheet Art 74_XVII
C1: =IF(Aplicabilidad!E2="","",Aplicabilidad!E2) -> Consejería Jurídica
B3: Códigos de valoración : Cumplió totalmente = 1; Cumplió parcialmente = 0.5; No cumplió = 0; Justificado = Justificado
B5: Art. 74 - Fracción XVII. Datos curriculares
C7: Fecha de Inicio de la Verificación: | G7: Fecha de Término de la verificación
C8: =IF(Resultados!$C$7="","",Resultados!$C$7) -> 2021-07-07 | D8: 2018-05-25 | G8: =IF(Resultados!G7="","",Resultados!G7) -> 2021-07-08
C10: Criterios Sustantivos | E10: =IF(Aplicabilidad!G28<>"SI","NA",(SUM(E20:E34))/(SUM(D20:D34))) -> 100%
C11: Criterios Adjetivos | E11: =IF(Aplicabilidad!G28<>"SI","NA",(SUM(E39:E47))/(SUM(D39:D47))) -> 100%
C12: Obligación | E12: =IF(Aplicabilidad!G28<>"SI","NA",E10*0.6+E11*0.4) -> 100.00%
C16: Criterios Sustantivos de contenido LTG 2018 - LTG 2020 (DOF 28/12/20)
C17: Criterios Sustantivos de contenido LTG 2018 - LTG 2020 (DOF 28/12/20) | D17: =COUNTA(F20:F47) -> 1
C19: Criterio | E19: Valoración | F19: Tipo | G19: Observaciones, Recomendaciones y/o Requerimientos
C20: Criterio 1. Ejercicio | D20: =IF(E20="Justificado",0,1) -> 1 | E20: 1
C21: Criterio 2. Periodo que se informa (fecha de inicio y fecha de término con el formato día/mes/año) | D21: =IF(E21="Justificado",0,1) -> 1 | E21: 1
C22: Criterio 3. Denominación del puesto (de acuerdo con el catálogo que en su caso regule la actividad del sujeto obligado) | D22: 1 | E22: 1
C23: Criterio 4. Denominación del cargo (de conformidad con nombramiento otorgado) | D23: 1 | E23: 1
C24: Criterio 5. Nombre del servidor(a) público(a), integrante y/o, miembro del sujeto obligado, y/o persona que desempeñe un empleo, cargo o comisión y/o ejerza actos de autoridad (nombre[s], primer apellido, segundo apellido) | D24: 1 | E24: 1
C25: Criterio 6. Área de adscripción (de acuerdo con el catálogo que en su caso regule la actividad del sujeto obligado) | D25: 1 | E25: 1
C26: Criterio 7. Escolaridad, nivel máximo de estudios concluido y comprobable (catálogo): Ninguno/Primaria/Secundaria/Bachillerato/Carrera técnica/Licenciatura/Maestría/Doctorado/Posdoctorado/Especialización | D26: 1 | E26: 1
C27: Criterio 8. Carrera genérica, en su caso | D27: 1 | E27: 1
C28: Criterio 9. Periodo (mes/año de inicio y mes/año de conclusión) | D28: 1 | E28: 1
C29: Criterio 10. Denominación de la institución o empresa | D29: 1 | E29: 1
C30: Criterio 11. Cargo o puesto desempeñado | D30: 1 | E30: 1
C31: Criterio 12. Campo de experiencia | D31: 1 | E31: 1
C32: Criterio 13. Hipervínculo al documento que contenga la información relativa a la trayectoria del (la) servidor(a) público(a), que deberá contener, además de los datos mencionados en los criterios anteriores, información adicional respecto a la trayectoria académica, profesional o laboral que acredite su capacidad y habilidades o pericia para ocupar el cargo público | D32: 1 | E32: 1
C33: Criterio 14. Cuenta con sanciones administrativas definitivas aplicadas por la autoridad competente (catálogo): Sí/No | D33: 1 | E33: 1
C34: Criterio 15. Hipervínculo a la resolución donde se observe la aprobación de la sanción (Criterio adicionado DOF 28/12/2020) | D34: 0 | E34: Justificado
C36: Criterios Adjetivos LTG 2018 - LTG 2020 (DOF 28/12/20)
C38: Criterio | E38: Valoración | F38: Tipo | G38: Observaciones, Recomendaciones y/o Requerimientos
C39: Criterio 16. Periodo de actualización de la información: trimestral. En su caso, 15 días hábiles después de alguna modificación | D39: =IF(E39="Justificado",0,1) -> 1 | E39: 1
C40: Criterio 17. La información publicada deberá estar actualizada al periodo que corresponde de acuerdo con la Tabla de actualización y conservación de la información | D40: 1 | E40: 1
C41: Criterio 18. Conservar en el sitio de Internet y a través de la Plataforma Nacional la información vigente | D41: 1 | E41: 1
C42: Criterio 19. Área(s) responsable(s) que genera(n), posee(n), publica(n) y/o actualiza(n)la información | D42: 1 | E42: 1
C43: Criterio 20. Fecha de actualización de la información publicada con el formato día/mes/año | D43: 1 | E43: 1
C44: Criterio 21. Fecha de validación de la información publicada con el formato día/mes/año | D44: 1 | E44: 1
C45: Criterio 22. Nota. Este criterio se cumple en caso de que sea necesario que el sujeto obligado incluya alguna aclaración relativa a la información publicada y/o explicación por la falta de información | D45: 1 | E45: 1
C46: Criterio 23. La información publicada se organiza mediante el formato 17, en el que se incluyen todos los campos especificados en los criterios sustantivos de contenido | D46: 1 | E46: 1
C47: Criterio 24. El soporte de la información permite su reutilización | D47: 1 | E47: 1
D55: 2017 | E55: 2018
C56: CS | D56: =IF(Aplicabilidad!G28<>"SI","NA",SUM(#REF!)/SUM(#REF!)) ->  | E56: =IF(Aplicabilidad!G28<>"SI","NA",SUM(E20:E34)/SUM(D20:D34)) -> 100.00%
C57: CA | D57: =IF(Aplicabilidad!G28<>"SI","NA",SUM(#REF!)/SUM(#REF!)) ->  | E57: =IF(Aplicabilidad!G28<>"SI","NA",SUM(E39:E47)/SUM(D39:D47)) -> 100.00%
C58: OBLIGACIÓN | D58: =IF(Aplicabilidad!G28<>"SI","NA",D56*0.6+D57*0.4) ->  | E58: =IF(Aplicabilidad!G28<>"SI","NA",E56*0.6+E57*0.4) -> 100.00%

Sheet Art 74_XVIII
C1: =IF(Aplicabilidad!E2="","",Aplicabilidad!E2) -> Consejería Jurídica
B3: Códigos de valoración : Cumplió totalmente = 1; Cumplió parcialmente = 0.5; No cumplió = 0; Justificado = Justificado
B5: Art. 74 - Fracción XVIII. Funcionarios sancionados
C7: Fecha de Inicio de la Verificación: | G7: Fecha de Término de la verificación
C8: =IF(Resultados!$C$7="","",Resultados!$C$7) -> 2021-07-07 | D8: 2018-05-25 | G8: =IF(Resultados!G7="","",Resultados!G7) -> 2021-07-08
C10: Criterios Sustantivos | E10: =IF(Aplicabilidad!G29<>"SI","NA",(SUM(E19:E32)+SUM(E40:E63))/(SUM(D19:D32)+SUM(D40:D63))) -> 100%
C11: Criterios Adjetivos | E11: =IF(Aplicabilidad!G29<>"SI","NA",(SUM(E68:E76))/(SUM(D68:D76))) -> 100%
C12: Obligación | E12: =IF(Aplicabilidad!G29<>"SI","NA",E10*0.6+E11*0.4) -> 100.00%
C16: Criterios Sustantivos de contenido LTG 2018 - LTG 2020 (DOF 28/12/20) | D16: =COUNTA(F19:F33) -> 0
C18: Criterio | E18: Valoración | F18: Tipo | G18: Observaciones, Recomendaciones y/o Requerimientos
C19: Criterio 1. Nombre del (la) servidor(a) público(a) (y/o persona que desempeñe un empleo, cargo o comisión y/o ejerzan actos de autoridad en el sujeto obligado) (nombre[s], primer apellido, segundo apellido) | D19: =IF(E19="Justificado",0,1) -> 0 | E19: Justificado
C20: Criterio 2. Clave o nivel del puesto (de acuerdo con el catálogo que en su caso regule la actividad del sujeto obligado) | D20: =IF(E20="Justificado",0,1) -> 0 | E20: Justificado
C21: Criterio 3. Denominación del puesto (de acuerdo con el catálogo que en su caso regule la actividad del sujeto obligado, por ej. Subdirector[a]) | D21: 0 | E21: Justificado
C22: Criterio 4. Denominación del cargo (de conformidad con el nombramiento otorgado, por ej. Subdirector[a] de recursos humanos) | D22: 0 | E22: Justificado
C23: Criterio 5. Unidad administrativa de adscripción (Área) del servidor público (de acuerdo con el catálogo de unidades administrativas o puestos, si así corresponde) | D23: 0 | E23: Justificado
C24: Criterio 6. Tipo de sanción (Catálogo): Amonestación pública / Amonestación privada / Apercibimiento público / Apercibimiento privado / Sanción económica (especificar monto) / Suspensión del empleo / Cargo o comisión (especificar periodo en número de días) / Destitución del puesto / Inhabilitación temporal | D24: 0 | E24: Justificado
C25: Criterio 7. Orden jurisdiccional de la sanción (federal o estatal) | D25: 0 | E25: Justificado
C26: Criterio 8. Autoridad sancionadora | D26: 0 | E26: Justificado
C27: Criterio 9. Número de expediente | D27: 0 | E27: Justificado
C28: Criterio 10. Fecha de la resolución en la que se aprobó la sanción, con el formato día/mes/año (por ej. 31/Marzo/2016) | D28: 0 | E28: Justificado
C29: Criterio 11. Causa de la sanción (descripción breve de las causas que dieron origen a la irregularidad) | D29: 0 | E29: Justificado
C30: Criterio 12. Denominación de la normatividad infringida | D30: 0 | E30: Justificado
C31: Criterio 13. Hipervínculo a la resolución donde se observe la aprobación de la sanción | D31: =IF(E31="Justificado",0,1) -> 0 | E31: Justificado
C32: Criterio 14. Hipervínculo al sistema de registro de sanciones correspondiente | D32: =IF(E32="Justificado",0,1) -> 0 | E32: Justificado
C37: Criterios Sustantivos de contenido LTG 2018 - LTG 2020 (DOF 28/12/20) | D37: =COUNTA(F40:F76) -> 1
C39: Criterio | E39: Valoración | F39: Tipo | G39: Observaciones, Recomendaciones y/o Requerimientos
C40: Criterio 1. Ejercicio | D40: =IF(E40="Justificado",0,1) -> 1 | E40: 1
C41: Criterio 2. Periodo que se informa (fecha de inicio y fecha de término con el formato día/mes/año) | D41: =IF(E41="Justificado",0,1) -> 1 | E41: 1
C42: Criterio 3. Nombre del (la) servidor(a) público(a) y/o persona que desempeñe un empleo, cargo o comisión y/o ejerzan actos de autoridad en el sujeto obligado (nombre[s], primer apellido, segundo apellido) | D42: 0 | E42: Justificado
C43: Criterio 4. Clave o nivel del puesto (de acuerdo con el catálogo que en su caso regule la actividad del sujeto obligado) | D43: 0 | E43: Justificado
C44: Criterio 5. Denominación del puesto (de acuerdo con el catálogo que en su caso regule la actividad del sujeto obligado) | D44: 0 | E44: Justificado
C45: Criterio 6. Denominación del cargo (de conformidad con el nombramiento otorgado) | D45: 0 | E45: Justificado
C46: Criterio 7. Denominación del área de adscripción del servidor público (de acuerdo con el catálogo que en su caso regule la actividad del sujeto obligado) | D46: 0 | E46: Justificado
C47: Criterio 8. Tipo de sanción. Por ejemplo: Suspensión del empleo, cargo o comisión; Destitución del empleo, cargo o comisión; Sanción económica; Inhabilitación temporal para desempeñar empleos, cargos o comisiones en el servicio público y para participar en adquisiciones, arrendamientos, servicios u obras públicas (Criterio adicionado DOF 28/12/2020) | D47: 0 | E47: Justificado
C48: Criterio 9. Tipo de sanción. Por ejemplo: Suspensión del empleo, cargo o comisión; Destitución del empleo, cargo o comisión; Sanción económica; Inhabilitación temporal para desempeñar empleos, cargos o comisiones en el servicio público y para participar en adquisiciones, arrendamientos, servicios u obras públicas | D48: 0 | E48: Justificado
C49: Criterio 10. Orden jurisdiccional de la sanción (catálogo): Federal/Estatal | D49: 0 | E49: Justificado
C50: Criterio 11. Autoridad sancionadora | D50: 0 | E50: Justificado
C51: Criterio 12. Número de expediente | D51: 0 | E51: Justificado
C52: Criterio 13. Fecha de la resolución en la que se aprobó la sanción, con el formato día/mes/año | D52: 0 | E52: Justificado
C53: Criterio 14. Causa de la sanción (descripción breve de las causas que dieron origen a la irregularidad) | D53: 0 | E53: Justificado
C54: Criterio 15. Denominación de la normatividad infringida | D54: 0 | E54: Justificado
C55: Criterio 16. Artículo de la normatividad infringida (Criterio adicionado DOF 28/12/2020) | D55: 0 | E55: Justificado
C56: Criterio 17. Fracción de la normatividad infringida (Criterio adicionado DOF 28/12/2020) | D56: 0 | E56: Justificado
C57: Criterio 18. Fecha de inicio del procedimiento administrativo con el formato día/mes/año (Criterio adicionado DOF 28/12/2020) | D57: 0 | E57: Justificado
C58: Criterio 19. de conclusión del procedimiento administrativo con el formato día/mes/año (Criterio adicionado DOF 28/12/2020) | D58: 0 | E58: Justificado
C59: Criterio 20. Hipervínculo a la resolución donde se observe la aprobación de la sanción | D59: 0 | E59: Justificado
C60: Criterio 21. Hipervínculo al sistema de registro de sanciones correspondiente | D60: 0 | E60: Justificado
C61: Criterio 22 . Monto de la indemnización establecida (Criterio adicionado DOF 28/12/2020) | D61: 0 | E61: Justificado
C62: Criterio 23 . Monto de la indemnización efectivamente cobrada (Criterio adicionado DOF 28/12/2020) | D62: 0 | E62: Justificado
C63: Criterio 24. Fecha de cobro de la indemnización con el formato día/mes/año (Criterio adicionado DOF 28/12/2020) | D63: 0 | E63: Justificado
C65: Criterios Adjetivos LTG 2018 - LTG 2020 (DOF 28/12/20)
C67: Criterio | E67: Valoración | F67: Tipo | G67: Observaciones, Recomendaciones y/o Requerimientos
C68: Criterio 25. Periodo de actualización de la información: trimestral | D68: =IF(E68="Justificado",0,1) -> 1 | E68: 1
C69: Criterio 26. La información publicada deberá estar actualizada al periodo que corresponde de acuerdo con la Tabla de actualización y conservación de la información | D69: 1 | E69: 1
C70: Criterio 27. Conservar en el sitio de Internet: información del ejercicio en curso. Respecto de los(as) servidores(as) públicos(as) que hayan sido sancionados y permanezcan en el sujeto obligado al momento de la actualización de información, se conservará la información correspondiente a dos ejercicios anteriores. | D70: 1 | E70: 1
C71: Criterio 28. Área(s) responsable(s) que genera(n), posee(n), publica(n) y/o actualiza(n)la información | D71: 1 | E71: 1
C72: Criterio 29. Fecha de actualización de la información publicada con el formato día/mes/año | D72: 1 | E72: 1
C73: Criterio 30. Fecha de validación de la información publicada con el formato día/mes/año | D73: 1 | E73: 1
C74: Criterio 31. Nota. Este criterio se cumple en caso de que sea necesario que el sujeto obligado incluya alguna aclaración relativa a la información publicada y/o explicación por la falta de información | D74: 1 | E74: 1
C75: Criterio 32. La información publicada se organiza mediante el formato 18, en el que se incluyen todos los campos especificados en los criterios sustantivos de contenido | D75: 1 | E75: 1
C76: Criterio 33. El soporte de la información permite su reutilización | D76: 1 | E76: 1
D84: 2017 | E84: 2018
C85: CS | D85: =IF(Aplicabilidad!G29<>"SI","NA",SUM(E19:E32)/SUM(D19:D32)) ->  | E85: =IF(Aplicabilidad!G29<>"SI","NA",SUM(E40:E63)/SUM(D40:D63)) -> 100.00%
C86: CA | D86: =IF(Aplicabilidad!G29<>"SI","NA",SUM(#REF!)/SUM(#REF!)) ->  | E86: =IF(Aplicabilidad!G29<>"SI","NA",SUM(E68:E76)/SUM(D68:D76)) -> 100.00%
C87: OBLIGACIÓN | D87: =IF(Aplicabilidad!G29<>"SI","NA",D85*0.6+D86*0.4) ->  | E87: =IF(Aplicabilidad!G29<>"SI","NA",E85*0.6+E86*0.4) -> 100.00%

Sheet Art 74_XIX
C1: =IF(Aplicabilidad!E2="","",Aplicabilidad!E2) -> Consejería Jurídica
B3: Códigos de valoración : Cumplió totalmente = 1; Cumplió parcialmente = 0.5; No cumplió = 0; Justificado = Justificado
B5: Art. 74 - Fracción XIX. Servicios
C7: Fecha de Inicio de la Verificación: | G7: Fecha de Término de la verificación
C8: =IF(Resultados!$C$7="","",Resultados!$C$7) -> 2021-07-07 | D8: 2018-05-25 | G8: =IF(Resultados!G7="","",Resultados!G7) -> 2021-07-08
C10: Criterios Sustantivos | E10: =IF(Aplicabilidad!G30<>"SI","NA",(+SUM(E19:E54))/(+SUM(D19:D54))) -> 80%
C11: Criterios Adjetivos | E11: =IF(Aplicabilidad!G30<>"SI","NA",(+SUM(E59:E67))/(+SUM(D59:D67))) -> 100%
C12: Obligación | E12: =IF(Aplicabilidad!G30<>"SI","NA",E10*0.6+E11*0.4) -> 88.00%
C16: Criterios Sustantivos de contenido LTG 2018 - LTG 2020 (DOF 28/12/20) | D16: =COUNTA(F19:F67) -> 8
C18: Criterio | E18: Valoración | F18: Tipo | G18: Observaciones, Recomendaciones y/o Requerimientos
C19: Criterio 1. Ejercicio | D19: =IF(E19="Justificado",0,1) -> 1 | E19: 1
C20: Criterio 2. Periodo que se informa (fecha de inicio y fecha de término con el formato día/mes/año) | D20: =IF(E20="Justificado",0,1) -> 1 | E20: 1
C21: Criterio 3. Nombre del servicio (Criterio modificado DOF 28/12/2020) | D21: 1 | E21: 1
C22: Criterio 4. Tipo de servicio (catálogo): Directo/Indirecto | D22: 1 | E22: 1
C23: Criterio 5. Tipo de usuario y/o población objetivo. Especificar los casos en que se puede obtener el servicio | D23: 1 | E23: 1
C24: Criterio 6. Descripción del servicio. Utilizar un lenguaje claro, sencillo y conciso, así como los casos en que debe o puede realizarse el servicio, y los pasos que debe llevar a cabo el particular para su realización. (Criterio modificado DOF 28/12/2020) | D24: 1 | E24: 1
C25: Criterio 7. Modalidad del servicio. Por ejemplo: presencial, en línea, correo, mensajería, telefónica, módulo itinerante, etcétera | D25: 1 | E25: 1
C26: Criterio 8. Enumerar y detallar los requisitos. En caso de que existan requisitos que necesiten alguna firma, validación, certificación, autorización o visto bueno de un tercero se deberá señalar la persona o empresa que lo emita. En caso deque el servicio que se esté inscribiendo incluya como requisitos la realización de trámites o servicios adicionales, deberá de identificar plenamente los mismos, señalando además el Sujeto Obligado ante quien se realiza (Criterio modificado DOF 28/12/2020) | D26: 1 | E26: 1
C27: Criterio 9. Documentos requeridos, en su caso; así como especificar si el servicio debe presentarse mediante formato, escrito libre, ambos o puede solicitarse por otros medios (Criterio modificado DOF 28/12/2020) | D27: 1 | E27: 1
C28: Criterio 10. Hipervínculo al/los formato(s) respectivo(s) publicado(s) en medio de difusión Oficial (Criterio modificado DOF 28/12/2020) | D28: 0 | E28: Justificado
C29: Criterio 11. Última fecha de publicación del formato en el medio de difusión oficial (Criterio modificado DOF 28/12/2020) | D29: 1 | E29: 1
C30: Criterio 12. Tiempo de respuesta. Especificar el plazo que tiene el Sujeto Obligado para resolver el servicio y, en su caso, indicar si aplica la afirmativa o la negativa ficta (Criterio modificado DOF 28/12/2020) | D30: 1 | E30: 1
C31: Criterio 13. Plazo con el que cuenta el Sujeto Obligado para prevenir al solicitante (Criterio adicionado DOF 28/12/2020) | D31: 1 | E31: 1
C32: Criterio 14. Plazo con el que cuenta el solicitante para cumplir con la prevención (Criterio adicionado DOF 28/12/2020) | D32: 1 | E32: 1
C33: Criterio 15. Vigencia de los avisos, permisos, licencias, autorizaciones, registros y demás resoluciones que se emitan (Criterio adicionado DOF 28/12/2020) | D33: 1 | E33: 1
C34: Criterio 16. Denominación del o las áreas y/o unidades administrativas del sujeto obligado en las que se proporciona el servicio, o en caso de ser un servicio indirecto, la denominación del permisionario, concesionario o empresa productiva del Estado (Criterio modificado DOF 28/12/2020) | D34: 1 | E34: 0 | F34: Requerimiento | G34: Deberá publicar la información.
C35: Criterio 17. Domicilio de las áreas y/o unidades administrativas del sujeto obligado en las que se proporciona el servicio (tipo de vialidad [catálogo], nombre de vialidad [calle], número exterior, número interior [en su caso], tipo de asentamiento humano [catálogo], nombre de asentamiento humano [colonia], clave de la localidad, nombre de la localidad, clave del municipio, nombre del municipio o delegación, clave de la entidad federativa, nombre de la entidad federativa [catálogo], código postal) (Criterio modificado DOF 28/12/2020) | D35: 1 | E35: 0 | F35: Requerimiento | G35: Deberá publicar la información.
C36: Criterio 18. Domicilio en el extranjero. En caso de que el servicio se lleve a cabo en otro país, se deberá incluir el domicilio el cual deberá incluir por lo menos: país, ciudad, calle y número | D36: 1 | E36: 0 | F36: Requerimiento | G36: Deberá publicar la información.
C37: Criterio 19. Teléfono, extensión en su caso, de contacto de la oficina de atención | D37: 1 | E37: 0 | F37: Requerimiento | G37: Deberá publicar la información.
C38: Criterio 20. Medios electrónicos de comunicación de la oficina de atención y/o del responsable del Servicio (Criterio modificado DOF 28/12/2020) | D38: 1 | E38: 0 | F38: Requerimiento | G38: Deberá publicar la información.
C39: Criterio 21 Horario de atención (días y horas) | D39: 1 | E39: 0 | F39: Requerimiento | G39: Deberá publicar la información.
C40: Criterio 22 Objetivo de la inspección o verificación, en caso de que se requiera para llevar a cabo el servicio (Criterio adicionado DOF 28/12/2020) | D40: 1 | E40: 0 | F40: Requerimiento | G40: Deberá publicar la información.
C41: Criterio 23. Monto de los derechos o aprovechamientos aplicables, en su caso, o la forma de determinar dicho monto, así como las alternativas para realizar el pago. En su caso, especificar que es gratuit (Criterio modificado DOF 28/12/2020) | D41: 1 | E41: 1
C42: Criterio 24. Sustento legal para su cobro, en su caso | D42: 1 | E42: 1
C43: Criterio 25. Lugares donde se efectúa el pago | D43: 1 | E43: 1
C44: Criterio 26. Fundamento jurídico-administrativo del servicio | D44: 1 | E44: 1
C45: Criterio 27. Derechos del usuario ante la negativa y/o falta en la prestación del servicio | D45: 1 | E45: 1
C46: Criterio 28 Información que deberá conservar para fines de acreditación, inspección y verificación con motivo del servicio (Criterio adicionado DOF 28/12/2020) | D46: 1 | E46: 1
C47: Criterio 29 Información adicional del servicio, en su caso (Criterio adicionado DOF 28/12/2020) | D47: 1 | E47: 1
C48: Criterio 30 Teléfono(s) y, en su caso, extensión(es) (Criterio adicionado DOF 28/12/2020) | D48: 1 | E48: 1
C49: Criterio 31 Medios electrónicos de comunicación (Criterio adicionado DOF 28/12/2020) | D49: 1 | E49: 1
C50: Criterio 32 Domicilio (tipo de vialidad [catálogo], nombre de vialidad [calle], número exterior, número interior [en su caso], tipo de asentamiento humano [catálogo], nombre de asentamiento humano [colonia], clave de la localidad, nombre de la localidad, clave del municipio, nombre del municipio o delegación, clave de la entidad federativa, nombre de la entidad federativa [catálogo], código postal) (Criterio adicionado DOF 28/12/2020) | D50: 1 | E50: 1
C51: Criterio 33. Teléfono(s) y, en su caso, extensión(es) (Criterio modificado DOF 28/12/2020) | D51: 1 | E51: 1
C52: Criterio 34 Medios electrónicos de comunicación (Criterio adicionado DOF 28/12/2020) | D52: 1 | E52: 1
C53: Criterio 35. Domicilio (tipo de vialidad [catálogo], nombre de vialidad [calle], número exterior, número interior [en su caso], tipo de asentamiento humano [catálogo], nombre de asentamiento humano [colonia], clave de la localidad, nombre de la localidad, clave del municipio, nombre del municipio o delegación, clave de la entidad federativa, nombre de la entidad federativa [catálogo], código postal) | D53: 1 | E53: 1
C54: Criterio 36 Hipervínculo al Catálogo Nacional de Regulaciones, Tramites y Servicios o al sistema homólogo en la materia (Criterio modificado DOF 28/12/2020) | D54: 1 | E54: 1
C56: Criterios Adjetivos LTG 2018 - LTG 2020 (DOF 28/12/20)
C58: Criterio | E58: Valoración | F58: Tipo | G58: Observaciones, Recomendaciones y/o Requerimientos
C59: Criterio 37. Periodo de actualización de la información: trimestral | D59: =IF(E59="Justificado",0,1) -> 1 | E59: 1
C60: Criterio 38. La información publicada deberá estar actualizada al periodo que corresponde de acuerdo con la Tabla de actualización y conservación de la información | D60: 1 | E60: 1
C61: Criterio 39. Conservar en el sitio de Internet y a través de la Plataforma Nacional la información vigente | D61: 1 | E61: 1
C62: Criterio 40. Área(s) responsable(s) que genera(n), posee(n), publica(n) y/o actualiza(n)la información | D62: 1 | E62: 1
C63: Criterio 41. Fecha de actualización de la información publicada con el formato día/mes/año | D63: 1 | E63: 1
C64: Criterio 42. Fecha de validación de la información publicada con el formato día/mes/año | D64: 1 | E64: 1
C65: Criterio 43. Nota. Este criterio se cumple en caso de que sea necesario que el sujeto obligado incluya alguna aclaración relativa a la información publicada y/o explicación por la falta de información | D65: 1 | E65: 1
C66: Criterio 44. La información publicada se organiza mediante el formato 19, en el que se incluyen todos los campos especificados en los criterios sustantivos de contenido | D66: 1 | E66: 1
C67: Criterio 45. El soporte de la información permite su reutilización | D67: 1 | E67: 1
D75: 2017 | E75: 2018
C76: CS | D76: NA | E76: =IF(Aplicabilidad!G30<>"SI","NA",SUM(E19:E54)/SUM(D19:D54)) -> 80.00%
C77: CA | D77: NA | E77: =IF(Aplicabilidad!G30<>"SI","NA",SUM(E59:E67)/SUM(D59:D67)) -> 100.00%
C78: OBLIGACIÓN | D78: NA | E78: =IF(Aplicabilidad!G30<>"SI","NA",E76*0.6+E77*0.4) -> 88.00%

Sheet Art 74_XX
C1: =IF(Aplicabilidad!E2="","",Aplicabilidad!E2) -> Consejería Jurídica
B3: Códigos de valoración : Cumplió totalmente = 1; Cumplió parcialmente = 0.5; No cumplió = 0; Justificado = Justificado
B5: Art. 74 - Fracción XX. Trámites
C7: Fecha de Inicio de la Verificación: | G7: Fecha de Término de la verificación
C8: =IF(Resultados!$C$7="","",Resultados!$C$7) -> 2021-07-07 | D8: 2018-05-25 | G8: =IF(Resultados!G7="","",Resultados!G7) -> 2021-07-08
C10: Criterios Sustantivos | E10: =IF(Aplicabilidad!G31<>"SI","NA",(+SUM(E19:E55))/(+SUM(D19:D55))) -> 50%
C11: Criterios Adjetivos | E11: =IF(Aplicabilidad!G31<>"SI","NA",(+SUM(E60:E68))/(+SUM(D60:D68))) -> 100%
C12: Obligación | E12: =IF(Aplicabilidad!G31<>"SI","NA",E10*0.6+E11*0.4) -> 70.00%
C16: Criterios Sustantivos de contenido LTG 2018 - LTG 2020 (DOF 28/12/20) | D16: =COUNTA(F19:F68) -> 18
C18: Criterio | E18: Valoración | F18: Tipo | G18: Observaciones, Recomendaciones y/o Requerimientos
C19: Criterio 1. Ejercicio | D19: =IF(E19="Justificado",0,1) -> 1 | E19: 1
C20: Criterio 2. Periodo que se informa (fecha de inicio y fecha de término con el formato día/mes/año) | D20: =IF(E20="Justificado",0,1) -> 1 | E20: 1
C21: Criterio 3. Nombre del trámite - Criterio modificado DOF 28/12/2020 | D21: 1 | E21: 1
C22: Criterio 4. Descripción del trámite. Utilizar un lenguaje claro, sencillo y conciso, así como los casos en que debe o puede realizarse el servicio, y los pasos que debe llevar a cabo el particular para su realización - Criterio modificado DOF 28/12/2020 | D22: 1 | E22: 1
C23: Criterio 5. Tipo de usuario y/o población objetivo Criterio modificado DOF 28/12/2020 | D23: 1 | E23: 1
C24: Criterio 6. Modalidad del trámite. Por ejemplo, presencial, en línea, correo, mensajería, Telefónica, módulo itinerante, etcétera | D24: 1 | E24: 1
C25: Criterio 7. Hipervínculo a los requisitos para llevar a cabo el trámite. Enumerar y detallar los requisitos. En caso de que existan requisitos que necesiten alguna firma, validación, certificación, autorización o visto bueno de un tercero se deberá señalar la persona o empresa que lo emita. En caso de que el trámite incluya como requisitos la realización de trámites o servicios adicionales, deberá de identificar plenamente los mismos, señalando además el Sujeto Obligado ante quien se realiza - Criterio modificado DOF 28/12/2020 | D25: 1 | E25: 1
C26: Criterio 8. Documentos requeridos, en su caso; así como especificar si el trámite debe presentarse mediante formato, escrito libre, ambos o puede solicitarse por otros medios - Criterio modificado DOF 28/12/2020 | D26: 1 | E26: 1
C27: Criterio 9. Hipervínculo al/los formato(s) respectivo(s) publicado(s) en medio oficial | D27: 0 | E27: Justificado
C28: Criterio 10. Última fecha de publicación en el Medio de Difusión - Criterio adicionado DOF 28/12/2020 | D28: 1 | E28: 1
C29: Criterio 11. Tiempo de respuesta por parte del sujeto obligado55. Plazo que tiene el Sujeto Obligado para resolver el Servicio y, en su caso, si aplica la afirmativa o la negativa ficta - Criterio modificado DOF 28/12/2020 | D29: 1 | E29: 1
C30: Criterio 12. Plazo con el que cuenta el Sujeto Obligado para prevenir al solicitante - Criterio adicionado DOF 28/12/2020 | D30: 1 | E30: 1
C31: Criterio 13 Plazo con el que cuenta el solicitante para cumplir con la prevención - Criterio adicionado DOF 28/12/2020 | D31: 1 | E31: 1
C32: Criterio 14 Vigencia de los resultados del trámite | D32: 1 | E32: 1
C33: Criterio 15.- Denominación del/las área/s o unidades administrativas en donde se realiza el trámite - Criterio modificado DOF 28/12/2020 | D33: 1 | E33: 0 | F33: Requerimiento | G33: Deberá publicar la información.
C34: Criterio 16 Domicilio de la oficina de atención (tipo de vialidad [catálogo], nombre de vialidad [calle], número exterior, número interior [en su caso], tipo de asentamiento humano [catálogo], nombre de asentamiento humano [colonia], clave de la localidad, nombre de la localidad, clave del municipio, nombre del municipio o delegación, clave de la entidad federativa, nombre de la entidad federativa [catálogo], código postal) | D34: 1 | E34: 0 | F34: Requerimiento | G34: Deberá publicar la información.
C35: Criterio 17. Domicilio en el extranjero. En caso de que el trámite se lleve a cabo en otro país, se deberá incluir el domicilio el cual deberá incluir por lo menos: país, ciudad, calle y número | D35: 1 | E35: 0 | F35: Requerimiento | G35: Deberá publicar la información.
C36: Criterio 18. Teléfono y extensión en su caso - Criterio modificado DOF 28/12/2020 | D36: 1 | E36: 0 | F36: Requerimiento | G36: Deberá publicar la información.
C37: Criterio 19. Medios electrónicos de comunicación - Criterio modificado DOF 28/12/2020 | D37: 1 | E37: 0 | F37: Requerimiento | G37: Deberá publicar la información.
C38: Criterio 20. Horario de atención (días y horas) | D38: 1 | E38: 0 | F38: Requerimiento | G38: Deberá publicar la información.
C39: Criterio 21 Monto de los derechos o aprovechamientos aplicables, en su caso, o la forma de determinar dicho monto, así como las alternativas para realizar el pago - Criterio modificado DOF 28/12/2020 | D39: 1 | E39: 1
C40: Criterio 22. Sustento legal para su cobro, en su caso | D40: 1 | E40: 1
C41: Criterio 23. Lugares donde se efectúa el pago | D41: 1 | E41: 0 | F41: Requerimiento | G41: Deberá publicar la información.
C42: Criterio 24 Fundamento jurídico-administrativo de la existencia del Trámite - Criterio modificado DOF 28/12/2020 | D42: 1 | E42: 1
C43: Criterio 25. Derechos del usuario ante la negativa o falta de respuesta (especificar si aplica la afirmativa o negativa ficta) | D43: 1 | E43: 1
C44: Criterio 23. Teléfono y extensión en su caso | D44: 1 | E44: 0 | F44: Requerimiento | G44: Deberá publicar la información.
C45: Criterio 24. Correo electrónico | D45: 1 | E45: 0 | F45: Requerimiento | G45: Deberá publicar la información.
C46: Criterio 25. Domicilio del lugar donde se reporten anomalías (tipo de vialidad [catálogo], nombre de vialidad [calle], número exterior, número interior [en su caso], tipo de asentamiento humano [catálogo], nombre de asentamiento humano [colonia], clave de la localidad, nombre de la localidad, clave del municipio, nombre del municipio o delegación, clave de la entidad federativa, nombre de la entidad federativa [catálogo], código postal) | D46: 1 | E46: 0 | F46: Requerimiento | G46: Deberá publicar la información.
C47: Criterio 26. Información adicional del trámite, en su caso - Criterio adicionado DOF 28/12/2020 | D47: 0 | E47: Justificado
C48: Criterio 27- Teléfono y, en su caso, extensión - Criterio adicionado DOF 28/12/2020 | D48: 1 | E48: 0 | F48: Requerimiento | G48: Deberá publicar la información.
C49: Criterio 28 Medios electrónicos de comunicación - Criterio adicionado DOF 28/12/2020 | D49: 1 | E49: 0 | F49: Requerimiento | G49: Deberá publicar la información.
C50: Criterio 29 Domicilio58a (tipo de vialidad [catálogo], nombre de vialidad [calle], número exterior, número interior [en su caso], tipo de asentamiento humano [catálogo], nombre de asentamiento humano [colonia], clave de la localidad, nombre de la localidad, clave del municipio, nombre del municipio o delegación, clave de la entidad federativa, nombre de la entidad federativa [catálogo], código postal) - Criterio adicionado DOF 28/12/2020 | D50: 1 | E50: 0 | F50: Requerimiento | G50: Deberá publicar la información.
C51: Criterio 30. Teléfono y extensión en su caso | D51: 1 | E51: 0 | F51: Requerimiento | G51: Deberá publicar la información.
C52: Criterio 31. Medios electrónicos de comunicación - Criterio modificado DOF 28/12/2020 | D52: 1 | E52: 0 | F52: Requerimiento | G52: Deberá publicar la información.
C53: Criterio 32. Domicilio del lugar donde se reporten anomalías (tipo de vialidad [catálogo], nombre de vialidad [calle], número exterior, número interior [en su caso], tipo de asentamiento humano [catálogo], nombre de asentamiento humano [colonia], clave de la localidad, nombre de la localidad, clave del municipio, nombre del municipio o delegación, clave de la entidad federativa, nombre de la entidad federativa [catálogo], código postal) | D53: 1 | E53: 0 | F53: Requerimiento | G53: Deberá publicar la información.
C54: Criterio 33. Domicilio en el extranjero. En caso de que el trámite se lleve a cabo en otro país, se deberá incluir el domicilio el cual deberá incluir por lo menos: país, ciudad, calle y número | D54: 1 | E54: 0 | F54: Requerimiento | G54: Deberá publicar la información.
C55: Criterio 34 Hipervínculo al Catálogo Nacional de Regulaciones, Trámites y Servicios o al sistema homólogo en la materia - Criterio modificado DOF 28/12/2020 | D55: 0 | E55: Justificado
C57: Criterios Adjetivos LTG 2018 - LTG 2020 (DOF 28/12/20)
C59: Criterio | E59: Valoración | F59: Tipo | G59: Observaciones, Recomendaciones y/o Requerimientos
C60: Criterio 35. Periodo de actualización de la información: trimestral | D60: =IF(E60="Justificado",0,1) -> 1 | E60: 1
C61: Criterio 36. La información publicada deberá estar actualizada al periodo que corresponde de acuerdo con la Tabla de actualización y conservación de la información | D61: 1 | E61: 1
C62: Criterio 37. Conservar en el sitio de Internet y a través de la Plataforma Nacional la información vigente | D62: 1 | E62: 1
C63: Criterio 38. Área(s) responsable(s) que genera(n), posee(n), publica(n) y/o actualiza(n)la información | D63: 1 | E63: 1
C64: Criterio 39. Fecha de actualización de la información publicada con el formato día/mes/año | D64: 1 | E64: 1
C65: Criterio 40. Fecha de validación de la información publicada con el formato día/mes/año | D65: 1 | E65: 1
C66: Criterio 41. Nota. Este criterio se cumple en caso de que sea necesario que el sujeto obligado incluya alguna aclaración relativa a la información publicada y/o explicación por la falta de información | D66: 1 | E66: 1
C67: Criterio 42. La información publicada se organiza mediante el formato 20, en el que se incluyen todos los campos especificados en los criterios sustantivos de contenido | D67: 1 | E67: 1
C68: Criterio 43. El soporte de la información permite su reutilización | D68: 1 | E68: 1
D76: 2017 | E76: 2018
C77: CS | D77: NA | E77: =IF(Aplicabilidad!G31<>"SI","NA",SUM(E19:E55)/SUM(D19:D55)) -> 50.00%
C78: CA | D78: NA | E78: =IF(Aplicabilidad!G31<>"SI","NA",SUM(E60:E68)/SUM(D60:D68)) -> 100.00%
C79: OBLIGACIÓN | D79: NA | E79: =IF(Aplicabilidad!G31<>"SI","NA",E77*0.6+E78*0.4) -> 70.00%

Sheet Art 74_XXI
C1: =IF(Aplicabilidad!E2="","",Aplicabilidad!E2) -> Consejería Jurídica
B3: Códigos de valoración : Cumplió totalmente = 1; Cumplió parcialmente = 0.5; No cumplió = 0; Justificado = Justificado
B5: Art. 74 - Fracción XXI. Presupuesto e informes trimestrales
C7: Fecha de Inicio de la Verificación: | G7: Fecha de Término de la verificación
C8: =IF(Resultados!$C$7="","",Resultados!$C$7) -> 2021-07-07 | D8: 2018-05-25 | G8: =IF(Resultados!G7="","",Resultados!G7) -> 2021-07-08
C10: Criterios Sustantivos | E10: =IF(Aplicabilidad!G32<>"SI","NA",(SUM(E19:E34)+SUM(E42:E63))/(SUM(D19:D34)+SUM(D42:D63))) -> 89%
C11: Criterios Adjetivos | E11: =IF(Aplicabilidad!G32<>"SI","NA",(SUM(E68:E76))/(SUM(D68:D76))) -> 94%
C12: Obligación | E12: =IF(Aplicabilidad!G32<>"SI","NA",E10*0.6+E11*0.4) -> 91.11%
C16: Criterios Sustantivos de contenido 2015 - 2017 | D16: =COUNTA(F19:F35) -> 0
C18: Criterio | E18: Valoración | F18: Tipo | G18: Observaciones, Recomendaciones y/o Requerimientos
C19: Criterio 1. Ejercicio | D19: =IF(E19="Justificado",0,1) -> 1 | E19: 1
C20: Criterio 2. Presupuesto anual asignado (gasto programable autorizado) al sujeto obligado | D20: =IF(E20="Justificado",0,1) -> 1 | E20: 1
C21: Criterio 3. Presupuesto por capítulo de gasto (con base en el Clasificador por Objeto de Gasto que le corresponda al sujeto obligado) | D21: 1 | E21: 1
C22: Criterio 4. Hipervínculo al Presupuesto de Egresos de la Federación | D22: 1 | E22: 1
C23: Criterio 5. Hipervínculo al Decreto de Presupuesto de Egresos de la entidad federativa (en su caso señalar que no aplica si se trata de un sujeto obligado de orden federal) | D23: 1 | E23: 1
C24: Criterio 6. Fuentes de financiamiento para los recursos federales transferidos, vinculadas al reporte de egresos de la SHCP | D24: 1 | E24: 1
C25: Criterio 7. Ejercicio | D25: 1 | E25: 1
C26: Criterio 8. Periodo que se informa | D26: 1 | E26: 1
C27: Criterio 9. Clave del capítulo de gasto | D27: 1 | E27: 1
C28: Criterio 10. Objeto del capítulo de gasto | D28: 1 | E28: 1
C29: Criterio 11. Denominación de cada capítulo de gasto | D29: 1 | E29: 1
C30: Criterio 12. Presupuesto programado por capítulo de gasto | D30: 1 | E30: 1
C31: Criterio 13. Presupuesto pendiente de pago | D31: 1 | E31: 1
C32: Criterio 14. Presupuesto o monto reintegrado a la tesorería de la federación | D32: 1 | E32: 1
C33: Criterio 15. Hipervínculo al informe trimestral sobre la ejecución del presupuesto realizado por el sujeto obligado y enviado a la SHCP, a la Secretaría de Finanzas u homólogo o la instancia según corresponda, de acuerdo con el orden de gobierno correspondiente | D33: =IF(E33="Justificado",0,1) -> 1 | E33: 1
C34: Criterio 16 . Hipervínculo a la Cuenta Pública consolidada por la instancia correspondiente según el orden de gobierno de que se trate, por ejemplo la SHCP, las secretarías de finanzas o sus equivalentes | D34: =IF(E34="Justificado",0,1) -> 0 | E34: Justificado
C39: Criterios Sustantivos de contenido LTG 2018 - LTG 2020 (DOF 28/12/20) | D39: =COUNTA(F42:F76) -> 10
C41: Criterio | E41: Valoración | F41: Tipo | G41: Observaciones, Recomendaciones y/o Requerimientos
C42: Criterio 1. Ejercicio | D42: =IF(E42="Justificado",0,1) -> 1 | E42: 0.5 | F42: Requerimiento | G42: En el formato nuevo "2018 y ejercicios posteriores" deberá borrar los ejercicios anteriores a 2018 por que ya estan contenidos en el formato "2015-2017".
C43: Criterio 2. Periodo que se informa (fecha de inicio y fecha de término con el formato día/mes/año) | D43: =IF(E43="Justificado",0,1) -> 1 | E43: 0.5 | F43: Requerimiento | G43: En el formato nuevo "2018 y ejercicios posteriores" deberá borrar los ejercicios anteriores a 2018 por que ya estan contenidos en el formato "2015-2017".
C44: Criterio 3. Presupuesto anual asignado al sujeto obligado | D44: 1 | E44: 0.5 | F44: Requerimiento | G44: En el formato nuevo "2018 y ejercicios posteriores" deberá borrar los ejercicios anteriores a 2018 por que ya estan contenidos en el formato "2015-2017".
C45: Criterio 4. Clave del capítulo de gasto | D45: 1 | E45: 0.5 | F45: Requerimiento | G45: En el formato nuevo "2018 y ejercicios posteriores" deberá borrar los ejercicios anteriores a 2018 por que ya estan contenidos en el formato "2015-2017".
C46: Criterio 5. Denominación del capítulo de gasto | D46: 1 | E46: 0.5 | F46: Requerimiento | G46: En el formato nuevo "2018 y ejercicios posteriores" deberá borrar los ejercicios anteriores a 2018 por que ya estan contenidos en el formato "2015-2017".
C47: Criterio 6. Presupuesto por capítulo de gasto. Con base en el Clasificador por Objeto de Gasto que le corresponda al sujeto obligado | D47: 1 | E47: 0.5 | F47: Requerimiento | G47: En el formato nuevo "2018 y ejercicios posteriores" deberá borrar los ejercicios anteriores a 2018 por que ya estan contenidos en el formato "2015-2017".
C48: Criterio 7. Hipervínculo al Presupuesto de Egresos que le corresponda al sujeto obligado | D48: 1 | E48: 0.5 | F48: Requerimiento | G48: En el formato nuevo "2018 y ejercicios posteriores" deberá borrar los ejercicios anteriores a 2018 por que ya estan contenidos en el formato "2015-2017".
C49: Criterio 8. Hipervínculo a la página de internet denominada “Transparencia Presupuestaria observatorio del gasto” | D49: 1 | E49: 0.5 | F49: Requerimiento | G49: En el formato nuevo "2018 y ejercicios posteriores" deberá borrar los ejercicios anteriores a 2018 por que ya estan contenidos en el formato "2015-2017".
C50: Criterio 9. Ejercicio | D50: 1 | E50: 1
C51: Criterio 10. Periodo que se informa (fecha de inicio y fecha de término con el formato día/mes/año) | D51: 1 | E51: 1
C52: Criterio 11. Clave del capítulo de gasto | D52: 1 | E52: 1
C53: Criterio 12. Denominación del Capítulo de gasto | D53: 1 | E53: 1
C54: Criterio 13. Presupuesto aprobado | D54: 1 | E54: 1
C55: Criterio 14. Ampliación / (Reducciones) | D55: 1 | E55: 1
C56: Criterio 15. Modificado | D56: 1 | E56: 1
C57: Criterio 16. Devengado | D57: 1 | E57: 1
C58: Criterio 17. Pagado | D58: 1 | E58: 1
C59: Criterio 18. Subejercicio | D59: 1 | E59: 1
C60: Criterio 19. Hipervínculo al Estado analítico del ejercicio del Presupuesto de Egresos | D60: 1 | E60: 1
C61: Criterio 20. Ejercicio | D61: 1 | E61: 1
C62: Criterio 21. Periodo que se informa (fecha de inicio y fecha de término con el formato día/mes/año) | D62: =IF(E62="Justificado",0,1) -> 1 | E62: 1
C63: Criterio 22. Hipervínculo a la página de internet en donde se publique la Cuenta Pública consolidada por la instancia correspondiente según el orden de gobierno de que se trate | D63: =IF(E63="Justificado",0,1) -> 0 | E63: Justificado
C65: Criterios Adjetivos LTG 2018 - LTG 2020 (DOF 28/12/20)
C67: Criterio | E67: Valoración | F67: Tipo | G67: Observaciones, Recomendaciones y/o Requerimientos
C68: Criterio 23. Periodo de actualización de la información: trimestral y anual respecto del presupuesto anual asignado y la cuenta pública | D68: =IF(E68="Justificado",0,1) -> 1 | E68: 1
C69: Criterio 24. La información publicada deberá estar actualizada al periodo que corresponde de acuerdo con la Tabla de actualización y conservación de la información | D69: 1 | E69: 1
C70: Criterio 25. Conservar en el sitio de Internet: información del ejercicio en curso y la correspondiente a seis ejercicios anteriores | D70: 1 | E70: 1
C71: Criterio 26. Área(s) responsable(s) que genera(n), posee(n), publica(n) y/o actualiza(n)la información | D71: 1 | E71: 1
C72: Criterio 27. Fecha de actualización de la información publicada con el formato día/mes/año | D72: 1 | E72: 1
C73: Criterio 28. Fecha de validación de la información publicada con el formato día/mes/año | D73: 1 | E73: 0.5 | F73: Requerimiento | G73: Existen registros que no contienen la información en el formato 21-A 2015-2017 de presupuesto asignado anual.
C74: Criterio 29. Nota. Este criterio se cumple en caso de que sea necesario que el sujeto obligado incluya alguna aclaración relativa a la información publicada y/o explicación por la falta de información | D74: 1 | E74: 1
C75: Criterio 30. La información publicada se organiza mediante los formatos 21a, 21b y 21c, en los que se incluyen todos los campos especificados en los criterios sustantivos de contenido | D75: 1 | E75: 1
C76: Criterio 31. El soporte de la información permite su reutilización | D76: 1 | E76: 1
D84: 2017 | E84: 2018
C85: CS | D85: =IF(Aplicabilidad!G32<>"SI","NA",SUM(E19:E34)/SUM(D19:D34)) -> 100.00% | E85: =IF(Aplicabilidad!G32<>"SI","NA",SUM(E42:E63)/SUM(D42:D63)) -> 80.95%
C86: CA | D86: =IF(Aplicabilidad!G32<>"SI","NA",SUM(#REF!)/SUM(#REF!)) ->  | E86: =IF(Aplicabilidad!G32<>"SI","NA",SUM(E68:E76)/SUM(D68:D76)) -> 94.44%
C87: OBLIGACIÓN | D87: =IF(Aplicabilidad!G32<>"SI","NA",D85*0.6+D86*0.4) ->  | E87: =IF(Aplicabilidad!G32<>"SI","NA",E85*0.6+E86*0.4) -> 86.35%

Sheet Art 74_XXII (hidden)
C1: =IF(Aplicabilidad!E2="","",Aplicabilidad!E2) -> Consejería Jurídica
B3: Códigos de valoración : Cumplió totalmente = 1; Cumplió parcialmente = 0.5; No cumplió = 0; Justificado = Justificado
B5: Art. 74 - Fracción XXII. Deuda pública
C7: Fecha de Inicio de la Verificación: | G7: Fecha de Término de la verificación
C8: =IF(Resultados!$C$7="","",Resultados!$C$7) -> 2021-07-07 | D8: 2018-05-25 | G8: =IF(Resultados!G7="","",Resultados!G7) -> 2021-07-08
C10: Criterios Sustantivos | E10: =IF(Aplicabilidad!G33<>"SI","NA",(SUM(E19:E44)+SUM(E52:E77))/(SUM(D19:D44)+SUM(D52:D77))) -> NA
C11: Criterios Adjetivos | E11: =IF(Aplicabilidad!G33<>"SI","NA",(SUM(E82:E90))/(SUM(D82:D90))) -> NA
C12: Obligación | E12: =IF(Aplicabilidad!G33<>"SI","NA",E10*0.6+E11*0.4) -> NA
C16: Criterios Sustantivos de contenido LTG 2018 - LTG 2020 (DOF 28/12/20) | D16: =COUNTA(F19:F45) -> 0
C18: Criterio | E18: Valoración | F18: Tipo | G18: Observaciones, Recomendaciones y/o Requerimientos
C19: Criterio 1. Ejercicio | D19: =IF(E19="Justificado",0,1) -> 1
C20: Criterio 2. Periodo que se informa | D20: =IF(E20="Justificado",0,1) -> 1
C21: Criterio 3. Acreditado (sujeto obligado que contrae la obligación) | D21: 1
C22: Criterio 4. Denominación de la instancia ejecutora del recurso público | D22: 1
C23: Criterio 5. Tipo de obligación: Crédito simple / Crédito en cuenta corriente / Emisión bursátil / Garantía de pago oportuno (GPO) / Contratos de proyectos de prestación de servicios (PPS) | D23: 1
C24: Criterio 6. Acreedor (Institución que otorgó el crédito) | D24: 1
C25: Criterio 7. Fecha de firma del contrato o instrumento jurídico en el cual se contrajo la obligación, publicada con el formato día/mes/año (por ej. 31/Marzo/2016) | D25: 1
C26: Criterio 8. Monto original contratado, el cual consta en el contrato o instrumento jurídico en el que se contrajo la obligación | D26: 1
C27: Criterio 9. Plazo de tasa de interés pactado en el contrato o instrumento jurídico en el cual se contrajo la obligación (mensual, semestral, anual, etcétera) | D27: 1
C28: Criterio 10. Tasa de interés pactada en el contrato o instrumento jurídico en el cual se contrajo la obligación | D28: 1
C29: Criterio 11. Plazo pactado para pagar la deuda, el cual consta en el contrato o instrumento jurídico en el que se contrajo la obligación (especificar el número de meses) | D29: 1
C30: Criterio 12. Fecha de vencimiento de la deuda que conste en el contrato o instrumento jurídico en el que se contrajo la obligación, con el formato día/mes/año (por ej. 31/Marzo/2016) | D30: 1
C31: Criterio 13. Recurso afectado como fuente o garantía de pago | D31: 1
C32: Criterio 14. Destino para el cual fue contraída la obligación | D32: 1
C33: Criterio 15. Saldo al periodo que se reporta | D33: 1
C34: Criterio 16. Hipervínculo a la autorización de la propuesta de endeudamiento que en su caso se haya presentado | D34: 1
C35: Criterio 17. Hipervínculo al listado de resoluciones negativas a la contratación de financiamiento para las entidades distintas al gobierno federal | D35: 1
C36: Criterio 18. Hipervínculo al contrato o instrumento jurídico en el cual se contrajo la obligación | D36: 1
C37: Criterio 19. En su caso, el documento o instrumento en el cual se hayan especificado modificaciones | D37: 1
C38: Criterio 20. Hipervínculo a la Información de finanzas públicas y deuda pública, publicado por la SHCP | D38: 1
C39: Criterio 21. Informe enviado a la SHCP o equivalente de la entidad federativa que contenga el listado de todos los empréstitos y obligaciones de pago | D39: 1
C40: Criterio 22. Hipervínculo al informe de Cuenta Pública[5] enviado a la SHCP[6] u homóloga, en el cual se observe claramente el análisis correspondiente a la deuda pública que reportan | D40: 1
C41: Criterio 23. Fecha de inscripción en el Registro de Obligaciones y Empréstitos vigentes de Entidades, Municipios y sus Organismos, en su caso | D41: 1
C42: Criterio 24. Hipervínculo al Informe consolidado de la deuda pública de entidades federativas y municipios | D42: 1
C43: Criterio 25. Hipervínculo al informe consolidado de Cuenta Pública | D43: =IF(E43="Justificado",0,1) -> 1
C44: Criterio 26. Hipervínculo a la propuesta y reportes que genere la SHCP en caso de deuda pública externa contraída con organismos financieros internacionales | D44: =IF(E44="Justificado",0,1) -> 1
C49: Criterios Sustantivos de contenido LTG 2018 - LTG 2020 (DOF 28/12/20) | D49: =COUNTA(F52:F90) -> 1
C51: Criterio | E51: Valoración | F51: Tipo | G51: Observaciones, Recomendaciones y/o Requerimientos
C52: Criterio 1. Ejercicio | D52: =IF(E52="Justificado",0,1) -> 1
C53: Criterio 2. Periodo que se informa (fecha de inicio y fecha de término con el formato día/mes/año) | D53: =IF(E53="Justificado",0,1) -> 1
C54: Criterio 3. Acreditado (sujeto obligado que contrae la obligación) | D54: 1
C55: Criterio 4. Denominación de la instancia ejecutora del recurso público | D55: 1
C56: Criterio 5. Tipo de obligación (catálogo): Crédito simple/Crédito en cuenta corriente/Emisión bursátil/Garantía de pago oportuno (GPO)/Contratos de proyectos de prestación de servicios (PPS) | D56: 1
C57: Criterio 6. Acreedor (Institución que otorgó el crédito) | D57: 1
C58: Criterio 7. Fecha de firma del contrato o instrumento jurídico en el cual se contrajo la obligación, publicada con el formato día/mes/año | D58: 1
C59: Criterio 8. Monto original contratado, el cual consta en el contrato o instrumento jurídico en el que se contrajo la obligación | D59: 1
C60: Criterio 9. Plazo de tasa de interés pactado en el contrato o instrumento jurídico en el cual se contrajo la obligación. Por ejemplo, mensual, semestral, anual | D60: 1
C61: Criterio 10. Tasa de interés pactada en el contrato o instrumento jurídico en el cual se contrajo la obligación | D61: 1
C62: Criterio 11. Plazo pactado para pagar la deuda, el cual consta en el contrato o instrumento jurídico en el que se contrajo la obligación (especificar el número de meses) | D62: 1
C63: Criterio 12. Fecha de vencimiento de la deuda que conste en el contrato o instrumento jurídico en el que se contrajo la obligación, con el formato día/mes/año | D63: 1
C64: Criterio 13. Recurso afectado como fuente o garantía de pago | D64: 1
C65: Criterio 14. Destino para el cual fue contraída la obligación | D65: 1
C66: Criterio 15. Saldo al periodo que se informa | D66: 1
C67: Criterio 16. Hipervínculo a la autorización de la propuesta de endeudamiento que en su caso se haya presentado | D67: 1
C68: Criterio 17. Hipervínculo al listado de resoluciones negativas a la contratación de financiamiento para las entidades distintas al gobierno federal | D68: 1
C69: Criterio 18. Hipervínculo al contrato o instrumento jurídico en el cual se contrajo la obligación | D69: 1
C70: Criterio 19. En su caso, hipervínculo al documento o instrumento en el cual se hayan especificado modificaciones | D70: 1
C71: Criterio 20. Hipervínculo a la Información estadística de finanzas públicas y deuda pública, publicado por la SHCP | D71: 1
C72: Criterio 21. Hipervínculo al informe enviado a la SHCP o equivalente de la entidad federativa que contenga el listado de todos los empréstitos y obligaciones de pago | D72: 1
C73: Criterio 22. Hipervínculo al informe de Cuenta Pública[5] enviado a la SHCP[6] u homóloga, en el cual se observe claramente el análisis correspondiente a la deuda pública que reportan | D73: 1
C74: Criterio 23. Fecha de inscripción en el Registro de Obligaciones y Empréstitos vigentes de Entidades, Municipios y sus Organismos, en su caso | D74: 1
C75: Criterio 24. Hipervínculo al Informe consolidado de la deuda pública de entidades federativas y municipios | D75: 1
C76: Criterio 25. Hipervínculo al informe consolidado de Cuenta Pública | D76: =IF(E76="Justificado",0,1) -> 1
C77: Criterio 26. Hipervínculo a la propuesta y reportes que genere la SHCP en caso de deuda pública externa contraída con organismos financieros internacionales | D77: =IF(E77="Justificado",0,1) -> 1
C79: Criterios Adjetivos LTG 2018 - LTG 2020 (DOF 28/12/20)
C81: Criterio | E81: Valoración | F81: Tipo | G81: Observaciones, Recomendaciones y/o Requerimientos
C82: Criterio 27. Periodo de actualización de la información: trimestral - Párrafo modificado DOF 28/12/2020 | D82: =IF(E82="Justificado",0,1) -> 1
C83: Criterio 28. La información publicada deberá estar actualizada al periodo que corresponde de acuerdo con la Tabla de actualización y conservación de la información | D83: 1
C84: Criterio 29. Conservar en el sitio de Internet y a través de la Plataforma Nacional la información vigente de acuerdo con la Tabla de actualización y conservación de la información | D84: 1
C85: Criterio 30. Área(s) responsable(s) que genera(n), posee(n), publica(n) y/o actualiza(n)la información | D85: 1
C86: Criterio 31. Fecha de actualización de la información publicada con el formato día/mes/año | D86: 1
C87: Criterio 32. Fecha de validación de la información publicada con el formato día/mes/año | D87: 1
C88: Criterio 33. Nota. Este criterio se cumple en caso de que sea necesario que el sujeto obligado incluya alguna aclaración relativa a la información publicada y/o explicación por la falta de información | D88: 1
C89: Criterio 34. La información publicada se organiza mediante el formato 22, en el que se incluyen todos los campos especificados en los criterios sustantivos de contenido | D89: 1
C90: Criterio 35. El soporte de la información permite su reutilización | D90: 1
D98: 2017 | E98: 2018
C99: CS | D99: =IF(Aplicabilidad!G33<>"SI","NA",SUM(E19:E44)/SUM(D19:D44)) -> NA | E99: =IF(Aplicabilidad!G33<>"SI","NA",SUM(E52:E77)/SUM(D52:D77)) -> NA
C100: CA | D100: =IF(Aplicabilidad!G33<>"SI","NA",SUM(#REF!)/SUM(#REF!)) -> NA | E100: =IF(Aplicabilidad!G33<>"SI","NA",SUM(E82:E90)/SUM(D82:D90)) -> NA
C101: OBLIGACIÓN | D101: =IF(Aplicabilidad!G33<>"SI","NA",D99*0.6+D100*0.4) -> NA | E101: =IF(Aplicabilidad!G33<>"SI","NA",E99*0.6+E100*0.4) -> NA

Sheet Art 74_XXIII (hidden)
C1: =IF(Aplicabilidad!E2="","",Aplicabilidad!E2) -> Consejería Jurídica
B3: Códigos de valoración : Cumplió totalmente = 1; Cumplió parcialmente = 0.5; No cumplió = 0; Justificado = Justificado
B5: Art. 74 - Fracción XXIII. Comunicación social y publicidad
C7: Fecha de Inicio de la Verificación: | G7: Fecha de Término de la verificación
C8: =IF(Resultados!$C$7="","",Resultados!$C$7) -> 2021-07-07 | D8: 2018-05-25 | G8: =IF(Resultados!G7="","",Resultados!G7) -> 2021-07-08
C10: Criterios Sustantivos | E10: =IF(Aplicabilidad!G34<>"SI","NA",(SUM(E19:E101)+SUM(E109:E196))/(SUM(D19:D101)+SUM(D109:D196))) -> NA
C11: Criterios Adjetivos | E11: =IF(Aplicabilidad!G34<>"SI","NA",(SUM(E201:E209))/(SUM(D201:D209))) -> NA
C12: Obligación | E12: =IF(Aplicabilidad!G34<>"SI","NA",E10*0.6+E11*0.4) -> NA
C16: Criterios Sustantivos de contenido LTG 2018 - LTG 2020 (DOF 28/12/20) | D16: =COUNTA(F19:F102) -> 0
C18: Criterio | E18: Valoración | F18: Tipo | G18: Observaciones, Recomendaciones y/o Requerimientos
C19: Criterio 1. Ejercicio | D19: =IF(E19="Justificado",0,1) -> 0 | E19: Justificado
C20: Criterio 2. Denominación del documento del programa anual de Comunicación Social | D20: =IF(E20="Justificado",0,1) -> 0 | E20: Justificado
C21: Criterio 3. Fecha en la que se aprobó el Programa Anual de Comunicación Social por la instancia correspondiente | D21: 0 | E21: Justificado
C22: Criterio 4. Hipervínculo al Programa Anual de Comunicación Social o equivalente, que sea vigente y aplicable al sujeto obligado | D22: 0 | E22: Justificado
C23: Criterio 5. Función del sujeto obligado: contratante, solicitante o contratante y solicitante | D23: 0 | E23: Justificado
C24: Criterio 6. Área administrativa encargada de solicitar el servicio o producto, en su caso | D24: 0 | E24: Justificado
C25: Criterio 7. Clasificación del(los) servicios: Servicio de difusión en medios de comunicación / Otros servicios asociados a la comunicación / Erogación de recursos por contratación de servicios de impresión, difusión y publicidad / Utilización de los Tiempos Oficiales: tiempo de Estado y tiempo fiscal | D25: 0 | E25: Justificado
C26: Criterio 8. Ejercicio | D26: 0 | E26: Justificado
C27: Criterio 9. Periodo que se informa | D27: 0 | E27: Justificado
C28: Criterio 10. Tipo de servicio | D28: 0 | E28: Justificado
C29: Criterio 11. Tipo de medio: Internet / Radio / Televisión / Cine / Medios impresos / Medios digitales /Espectaculares / Medios complementarios[1] / Otros servicios asociados[2]/ Otro (especificar) | D29: 0 | E29: Justificado
C30: Criterio 12. Descripción de unidad, por ejemplo: spot de 30 segundos (radio); ½ plana (periódico); cine segundos, revistas, folletos | D30: 0 | E30: Justificado
C31: Criterio 13. Tipo: campaña o aviso institucional | D31: 0 | E31: Justificado
C32: Criterio 14. Nombre de la campaña o aviso Institucional | D32: 0 | E32: Justificado
C33: Criterio 15. Año de la campaña | D33: 0 | E33: Justificado
C34: Criterio 16. Tema de la campaña o aviso institucional | D34: 0 | E34: Justificado
C35: Criterio 17. Objetivo institucional | D35: 0 | E35: Justificado
C36: Criterio 18. Objetivo de comunicación | D36: 0 | E36: Justificado
C37: Criterio 19. Costo por unidad | D37: 0 | E37: Justificado
C38: Criterio 20. Clave única o número de identificación de campaña, aviso institucional o análogo | D38: 0 | E38: Justificado
C39: Criterio 21. Autoridad que proporcionó la clave única de identificación de campaña publicitaria o aviso institucional, o el número análogo de identificación de la campaña | D39: 0 | E39: Justificado
C40: Criterio 22. Cobertura Internacional / Nacional / Estatal / Delegacional o municipal | D40: 0 | E40: Justificado
C41: Criterio 23. Ámbito geográfico de cobertura, en su caso | D41: 0 | E41: Justificado
C42: Criterio 24. Fecha de inicio de la campaña o aviso institucional con el formato día/mes/año (por ej. 31/Marzo/2016) | D42: 0 | E42: Justificado
C43: Criterio 25. Fecha de término de la campaña o aviso institucional con el formato día/mes/año (por ej. 31/Marzo/2016) | D43: 0 | E43: Justificado
C44: Criterio 26. Sexo | D44: 0 | E44: Justificado
C45: Criterio 27. Lugar de residencia | D45: 0 | E45: Justificado
C46: Criterio 28. Nivel educativo | D46: 0 | E46: Justificado
C47: Criterio 29. Grupo de edad | D47: 0 | E47: Justificado
C48: Criterio 30. Nivel socioeconómico | D48: 0 | E48: Justificado
C49: Criterio 31. Razón social o nombre completo del (los) proveedor(es) y/o responsable(s) de publicar la campaña o la comunicación correspondiente (nombre[s], primer apellido y segundo apellido en caso de ser persona física) | D49: 0 | E49: Justificado
C50: Criterio 32. Nombre comercial del (los) proveedor(es) y/o responsable(s) | D50: 0 | E50: Justificado
C51: Criterio 33. Registro Federal de Contribuyentes de la persona física o moral proveedora del producto o servicio publicitario | D51: 0 | E51: Justificado
C52: Criterio 34. Procedimiento de contratación: licitación pública, adjudicación directa, invitación restringida | D52: 0 | E52: Justificado
C53: Criterio 35. Fundamento jurídico del proceso de contratación | D53: 0 | E53: Justificado
C54: Criterio 36. Descripción breve de las razones que justifican la elección de tal proveedor | D54: 0 | E54: Justificado
C55: Criterio 37. Partida genérica | D55: 0 | E55: Justificado
C56: Criterio 38. Clave del concepto (conforme al clasificador por objeto del gasto) | D56: 0 | E56: Justificado
C57: Criterio 39. Nombre del concepto (conforme al clasificador por objeto del gasto) | D57: 0 | E57: Justificado
C58: Criterio 40. Presupuesto asignado por concepto | D58: 0 | E58: Justificado
C59: Criterio 41. Presupuesto modificado por concepto | D59: 0 | E59: Justificado
C60: Criterio 42. Presupuesto total ejercido por concepto al periodo reportado | D60: 0 | E60: Justificado
C61: Criterio 43. Denominación de cada partida | D61: 0 | E61: Justificado
C62: Criterio 44. Presupuesto total asignado a cada partida | D62: 0 | E62: Justificado
C63: Criterio 45. Presupuesto modificado por partida | D63: 0 | E63: Justificado
C64: Criterio 46. Presupuesto ejercido al periodo reportado de cada partida | D64: 0 | E64: Justificado
C65: Criterio 47. Fecha de firma de contrato con el formato día/mes/año (por ej. 31/Marzo/2016) | D65: 0 | E65: Justificado
C66: Criterio 48. Número o referencia de identificación del contrato | D66: 0 | E66: Justificado
C67: Criterio 49. Objeto del contrato | D67: 0 | E67: Justificado
C68: Criterio 50. Hipervínculo al contrato firmado | D68: 0 | E68: Justificado
C69: Criterio 51. Hipervínculo al convenio modificatorio, en su caso | D69: 0 | E69: Justificado
C70: Criterio 52. Monto total del contrato | D70: 0 | E70: Justificado
C71: Criterio 53. Monto pagado al periodo publicado | D71: 0 | E71: Justificado
C72: Criterio 54. Fecha de inicio de los servicios contratados con el formato día/mes/año (por ej. 31/Marzo/2016) | D72: 0 | E72: Justificado
C73: Criterio 55. Fecha de término de los servicios contratados con el formato día/mes/año (por ej. 31/Marzo/2016) | D73: 0 | E73: Justificado
C74: Criterio 56. Número de factura | D74: 0 | E74: Justificado
C75: Criterio 57. Hipervínculo a la factura | D75: 0 | E75: Justificado
C76: Criterio 58. Ejercicio | D76: 0 | E76: Justificado
C77: Criterio 59. Periodo que se informa | D77: 0 | E77: Justificado
C78: Criterio 60. Sujeto obligado al que se le proporcionó el servicio/permiso | D78: 0 | E78: Justificado
C79: Criterio 61. Tipo: Tiempo de Estado / Tiempo fiscal | D79: 0 | E79: Justificado
C80: Criterio 62. Medio de comunicación | D80: 0 | E80: Justificado
C81: Criterio 63. Descripción de unidad, por ejemplo: spot de 30 segundos (radio/televisión) | D81: 0 | E81: Justificado
C82: Criterio 64. Concepto o campaña | D82: 0 | E82: Justificado
C83: Criterio 65. Clave única de identificación de campaña o aviso institucional, en su caso | D83: 0 | E83: Justificado
C84: Criterio 66. Autoridad que proporcionó la clave única de identificación de campaña o aviso institucional | D84: =IF(E84="Justificado",0,1) -> 0 | E84: Justificado
C85: Criterio 67. Cobertura: internacional, nacional, estatal, delegacional o municipal | D85: 0 | E85: Justificado
C86: Criterio 68. Ámbito geográfico de cobertura | D86: 0 | E86: Justificado
C87: Criterio 69. Sexo | D87: 0 | E87: Justificado
C88: Criterio 70. Lugar de residencia | D88: 0 | E88: Justificado
C89: Criterio 71. Nivel educativo | D89: 0 | E89: Justificado
C90: Criterio 72. Grupo de edad | D90: 0 | E90: Justificado
C91: Criterio 73. Nivel socioeconómico | D91: 0 | E91: Justificado
C92: Criterio 74. Concesionario responsable de publicar la campaña o la comunicación correspondiente (razón social) | D92: 0 | E92: Justificado
C93: Criterio 75. Nombre comercial del concesionario responsable de publicar la campaña o comunicación | D93: 0 | E93: Justificado
C94: Criterio 76. Descripción breve de las razones que justifican la elección del proveedor | D94: 0 | E94: Justificado
C95: Criterio 77. Monto total del tiempo de Estado o tiempo fiscal consumidos (con el formato: horas/minutos/segundos) | D95: 0 | E95: Justificado
C96: Criterio 78. Área administrativa encargada de solicitar la difusión del mensaje o producto, en su caso | D96: 0 | E96: Justificado
C97: Criterio 79. Fecha de inicio de difusión del concepto o campaña en el formato día/mes/año (por ej. 31/Marzo/2016) | D97: 0 | E97: Justificado
C98: Criterio 80. Fecha de término de difusión del concepto o campaña con el formato día/mes/año (por ej. 31/Marzo/2016) | D98: 0 | E98: Justificado
C99: Criterio 81. Presupuesto total asignado a cada partida | D99: 0 | E99: Justificado
C100: Criterio 82. Presupuesto ejercido al periodo reportado de cada partida | D100: =IF(E100="Justificado",0,1) -> 0 | E100: Justificado
C101: Criterio 83. Número de factura, en su caso | D101: =IF(E101="Justificado",0,1) -> 0 | E101: Justificado
C106: Criterios Sustantivos de contenido LTG 2018 - LTG 2020 (DOF 28/12/20) | D106: =COUNTA(F109:F209) -> 1
C108: Criterio | E108: Valoración | F108: Tipo | G108: Observaciones, Recomendaciones y/o Requerimientos
C109: Criterio 1. Ejercicio | D109: =IF(E109="Justificado",0,1) -> 1
C110: Criterio 2. Periodo que se informa (fecha de inicio y fecha de término con el formato día/mes/año) | D110: =IF(E110="Justificado",0,1) -> 1
C111: Criterio 3. Denominación del documento del Programa Anual de Comunicación Social o equivalente | D111: 1
C112: Criterio 4. Fecha en la que se aprobó el Programa Anual de Comunicación Social por la instancia correspondiente | D112: 1
C113: Criterio 5. Hipervínculo al Programa Anual de Comunicación Social o equivalente, que sea vigente y aplicable al sujeto obligado | D113: 1
C114: Criterio 6. Ejercicio | D114: 1
C115: Criterio 7. Periodo que se informa (fecha de inicio y fecha de término con el formato día/mes/año) | D115: 1
C116: Criterio 8. Función del sujeto obligado (catálogo): Contratante/ Solicitante/ Contratante y solicitante | D116: 1
C117: Criterio 9. Área administrativa encargada de solicitar el servicio o producto, en su caso | D117: 1
C118: Criterio 10. Clasificación del(los) servicios (catálogo): Servicio de difusión en medios de comunicación / Otros servicios asociados a la comunicación / Erogación de recursos por contratación de servicios de impresión, difusión y publicidad / Utilización de los Tiempos Oficiales: tiempo de Estado y tiempo fiscal | D118: 1
C119: Criterio 11. Tipo de servicio | D119: 1
C120: Criterio 12. Tipo de medio (catálogo): Internet/Radio/Televisión/Cine/Medios impresos/Medios digitales/Espectaculares/Medios complementarios[1]/Otros servicios asociados[2]/Otro (especificar) | D120: 1
C121: Criterio 13. Descripción de unidad, por ejemplo: spot de 30 segundos (radio); ½ plana (periódico); cine segundos, revistas, folletos | D121: 1
C122: Criterio 14. Tipo (catálogo): Campaña/ Aviso institucional | D122: 1
C123: Criterio 15. Nombre de la campaña o aviso Institucional, en su caso | D123: 1
C124: Criterio 16. Año de la campaña | D124: 1
C125: Criterio 17. Tema de la campaña o aviso institucional | D125: 1
C126: Criterio 18. Objetivo institucional | D126: 1
C127: Criterio 19. Objetivo de comunicación | D127: 1
C128: Criterio 20. Costo por unidad | D128: 1
C129: Criterio 21. Clave única o número de identificación de campaña, aviso institucional o análogo | D129: 1
C130: Criterio 22. Autoridad que proporcionó la clave única de identificación de campaña publicitaria o aviso institucional, o el número análogo de identificación de la campaña | D130: 1
C131: Criterio 23. Cobertura (catálogo): Internacional / Nacional / Estatal / Delegacional o municipal | D131: 1
C132: Criterio 24. Ámbito geográfico de cobertura, en su caso | D132: 1
C133: Criterio 25. Fecha de inicio de la campaña o aviso institucional con el formato día/mes/año | D133: 1
C134: Criterio 26. Fecha de término de la campaña o aviso institucional con el formato día/mes/año | D134: 1
C135: Criterio 27. Sexo (catálogo): femenino/masculino/femenino y masculino | D135: 1
C136: Criterio 28. Lugar de residencia | D136: 1
C137: Criterio 29. Nivel educativo | D137: 1
C138: Criterio 30. Grupo de edad | D138: 1
C139: Criterio 31. Nivel socioeconómico | D139: 1
C140: Criterio 32. Razón social o nombre completo del (los) proveedor(es) y/o responsable(s) de publicar la campaña o la comunicación correspondiente (nombre[s], primer apellido y segundo apellido en caso de ser persona física) | D140: 1
C141: Criterio 33. Nombre del (los) proveedor(es) y/o responsable(s) | D141: 1
C142: Criterio 34. Registro Federal de Contribuyentes de la persona física o moral proveedora del producto o servicio publicitario | D142: 1
C143: Criterio 35. Procedimiento de contratación (catálogo): Licitación pública/Adjudicación directa/Invitación restringida | D143: 1
C144: Criterio 36. Fundamento jurídico del proceso de contratación | D144: 1
C145: Criterio 37. Descripción breve de las razones que justifican la elección de tal proveedor | D145: 1
C146: Criterio 38. Partida genérica | D146: 1
C147: Criterio 39. Clave del concepto (conforme al clasificador por objeto del gasto) | D147: 1
C148: Criterio 40. Nombre del concepto (conforme al clasificador por objeto del gasto) | D148: 1
C149: Criterio 41. Presupuesto asignado por concepto | D149: 1
C150: Criterio 42. Presupuesto modificado por concepto | D150: 1
C151: Criterio 43. Presupuesto total ejercido por concepto al periodo reportado | D151: 1
C152: Criterio 44. Denominación de cada partida | D152: 1
C153: Criterio 45. Presupuesto total asignado a cada partida | D153: 1
C154: Criterio 46. Presupuesto modificado por partida | D154: 1
C155: Criterio 47. Presupuesto ejercido al periodo reportado de cada partida | D155: 1
C156: Criterio 48. Fecha de firma de contrato con el formato día/mes/año | D156: 1
C157: Criterio 49. Número o referencia de identificación del contrato | D157: 1
C158: Criterio 50. Objeto del contrato | D158: 1
C159: Criterio 51. Hipervínculo al contrato firmado | D159: 1
C160: Criterio 52. Hipervínculo al convenio modificatorio, en su caso | D160: 1
C161: Criterio 53. Monto total del contrato | D161: 1
C162: Criterio 54. Monto pagado al periodo publicado | D162: 1
C163: Criterio 55. Fecha de inicio de los servicios contratados con el formato día/mes/año | D163: 1
C164: Criterio 56. Fecha de término de los servicios contratados con el formato día/mes/año | D164: 1
C165: Criterio 57. Número de factura | D165: 1
C166: Criterio 58. Hipervínculo a la factura | D166: 1
C167: Criterio 59. Ejercicio | D167: 1
C168: Criterio 60. Periodo que se informa (fecha de inicio y fecha de término con el formato día/mes/año) | D168: 1
C169: Criterio 61. Sujeto obligado al que se le proporcionó el servicio/permiso | D169: 1
C170: Criterio 62. Tipo (catálogo): Tiempo de Estado/Tiempo fiscal/Tiempo oficial | D170: 1
C171: Criterio 63. Medio de comunicación (catálogo): Televisión/ Radio | D171: 1
C172: Criterio 64. Descripción de unidad, por ejemplo: spot de 30 segundos (radio/televisión) | D172: 1
C173: Criterio 65. Concepto o campaña | D173: 1
C174: Criterio 66. Clave única de identificación de campaña o aviso institucional, en su caso | D174: =IF(E174="Justificado",0,1) -> 1
C175: Criterio 67. Autoridad que proporcionó la clave única de identificación de campaña o aviso institucional | D175: 1
C176: Criterio 68. Cobertura (catálogo): Internacional/ Nacional/ Estatal/ Delegacional o municipal | D176: 1
C177: Criterio 69. Ámbito geográfico de cobertura | D177: 1
C178: Criterio 70. Sexo (catálogo): Femenino/ Masculino/ Femenino y masculino | D178: 1
C179: Criterio 71. Lugar de residencia | D179: 1
C180: Criterio 72. Nivel educativo | D180: 1
C181: Criterio 73. Grupo de edad | D181: 1
C182: Criterio 74. Nivel socioeconómico | D182: 1
C183: Criterio 75. Concesionario responsable de publicar la campaña o la comunicación correspondiente (razón social) | D183: 1
C184: Criterio 76. Distintivo y/o nombre comercial del concesionario responsable de publicar la campaña o comunicación | D184: 1
C185: Criterio 77. Descripción breve de las razones que justifican la elección del proveedor | D185: 1
C186: Criterio 78. Monto total del tiempo de Estado o tiempo fiscal consumidos (con el formato: horas/minutos/segundos) | D186: 1
C187: Criterio 79. Área administrativa encargada de solicitar la difusión del mensaje o producto, en su caso | D187: 1
C188: Criterio 80. Fecha de inicio de difusión del concepto o campaña en el formato día/mes/año | D188: 1
C189: Criterio 81. Fecha de término de difusión del concepto o campaña con el formato día/mes/año | D189: 1
C190: Criterio 82. Presupuesto total asignado a cada partida | D190: 1
C191: Criterio 83. Presupuesto ejercido al periodo reportado de cada partida | D191: 1
C192: Criterio 84. Número de factura, en su caso | D192: 1
C193: Criterio 85. Ejercicio | D193: 1
C194: Criterio 86. Periodo que se informa (fecha de inicio y fecha de término con el formato día/mes/año) | D194: 1
C195: Criterio 87. Publicar mensaje 1: “La publicación y actualización de la información relativa a la utilización de los Tiempos oficiales está a cargo de Dirección General de Radio, Televisión y Cinematografía de la Secretaría de Gobernación.” Publicar mensaje 2: “La publicación y actualización de la información relativa a la utilización de los Tiempos oficiales está a cargo del Instituto Nacional Electoral.” | D195: =IF(E195="Justificado",0,1) -> 1
C196: Criterio 88. Hipervínculo que dirija a la información relativa a la utilización de los Tiempos oficiales que publica el sujeto obligado referido en la Plataforma Nacional de Transparencia, en el Sistema de Portales de Obligaciones de Transparencia (SIPOT) - Criterio Modificado DOF 28/12/2020 | D196: =IF(E196="Justificado",0,1) -> 1
C198: Criterios Adjetivos LTG 2018 - LTG 2020 (DOF 28/12/20)
C200: Criterio | E200: Valoración | F200: Tipo | G200: Observaciones, Recomendaciones y/o Requerimientos
C201: Criterio 89. Periodo de actualización de la información: trimestral; anual durante el primer trimestre, respecto del Programa Anual de Comunicación Social o equivalente - Párrafo modificado DOF 28/12/2020 | D201: =IF(E201="Justificado",0,1) -> 1
C202: Criterio 90. La información deberá estar actualizada al periodo que corresponde de acuerdo con la Tabla de actualización y conservación de la información | D202: 1
C203: Criterio 91. Conservar en el sitio de Internet y a través de la Plataforma Nacional la información del ejercicio en curso y la correspondiente a dos ejercicios anteriores de acuerdo con la Tabla de actualización y conservación de la información | D203: 1
C204: Criterio 92. Área(s) responsable(s) que genera(n), posee(n), publica(n) y/o actualiza(n)la información | D204: 1
C205: Criterio 93. Fecha de actualización de la información publicada con el formato día/mes/año | D205: 1
C206: Criterio 94. Fecha de validación de la información publicada con el formato día/mes/año | D206: 1
C207: Criterio 95. Nota. Este criterio se cumple en caso de que sea necesario que el sujeto obligado incluya alguna aclaración relativa a la información publicada y/o explicación por la falta de información | D207: 1
C208: Criterio 96. La información publicada se organiza mediante los formatos 23a, 23b, 23c y 23d en los que se incluyen todos los campos especificados en los criterios sustantivos de contenido | D208: 1
C209: Criterio 97. El soporte de la información permite su reutilización | D209: 1
D217: 2017 | E217: 2018
C218: CS | D218: =IF(Aplicabilidad!G34<>"SI","NA",SUM(E19:E101)/SUM(D19:D101)) -> NA | E218: =IF(Aplicabilidad!G34<>"SI","NA",SUM(E109:E196)/SUM(D109:D196)) -> NA
C219: CA | D219: =IF(Aplicabilidad!G34<>"SI","NA",SUM(#REF!)/SUM(#REF!)) -> NA | E219: =IF(Aplicabilidad!G34<>"SI","NA",SUM(E201:E209)/SUM(D201:D209)) -> NA
C220: OBLIGACIÓN | D220: =IF(Aplicabilidad!G34<>"SI","NA",D218*0.6+D219*0.4) -> NA | E220: =IF(Aplicabilidad!G34<>"SI","NA",E218*0.6+E219*0.4) -> NA

Sheet Art 74_XXIV
C1: =IF(Aplicabilidad!E2="","",Aplicabilidad!E2) -> Consejería Jurídica
B3: Códigos de valoración : Cumplió totalmente = 1; Cumplió parcialmente = 0.5; No cumplió = 0; Justificado = Justificado
B5: Art. 74 - Fracción XXIV. Resultados de auditorías
C7: Fecha de Inicio de la Verificación: | G7: Fecha de Término de la verificación
C8: =IF(Resultados!$C$7="","",Resultados!$C$7) -> 2021-07-07 | D8: 2018-05-25 | G8: =IF(Resultados!G7="","",Resultados!G7) -> 2021-07-08
C10: Criterios Sustantivos | E10: =IF(Aplicabilidad!G35<>"SI","NA",(SUM(E19:E42)+SUM(E50:E74))/(SUM(D19:D42)+SUM(D50:D74))) -> 93%
C11: Criterios Adjetivos | E11: =IF(Aplicabilidad!G35<>"SI","NA",(SUM(E79:E87))/(SUM(D79:D87))) -> 100%
C12: Obligación | E12: =IF(Aplicabilidad!G35<>"SI","NA",E10*0.6+E11*0.4) -> 95.71%
C16: Criterios Sustantivos de contenido LTG 2018 - LTG 2020 (DOF 28/12/20) | D16: =COUNTA(F19:F43) -> 0
C18: Criterio | E18: Valoración | F18: Tipo | G18: Observaciones, Recomendaciones y/o Requerimientos
C19: Criterio 1. Ejercicio en el que inició la auditoría o revisión | D19: =IF(E19="Justificado",0,1) -> 0 | E19: Justificado
C20: Criterio 2. Periodo en el que se dio inicio a la auditoría | D20: =IF(E20="Justificado",0,1) -> 0 | E20: Justificado
C21: Criterio 3. Ejercicio(s) auditado(s) | D21: 0 | E21: Justificado
C22: Criterio 4. Periodo auditado | D22: 0 | E22: Justificado
C23: Criterio 5. Rubro: Auditoría interna / Auditoría externa | D23: 0 | E23: Justificado
C24: Criterio 6. Tipo de auditoría, con base en la clasificación hecha por el órgano fiscalizador correspondiente | D24: 0 | E24: Justificado
C25: Criterio 7. Número de auditoría o nomenclatura que la identifique | D25: 0 | E25: Justificado
C26: Criterio 8. Órgano que realizó la revisión o auditoría | D26: 0 | E26: Justificado
C27: Criterio 9. Nomenclatura, número o folio que identifique el oficio o documento de apertura en el que se haya notificado el inicio de trabajo de revisión | D27: 0 | E27: Justificado
C28: Criterio 10. Nomenclatura, número o folio que identifique el oficio o documento de solicitud de información que será revisada | D28: 0 | E28: Justificado
C29: Criterio 11. Objetivo(s) de la realización de la auditoría | D29: 0 | E29: Justificado
C30: Criterio 12. Rubros sujetos a revisión | D30: 0 | E30: Justificado
C31: Criterio 13. Fundamentos legales (normas y legislaciones aplicables a la auditoría) | D31: 0 | E31: Justificado
C32: Criterio 14. Número de oficio o documento de notificación de resultados | D32: 0 | E32: Justificado
C33: Criterio 15. Hipervínculo al oficio o documento de notificación de resultados | D33: 0 | E33: Justificado
C34: Criterio 16. Por rubro sujeto a revisión, el número total de hallazgos, observaciones, conclusiones, recomendaciones, o lo que derive | D34: 0 | E34: Justificado
C35: Criterio 17. Hipervínculo a las recomendaciones y/u observaciones hechas al sujeto obligado, ordenadas por rubro sujeto a revisión | D35: 0 | E35: Justificado
C36: Criterio 18. Informes finales, de revisión y/o dictamen (puede tratarse de un texto libre o de un documento publicado en formato PDF, en el que se difundan firmas, cuyo formato debe permitir su reutilización) | D36: 0 | E36: Justificado
C37: Criterio 19. Tipo de acción promovida por el órgano fiscalizador, como pueden ser la emisión de una recomendación, pliego de observaciones, promoción del ejercicio de la facultad de comprobación fiscal, multa, responsabilidad administrativa sancionatoria, fincamiento de responsabilidad, denuncia de hechos, u otras de acuerdo con lo especificado por el órgano fiscalizador y la normatividad que corresponda[1] | D37: 0 | E37: Justificado
C38: Criterio 20. Servidor(a) público(a) y/o área del sujeto obligado responsable o encargada de recibir los resultados | D38: 0 | E38: Justificado
C39: Criterio 21. El total de solventaciones y/o aclaraciones realizadas | D39: 0 | E39: Justificado
C40: Criterio 22. En su caso, el informe sobre las aclaraciones realizadas por el sujeto obligado a las acciones promovidas por el órgano fiscalizador (puede tratarse de un texto libre o de un documento publicado en formato PDF, en el que se difundan firmas, cuyo formato debe permitir su reutilización) | D40: 0 | E40: Justificado
C41: Criterio 23. El total de acciones pendientes por solventar y/o aclarar ante el órgano fiscalizador | D41: =IF(E41="Justificado",0,1) -> 0 | E41: Justificado
C42: Criterio 24. Hipervínculo al Programa Anual de Auditorías para la Fiscalización Superior de la Cuenta Pública[2] generado y publicado por la ASF, cuando se trate de auditorías practicadas al ejercicio de recursos públicos federales; o en su caso al Plan, Programa Anual u homólogo que genere la entidad estatal de fiscalización correspondiente[3]. Una vez que el Sistema Nacional de Fiscalización realice el Programa Anual de Auditorías derivado de dicho Sistema, se deberá publicar el hipervínculo al mismo. | D42: =IF(E42="Justificado",0,1) -> 0 | E42: Justificado
C47: Criterios Sustantivos de contenido LTG 2018 - LTG 2020 (DOF 28/12/20) | D47: =COUNTA(F50:F87) -> 3
C49: Criterio | E49: Valoración | F49: Tipo | G49: Observaciones, Recomendaciones y/o Requerimientos
C50: Criterio 1. Ejercicio | D50: =IF(E50="Justificado",0,1) -> 1 | E50: 1
C51: Criterio 2. Periodo que se informa (fecha de inicio y fecha de término con el formato día/mes/año) | D51: =IF(E51="Justificado",0,1) -> 1 | E51: 1
C52: Criterio 3. Ejercicio(s) auditado(s) | D52: 1 | E52: 1
C53: Criterio 4. Periodo auditado | D53: 1 | E53: 1
C54: Criterio 5. Rubro (catálogo): Auditoría interna/Auditoría externa | D54: 1 | E54: 1
C55: Criterio 6. Tipo de auditoría, con base en la clasificación hecha por el órgano fiscalizador correspondiente | D55: 1 | E55: 1
C56: Criterio 7. Número de auditoría o nomenclatura que la identifique | D56: 1 | E56: 1
C57: Criterio 8. Órgano que realizó la revisión o auditoría | D57: 1 | E57: 1
C58: Criterio 9. Nomenclatura, número o folio que identifique el oficio o documento de apertura en el que se haya notificado el inicio de trabajo de revisión | D58: 1 | E58: 1
C59: Criterio 10. Nomenclatura, número o folio que identifique el oficio o documento de solicitud de información que será revisada | D59: 1 | E59: 1
C60: Criterio 11. Nomenclatura, número o folio que identifique el oficio o documento de solicitud de información adicional que será revisada | D60: 1 | E60: 0 | F60: Requerimiento | G60: Existen registros donde no hay información publicada ni nota informativa que justifique la falta de información.
C61: Criterio 12. Objetivo(s) de la realización de la auditoría | D61: 1 | E61: 1
C62: Criterio 13. Rubros sujetos a revisión | D62: 1 | E62: 1
C63: Criterio 14. Fundamentos legales (normas y legislaciones aplicables a la auditoría) | D63: 1 | E63: 1
C64: Criterio 15. Número de oficio o documento de notificación de resultados | D64: 1 | E64: 1
C65: Criterio 16. Hipervínculo al oficio o documento de notificación de resultados | D65: 1 | E65: 1
C66: Criterio 17. Por rubro sujeto a revisión, el número total de hallazgos, observaciones, conclusiones, recomendaciones, o lo que derive | D66: 1 | E66: 1
C67: Criterio 18. Hipervínculo a las recomendaciones y/u observaciones hechas al sujeto obligado, ordenadas por rubro sujeto a revisión | D67: 0 | E67: Justificado
C68: Criterio 19. Hipervínculo a los informes finales, de revisión y/o dictamen si es un documento publicado en formato PDF, en el que se difundan firmas, el formato debe permitir su reutilización) | D68: 1 | E68: 1
C69: Criterio 20. Tipo de acción determinada por el órgano fiscalizador, como pueden ser la emisión de una recomendación, pliego de observaciones, promoción del ejercicio de la facultad de comprobación fiscal, multa, responsabilidad administrativa sancionatoria, fincamiento de responsabilidad, denuncia de hechos, u otras de acuerdo con lo especificado por el órgano fiscalizador y la normatividad que corresponda | D69: 0 | E69: Justificado
C70: Criterio 21. Nombre del Servidor(a) público(a) y/o área del sujeto obligado responsable o encargada de recibir los resultados | D70: 1 | E70: 1
C71: Criterio 22. El total de solventaciones y/o aclaraciones realizadas | D71: 0 | E71: Justificado
C72: Criterio 23. En su caso, el hipervínculo al informe sobre las aclaraciones realizadas por el sujeto obligado a las acciones promovidas por el órgano fiscalizador si es un documento publicado en formato PDF, en el que se difundan firmas, el formato debe permitir su reutilización) | D72: 0 | E72: Justificado
C73: Criterio 24. El total de acciones pendientes por solventar y/o aclarar ante el órgano fiscalizador | D73: =IF(E73="Justificado",0,1) -> 1 | E73: 1
C74: Criterio 25. Hipervínculo al Programa anual de auditoría que corresponda. El Programa Anual de Auditorías para la Fiscalización Superior de la Cuenta Pública[2] generado y publicado por la ASF, cuando se trate de auditorías practicadas al ejercicio de recursos públicos federales; o en su caso al Plan, Programa Anual u homólogo que genere la entidad estatal de fiscalización correspondiente[3]. Una vez que el Sistema Nacional de Fiscalización realice el Programa Anual de Auditorías derivado de dicho Sistema, se deberá publicar el hipervínculo al mismo. En el caso de los Partidos Políticos se vinculará al sistema homólogo del órgano fiscalizador que contenga la programación de las auditorías. Para las auditorías internas se deberá vincular al Programa Interno de Auditorías que corresponda. | D74: =IF(E74="Justificado",0,1) -> 1 | E74: 0.5 | F74: Requerimiento | G74: Existen registros donde no hay información publicada ni nota informativa que justifique la falta de información.
C76: Criterios Adjetivos LTG 2018 - LTG 2020 (DOF 28/12/20)
C78: Criterio | E78: Valoración | F78: Tipo | G78: Observaciones, Recomendaciones y/o Requerimientos
C79: Criterio 26. Periodo de actualización de la información: trimestral | D79: =IF(E79="Justificado",0,1) -> 1 | E79: 1
C80: Criterio 27. La información deberá estar actualizada al periodo que corresponde de acuerdo con la Tabla de actualización y conservación de la información | D80: 1 | E80: 1
C81: Criterio 28. Conservar en el sitio de Internet y a través de la Plataforma Nacional la Información generada en el ejercicio en curso y la correspondiente a los tres ejercicios anteriores | D81: 1 | E81: 1
C82: Criterio 29. Área(s) responsable(s) que genera(n), posee(n), publica(n) y/o actualiza(n)la información | D82: 1 | E82: 1
C83: Criterio 30. Fecha de actualización de la información publicada con el formato día/mes/año | D83: 1 | E83: 1
C84: Criterio 31. Fecha de validación de la información publicada con el formato día/mes/año | D84: 1 | E84: 1
C85: Criterio 32. Nota. Este criterio se cumple en caso de que sea necesario que el sujeto obligado incluya alguna aclaración relativa a la información publicada y/o explicación por la falta de información | D85: 1 | E85: 1
C86: Criterio 33. La información publicada se organiza mediante el formato 24, en el que se incluyen todos los campos especificados en los criterios sustantivos de contenido | D86: 1 | E86: 1
C87: Criterio 34. El soporte de la información permite su reutilización | D87: 1 | E87: 1
D95: 2017 | E95: 2018
C96: CS | D96: =IF(Aplicabilidad!G35<>"SI","NA",SUM(E19:E42)/SUM(D19:D42)) ->  | E96: =IF(Aplicabilidad!G35<>"SI","NA",SUM(E50:E74)/SUM(D50:D74)) -> 92.86%
C97: CA | D97: =IF(Aplicabilidad!G35<>"SI","NA",SUM(#REF!)/SUM(#REF!)) ->  | E97: =IF(Aplicabilidad!G35<>"SI","NA",SUM(E79:E87)/SUM(D79:D87)) -> 100.00%
C98: OBLIGACIÓN | D98: =IF(Aplicabilidad!G35<>"SI","NA",D96*0.6+D97*0.4) ->  | E98: =IF(Aplicabilidad!G35<>"SI","NA",E96*0.6+E97*0.4) -> 95.71%

Sheet Art 74_XXV (hidden)
C1: =IF(Aplicabilidad!E2="","",Aplicabilidad!E2) -> Consejería Jurídica
B3: Códigos de valoración : Cumplió totalmente = 1; Cumplió parcialmente = 0.5; No cumplió = 0; Justificado = Justificado
B5: Art. 74 - Fracción XXV. Dictámenes estados financieros
C7: Fecha de Inicio de la Verificación: | G7: Fecha de Término de la verificación
C8: =IF(Resultados!$C$7="","",Resultados!$C$7) -> 2021-07-07 | D8: 2018-05-25 | G8: =IF(Resultados!G7="","",Resultados!G7) -> 2021-07-08
C10: Criterios Sustantivos | E10: =IF(Aplicabilidad!G36<>"SI","NA",(SUM(E19:E27)+SUM(E35:E44))/(SUM(D19:D27)+SUM(D35:D44))) -> NA
C11: Criterios Adjetivos | E11: =IF(Aplicabilidad!G36<>"SI","NA",(SUM(E49:E57))/(SUM(D49:D57))) -> NA
C12: Obligación | E12: =IF(Aplicabilidad!G36<>"SI","NA",E10*0.6+E11*0.4) -> NA
C16: Criterios Sustantivos de contenido 2015 -2017 | D16: =COUNTA(F19:F28) -> 0
C18: Criterio | E18: Valoración | F18: Tipo | G18: Observaciones, Recomendaciones y/o Requerimientos
C19: Criterio 1. Ejercicio | D19: =IF(E19="Justificado",0,1) -> 1
C20: Criterio 2. Ejercicio auditado | D20: =IF(E20="Justificado",0,1) -> 1
C21: Criterio 3. Hipervínculo a los estados financieros dictaminados | D21: 1
C22: Criterio 4. Fecha de emisión del dictamen día/mes/año (por ej. 27/Abril/2016) | D22: 1
C23: Criterio 5. Hipervínculo al dictamen de los estados financieros entregado por el contador público independiente al sujeto obligado en el que se incluyan los anexos con las observaciones, recomendaciones y notas. En su caso, se deberán prever documentos en versión pública si contienen información reservada | D23: 1
C24: Criterio 6. Total de observaciones resultantes | D24: 1
C25: Criterio 7. Total de aclaraciones efectuadas | D25: 1
C26: Criterio 8. Total de solventaciones | D26: =IF(E26="Justificado",0,1) -> 1
C27: Criterio 9. Razón social, denominación o nombre del (la) contador(a) público(a) independiente que realizó el dictamen | D27: =IF(E27="Justificado",0,1) -> 1
C32: Criterios Sustantivos de contenido LTG 2018 - LTG 2020 (DOF 28/12/20) | D32: =COUNTA(F35:F57) -> 1
C34: Criterio | E34: Valoración | F34: Tipo | G34: Observaciones, Recomendaciones y/o Requerimientos
C35: Criterio 1. Ejercicio | D35: =IF(E35="Justificado",0,1) -> 1
C36: Criterio 2. Periodo que se informa (fecha de inicio y fecha de término con el formato día/mes/año) | D36: =IF(E36="Justificado",0,1) -> 1
C37: Criterio 3. Ejercicio auditado | D37: 1
C38: Criterio 4. Hipervínculo a los estados financieros dictaminados | D38: 1
C39: Criterio 5. Fecha de emisión del dictamen, con el formato día/mes/año | D39: 1
C40: Criterio 6. Hipervínculo al dictamen de los estados financieros entregado por el contador público independiente al sujeto obligado en el que se incluyan los anexos con las observaciones, recomendaciones y notas. En su caso, se deberán prever documentos en versión pública si contienen información reservada | D40: 1
C41: Criterio 7. Total de observaciones resultantes | D41: 1
C42: Criterio 8. Total de aclaraciones efectuadas | D42: 1
C43: Criterio 9. Total de solventaciones | D43: =IF(E43="Justificado",0,1) -> 1
C44: Criterio 10. Razón social, denominación o nombre del (la) contador(a) público(a) independiente que realizó el dictamen | D44: =IF(E44="Justificado",0,1) -> 1
C46: Criterios Adjetivos LTG 2018 - LTG 2020 (DOF 28/12/20)
C48: Criterio | E48: Valoración | F48: Tipo | G48: Observaciones, Recomendaciones y/o Requerimientos
C49: Criterio 11. Periodo de actualización de la información: anual; en su caso, 15 días hábiles después de que el Contador Público Independiente entregue una dictaminación especial | D49: =IF(E49="Justificado",0,1) -> 1
C50: Criterio12. La información pública deberá estar actualizada al periodo que corresponde de acuerdo con la Tabla de actualización y conservación de la información | D50: 1
C51: Criterio 13. Conservar en el sitio de Internet y a través de la Plataforma Nacional la información vigente de acuerdo con la Tabla de actualización y conservación de la información | D51: 1
C52: Criterio 14. Área(s) responsable(s) que genera(n), posee(n), publica(n) y/o actualiza(n) la información | D52: 1
C53: Criterio 15. Fecha de actualización de la información con el formato día/mes/año | D53: 1
C54: Criterio 16. Fecha de validación de la información con el formato día/mes/año | D54: 1
C55: Criterio 17. Nota. Este criterio se cumple en caso de que sea necesario que el sujeto obligado incluya alguna aclaración relativa a la información publicada y/o explicación por la falta de información | D55: 1
C56: Criterio 18. La información publicada se organiza mediante el formato 25, en el que se incluyen todos los campos especificados en los criterios sustantivos de contenido | D56: 1
C57: Criterio 19. El soporte de la información permite su reutilización | D57: 1
D65: 2017 | E65: 2018
C66: CS | D66: =IF(Aplicabilidad!G36<>"SI","NA",SUM(E19:E27)/SUM(D19:D27)) -> NA | E66: =IF(Aplicabilidad!G36<>"SI","NA",SUM(E35:E44)/SUM(D35:D44)) -> NA
C67: CA | D67: =IF(Aplicabilidad!G36<>"SI","NA",SUM(#REF!)/SUM(#REF!)) -> NA | E67: =IF(Aplicabilidad!G36<>"SI","NA",SUM(E49:E57)/SUM(D49:D57)) -> NA
C68: OBLIGACIÓN | D68: =IF(Aplicabilidad!G36<>"SI","NA",D66*0.6+D67*0.4) -> NA | E68: =IF(Aplicabilidad!G36<>"SI","NA",E66*0.6+E67*0.4) -> NA

Sheet Art 74_XXVI (hidden)
C1: =IF(Aplicabilidad!E2="","",Aplicabilidad!E2) -> Consejería Jurídica
B3: Códigos de valoración : Cumplió totalmente = 1; Cumplió parcialmente = 0.5; No cumplió = 0; Justificado = Justificado
B5: Art. 74 - Fracción XXVI. Personas físicas o morales a quienes se asigne recursos públicos
C7: Fecha de Inicio de la Verificación: | G7: Fecha de Término de la verificación
C8: =IF(Resultados!$C$7="","",Resultados!$C$7) -> 2021-07-07 | D8: 2018-05-25 | G8: =IF(Resultados!G7="","",Resultados!G7) -> 2021-07-08
C10: Criterios Sustantivos | E10: =IF(Aplicabilidad!G37<>"SI","NA",(SUM(E19:E35)+SUM(E43:E63))/(SUM(D19:D35)+SUM(D43:D63))) -> NA
C11: Criterios Adjetivos | E11: =IF(Aplicabilidad!G37<>"SI","NA",(SUM(E68:E76))/(SUM(D68:D76))) -> NA
C12: Obligación | E12: =IF(Aplicabilidad!G37<>"SI","NA",E10*0.6+E11*0.4) -> NA
C16: Criterios Sustantivos de contenido LTG 2018 - LTG 2020 (DOF 28/12/20) | D16: =COUNTA(F19:F36) -> 0
C18: Criterio | E18: Valoración | F18: Tipo | G18: Observaciones, Recomendaciones y/o Requerimientos
C19: Criterio 1. Ejercicio | D19: =IF(E19="Justificado",0,1) -> 0 | E19: Justificado
C20: Criterio 2. Periodo que se informa | D20: =IF(E20="Justificado",0,1) -> 0 | E20: Justificado
C21: Criterio 3. Ámbito de aplicación, función o destino del recurso público: Educación / Salud / Cultura / Desarrollo social / Economía /Protección del medio ambiente / Otro (especificar) | D21: 0 | E21: Justificado
C22: Criterio 4. Fecha en la que el sujeto obligado firmó el documento que autoriza la asignación o permite la entrega de recursos al/los particulares, publicada con el formato día/mes/año (por ej. 31/Marzo/2016) | D22: 0 | E22: Justificado
C23: Criterio 5. Hipervínculo al convenio, acuerdo, decreto o convocatoria oficial. En su caso, señalar que no se emitió convocatoria alguna. Cuando se trate de sindicatos, se publicará un hipervínculo al convenio o acuerdo concertado con la representación sindical | D23: 0 | E23: Justificado
C24: Criterio 6. Denominación, en su caso, de la partida presupuestal que dio origen a los recursos que se entregaron | D24: 0 | E24: Justificado
C25: Criterio 7. Total de presupuesto otorgado a la partida presupuestal antes mencionada, en su caso | D25: 0 | E25: Justificado
C26: Criterio 8. Unidad administrativa responsable del otorgamiento (de acuerdo con el catálogo de unidades administrativas o puestos del sujeto obligado, si así corresponde) | D26: 0 | E26: Justificado
C27: Criterio 9. Fundamento jurídico (artículo, fracción, lineamiento, o lo que corresponda) que sustenta la asignación o permiso para usar recursos públicos | D27: 0 | E27: Justificado
C28: Criterio 10. Personería jurídica: Persona física / Persona moral | D28: 0 | E28: Justificado
C29: Criterio 11. Clasificación de la persona moral: Sociedad mercantil / Sociedad / Asociación civil / Sociedad cooperativa de producción / Institución de crédito / Institución de seguros y fianzas / Almacén general de depósito / Arrendadora financiera / Unión de crédito y sociedad de inversión de capitales / Organismo descentralizado que comercializa bienes o servicios / Fideicomiso con actividades empresariales / Institución de asistencia o de beneficencia / Asociación deportiva / Asociación religiosa / Donataria autorizada / Asociación patronal / Sindicato / Cámara de comercio e industria / Asociación o sociedad civil de enseñanza de investigación científica o tecnológica / Sociedad cooperativa de consumo / Institución o sociedad civil que administren fondos o cajas de ahorro / Asociaciones de padres de familia / Asociación civil de colonos o que administren inmuebles en condominio / Agrupación agrícola / Agrupación ganadera / Agrupación pesquera / Agrupación silvícola / Asociación civil y sociedad de responsabilidad limitada / Asociación o sociedad civil autorizada para recibir donativos / Sociedad de gestión colectiva constituida conforme a la Ley Federal de Derecho de Autor / Asociación o sociedad civil que otorgue becas conforme al artículo 83 Ley del Impuesto Sobre la Renta / Sociedad y asociación civil dedicada a la investigación o preservación de la flora o fauna silvestre, reproducción de especies en peligro de extinción y conservación de su hábitat / Partido político / Asociación política legalmente reconocida | D29: 0 | E29: Justificado
C30: Criterio 12. Nombre completo (nombre[s], primer apellido y segundo apellido) del beneficiario (persona física) o denominación y/o razón social (persona moral, organización civil o sindicato) de la persona que recibió los recursos | D30: 0 | E30: Justificado
C31: Criterio 13. Monto total y/o recurso público que se permitió o permitirá usar | D31: 0 | E31: Justificado
C32: Criterio 14. Monto por entregarse y/o recurso público que se permitirá usar | D32: 0 | E32: Justificado
C33: Criterio 15. Periodicidad de entrega de recursos (mensual, trimestral, anual, etcétera, o especificar si fue única) | D33: 0 | E33: Justificado
C34: Criterio 16. Fecha en la que se entregó o entregarán los recursos (por ej. 31/Marzo/2016) | D34: =IF(E34="Justificado",0,1) -> 0 | E34: Justificado
C35: Criterio 17. Hipervínculo a los informes sobre el uso y destino de los recursos que se asignaron o cuyo uso se permitió | D35: =IF(E35="Justificado",0,1) -> 0 | E35: Justificado
C40: Criterios Sustantivos de contenido LTG 2018 - LTG 2020 (DOF 28/12/20) | D40: =COUNTA(F43:F76) -> 1
C42: Criterio | E42: Valoración | F42: Tipo | G42: Observaciones, Recomendaciones y/o Requerimientos
C43: Criterio 1. Ejercicio | D43: =IF(E43="Justificado",0,1) -> 1
C44: Criterio 2. Periodo que se informa (fecha de inicio y fecha de término con el formato día/mes/año) | D44: =IF(E44="Justificado",0,1) -> 1
C45: Criterio 3. Nombre completo (nombre[s], primer apellido y segundo apellido) o razón social de la persona que recibió los recursos del beneficiario (persona física) | D45: 1
C46: Criterio 4. Personería jurídica (catálogo): Persona física / Persona moral | D46: 1
C47: Criterio 5. Clasificación de la persona moral. Por ejemplo: Sociedad civil/ sociedad mercantil/ Asociación civil/ asociación deportiva | D47: 1
C48: Criterio 6. Tipo de acción que realiza la persona física o moral (catálogo): Recibe recursos públicos/Realiza actos de autoridad | D48: 1
C49: Criterio 7. Ámbito de aplicación, función o destino del recurso público (catálogo): Educación/ Salud / Cultura/ Desarrollo social/ Economía/ Protección del medio ambiente/ Obligaciones laborales / Agricultura/Otro (especificar) | D49: 1
C50: Criterio 8. Fundamento jurídico (artículo, fracción, lineamiento, o lo que corresponda) que sustenta la asignación o permiso para usar recursos públicos | D50: 1
C51: Criterio 9. Tipo de recurso público. Por ejemplo: en dinero, especie u otro(especificar) | D51: 1
C52: Criterio 10. Monto total y/o recurso público entregado en el ejercicio fiscal | D52: 1
C53: Criterio 11. Monto por entregarse y/o recurso público que se permitió usar, en su caso | D53: 1
C54: Criterio 12. Periodicidad de entrega de recursos. Por ejemplo: mensual, trimestral, anual, etcétera, o especificar si fue única | D54: 1
C55: Criterio 13. Modalidad de entrega del recurso o, en su caso, del otorgamiento de facultades para realizar. Por ejemplo: Recursos públicos: asignación, aportación, aprovechamiento, financiamiento, mejora etcétera. Respecto de Actos de autoridad: permiso, concesión, nombramiento, entre otros | D55: 1
C56: Criterio 14. Fecha en la que se entregaron o se entregarán los recursos, con el formato día/mes/año | D56: 1
C57: Criterio 15. Hipervínculo a los informes sobre el uso y destino de los recursos que se asignaron o cuyo uso se permitió | D57: 1
C58: Criterio 16. Fecha en la que el sujeto obligado firmó el documento que autoriza la asignación o permite la entrega de recursos al/los particulares, publicada con el formato día/mes/año | D58: 1
C59: Criterio 17. Hipervínculo al convenio, acuerdo, decreto o convocatoria oficial. En su caso, señalar que no se emitió convocatoria alguna | D59: 1
C60: Criterio 18 . Acto(s) de autoridad para los que se facultó a la persona física o moral | D60: 1
C61: Criterio 19 . Periodo para el que fue facultado para realizar el/los acto(s) de autoridad (fecha de inicio y fecha de término día/mes/año) | D61: 1
C62: Criterio 20. El gobierno participó en la creación de la persona física o moral (catálogo): si/no | D62: =IF(E62="Justificado",0,1) -> 1
C63: Criterio 21. La persona física o moral realiza una función gubernamental (catálogo): si/no | D63: =IF(E63="Justificado",0,1) -> 1
C65: Criterios Adjetivos LTG 2018 - LTG 2020 (DOF 28/12/20)
C67: Criterio | E67: Valoración | F67: Tipo | G67: Observaciones, Recomendaciones y/o Requerimientos
C68: Criterio 22. Periodo de actualización de la información: trimestral | D68: =IF(E68="Justificado",0,1) -> 1
C69: Criterio 23. La información deberá estar actualizada al periodo que corresponde de acuerdo con la Tabla de actualización y conservación de la información | D69: 1
C70: Criterio 24. Conservar en el sitio de Internet y a través de la Plataforma Nacional la información vigente de acuerdo con la Tabla de actualización y conservación de la información | D70: 1
C71: Criterio 25. Área(s) responsable(s) que genera(n), posee(n), publica(n) y/o actualiza(n) la información | D71: 1
C72: Criterio 26. Fecha de actualización de la información publicada con el formato día/mes/año | D72: 1
C73: Criterio 27. Fecha de validación de la información publicada con el formato día/mes/año | D73: 1
C74: Criterio 28. Nota. Este criterio se cumple en caso de que sea necesario que el sujeto obligado incluya alguna aclaración relativa a la información publicada y/o explicación por la falta de información | D74: 1
C75: Criterio 29. La información publicada se organiza mediante el formato 26, en el que se incluyen todos los campos especificados en los criterios sustantivos de contenido | D75: 1
C76: Criterio 30. El soporte de la información permite su reutilización | D76: 1
D84: 2017 | E84: 2018
C85: CS | D85: =IF(Aplicabilidad!G37<>"SI","NA",SUM(E19:E35)/SUM(D19:D35)) -> NA | E85: =IF(Aplicabilidad!G37<>"SI","NA",SUM(E43:E63)/SUM(D43:D63)) -> NA
C86: CA | D86: =IF(Aplicabilidad!G37<>"SI","NA",SUM(#REF!)/SUM(#REF!)) -> NA | E86: =IF(Aplicabilidad!G37<>"SI","NA",SUM(E68:E76)/SUM(D68:D76)) -> NA
C87: OBLIGACIÓN | D87: =IF(Aplicabilidad!G37<>"SI","NA",D85*0.6+D86*0.4) -> NA | E87: =IF(Aplicabilidad!G37<>"SI","NA",E85*0.6+E86*0.4) -> NA

Sheet Art 74_XXVII (hidden)
C1: =IF(Aplicabilidad!E2="","",Aplicabilidad!E2) -> Consejería Jurídica
B3: Códigos de valoración : Cumplió totalmente = 1; Cumplió parcialmente = 0.5; No cumplió = 0; Justificado = Justificado
B5: Art. 74 - Fracción XXVII. Concesiones, contratos, convenios, permisos, licencias o autorizaciones otorgados
C7: Fecha de Inicio de la Verificación: | G7: Fecha de Término de la verificación
C8: =IF(Resultados!$C$7="","",Resultados!$C$7) -> 2021-07-07 | D8: 2018-05-25 | G8: =IF(Resultados!G7="","",Resultados!G7) -> 2021-07-08
C10: Criterios Sustantivos | E10: =IF(Aplicabilidad!G38<>"SI","NA",(SUM(E19:E35)+SUM(E43:E62))/(SUM(D19:D35)+SUM(D43:D62))) -> NA
C11: Criterios Adjetivos | E11: =IF(Aplicabilidad!G38<>"SI","NA",(SUM(E67:E75))/(SUM(D67:D75))) -> NA
C12: Obligación | E12: =IF(Aplicabilidad!G38<>"SI","NA",E10*0.6+E11*0.4) -> NA
C16: Criterios Sustantivos de contenido LTG 2018 - LTG 2020 (DOF 28/12/20) | D16: =COUNTA(F19:F36) -> 0
C18: Criterio | E18: Valoración | F18: Tipo | G18: Observaciones, Recomendaciones y/o Requerimientos
C19: Criterio 1. Ejercicio | D19: =IF(E19="Justificado",0,1) -> 0 | E19: Justificado
C20: Criterio 2. Periodo que se informa | D20: =IF(E20="Justificado",0,1) -> 0 | E20: Justificado
C21: Criterio 3. Tipo de acto jurídico: Concesión / Contrato / Convenio / Permiso / Licencia / Autorización | D21: 0 | E21: Justificado
C22: Criterio 4. Objeto (la finalidad con la que se realizó el acto jurídico) | D22: 0 | E22: Justificado
C23: Criterio 5. Fundamento jurídico por el cual se llevó a cabo el acto jurídico | D23: 0 | E23: Justificado
C24: Criterio 6. Unidad(es) responsable(s) de instrumentación | D24: 0 | E24: Justificado
C25: Criterio 7. Sector al cual se otorgó el acto jurídico: Público / Privado | D25: 0 | E25: Justificado
C26: Criterio 8. Nombre completo (nombre[s], primer apellido y segundo apellido) o razón social del titular al cual se otorgó el acto jurídico | D26: 0 | E26: Justificado
C27: Criterio 9. Fecha de inicio de vigencia del acto jurídico expresado en el formato día/mes/año (por ej. 31/marzo/2016) | D27: 0 | E27: Justificado
C28: Criterio 10. Fecha de término de vigencia del acto jurídico expresado en el formato día/mes/año (por ej. 31/marzo/2016) | D28: 0 | E28: Justificado
C29: Criterio 11. Cláusula, punto, artículo o fracción en el que se especifican los términos y condiciones del acto jurídico | D29: 0 | E29: Justificado
C30: Criterio 12. Hipervínculo al contrato, convenio, permiso, licencia o concesión, donde se especifiquen los términos y condiciones, incluidos los anexos, en versión pública cuando así corresponda | D30: 0 | E30: Justificado
C31: Criterio 13. Monto total o beneficio, servicio y/o recurso público aprovechado | D31: 0 | E31: Justificado
C32: Criterio 14. Monto entregado, bien, servicio y/o recurso público aprovechado al periodo que se informa | D32: 0 | E32: Justificado
C33: Criterio 15. Hipervínculo al documento donde se desglose el gasto a precios del año tanto para el ejercicio fiscal correspondiente como para los subsecuentes | D33: 0 | E33: Justificado
C34: Criterio 16. Hipervínculo al informe sobre el monto total erogado, que en su caso corresponda | D34: =IF(E34="Justificado",0,1) -> 0 | E34: Justificado
C35: Criterio 17. Hipervínculo al contrato plurianual modificado, en su caso | D35: =IF(E35="Justificado",0,1) -> 0 | E35: Justificado
C40: Criterios Sustantivos de contenido LTG 2018 - LTG 2020 (DOF 28/12/20) | D40: =COUNTA(F43:F75) -> 1
C42: Criterio | E42: Valoración | F42: Tipo | G42: Observaciones, Recomendaciones y/o Requerimientos
C43: Criterio 1. Ejercicio | D43: =IF(E43="Justificado",0,1) -> 1
C44: Criterio 2. Periodo que se informa (fecha de inicio y fecha de término con el formato día/mes/año) | D44: =IF(E44="Justificado",0,1) -> 1
C45: Criterio 3. Tipo de acto jurídico (catálogo): Concesión/Contrato/Convenio/Permiso/Licencia/Autorización/Asignación | D45: 1
C46: Criterio 4. Número de control interno asignado, en su caso, al contrato, convenio, concesión, permiso, licencia, autorización o asignación | D46: 1
C47: Criterio 5. Objeto (la finalidad con la que se realizó el acto jurídico) | D47: 1
C48: Criterio 6. Fundamento jurídico por el cual se llevó a cabo el acto jurídico | D48: 1
C49: Criterio 7. Unidad(es) o área(s) responsable(s) de instrumentación | D49: 1
C50: Criterio 8. Sector al cual se otorgó el acto jurídico (catálogo): Público/Privado | D50: 1
C51: Criterio 9. Nombre completo (nombre[s], primer apellido y segundo apellido) o razón social del titular al cual se otorgó el acto jurídico | D51: 1
C52: Criterio 10. Fecha de inicio de vigencia del acto jurídico con en el formato día/mes/año | D52: 1
C53: Criterio 11. Fecha de término de vigencia del acto jurídico con en el formato día/mes/año | D53: 1
C54: Criterio 12. Cláusula, punto, artículo o fracción en el que se especifican los términos y condiciones del acto jurídico | D54: 1
C55: Criterio 13. Hipervínculo al contrato, convenio, permiso, licencia o concesión, donde se especifiquen los términos y condiciones, incluidos los anexos, en versión pública cuando así corresponda | D55: 1
C56: Criterio 14. Monto total o beneficio, servicio y/o recurso público aprovechado | D56: 1
C57: Criterio 15. Monto entregado, bien, servicio y/o recurso público aprovechado al periodo que se informa | D57: 1
C58: Criterio 16. Hipervínculo al documento donde se desglose el gasto a precios del año tanto para el ejercicio fiscal correspondiente como para los subsecuentes | D58: 1
C59: Criterio 17. Hipervínculo al informe sobre el monto total erogado, que en su caso corresponda | D59: 1
C60: Criterio 18. Hipervínculo al contrato plurianual modificado, en su caso | D60: 1
C61: Criterio 19. Se realizaron convenios modificatorios (catálogo): Sí/No | D61: =IF(E61="Justificado",0,1) -> 1
C62: Criterio 20. Hipervínculo al convenio modificatorio, si así corresponde | D62: =IF(E62="Justificado",0,1) -> 1
C64: Criterios Adjetivos LTG 2018 - LTG 2020 (DOF 28/12/20)
C66: Criterio | E66: Valoración | F66: Tipo | G66: Observaciones, Recomendaciones y/o Requerimientos
C67: Criterio 21. Periodo de actualización de la información: trimestral | D67: =IF(E67="Justificado",0,1) -> 1
C68: Criterio 22. La información deberá estar actualizada al periodo que corresponde de acuerdo con la Tabla de actualización y conservación de la información | D68: 1
C69: Criterio 23. Conservar en el sitio de Internet: información del ejercicio en curso y la correspondiente a dos ejercicios anteriores | D69: 1
C70: Criterio 24. Área(s) responsable(s) que genera(n), posee(n), publica(n) y/o actualiza(n) la información | D70: 1
C71: Criterio 25. Fecha de actualización de la información publicada con el formato día/mes/año | D71: 1
C72: Criterio 26. Fecha de validación de la información publicada con el formato día/mes/año | D72: 1
C73: Criterio 27. Nota. Este criterio se cumple en caso de que sea necesario que el sujeto obligado incluya alguna aclaración relativa a la información publicada y/o explicación por la falta de información | D73: 1
C74: Criterio 28. La información publicada se organiza mediante el formato 27, en el que se incluyen todos los campos especificados en los criterios sustantivos de contenido | D74: 1
C75: Criterio 29. El soporte de la información permite su reutilización | D75: 1
D83: 2017 | E83: 2018
C84: CS | D84: =IF(Aplicabilidad!G38<>"SI","NA",SUM(E19:E35)/SUM(D19:D35)) -> NA | E84: =IF(Aplicabilidad!G38<>"SI","NA",SUM(E43:E62)/SUM(D43:D62)) -> NA
C85: CA | D85: =IF(Aplicabilidad!G38<>"SI","NA",SUM(#REF!)/SUM(#REF!)) -> NA | E85: =IF(Aplicabilidad!G38<>"SI","NA",SUM(E67:E75)/SUM(D67:D75)) -> NA
C86: OBLIGACIÓN | D86: =IF(Aplicabilidad!G38<>"SI","NA",D84*0.6+D85*0.4) -> NA | E86: =IF(Aplicabilidad!G38<>"SI","NA",E84*0.6+E85*0.4) -> NA

Sheet Art 74_XXVIII (hidden)
C1: =IF(Aplicabilidad!E2="","",Aplicabilidad!E2) -> Consejería Jurídica
B3: Códigos de valoración : Cumplió totalmente = 1; Cumplió parcialmente = 0.5; No cumplió = 0; Justificado = Justificado
B5: Art. 74 - Fracción XXVIII. Procedimientos de adjudicación directa, invitación restringida y licitaciones
C7: Fecha de Inicio de la Verificación: | G7: Fecha de Término de la verificación
C8: =IF(Resultados!$C$7="","",Resultados!$C$7) -> 2021-07-07 | D8: 2018-05-25 | G8: =IF(Resultados!G7="","",Resultados!G7) -> 2021-07-08
C10: Criterios Sustantivos | E10: =IF(Aplicabilidad!G39<>"SI","NA",(SUM(E19:E111)+SUM(E119:E234))/(SUM(D19:D111)+SUM(D119:D234))) -> NA
C11: Criterios Adjetivos | E11: =IF(Aplicabilidad!G39<>"SI","NA",(SUM(E239:E247))/(SUM(D239:D247))) -> NA
C12: Obligación | E12: =IF(Aplicabilidad!G39<>"SI","NA",E10*0.6+E11*0.4) -> NA
C16: Criterios Sustantivos de contenido LTG 2018 - LTG 2020 (DOF 28/12/20) | D16: =COUNTA(F19:F112) -> 0
C18: Criterio | E18: Valoración | F18: Tipo | G18: Observaciones, Recomendaciones y/o Requerimientos
C19: Criterio 1. Tipo de procedimiento: Licitación pública / Invitación a cuando menos tres personas / Adjudicación directa / Otra (especificar) | D19: =IF(E19="Justificado",0,1) -> 0 | E19: Justificado
C20: Criterio 2. Materia: Obra pública / Servicios relacionados con obra pública / Adquisiciones / Arrendamientos / Servicios | D20: =IF(E20="Justificado",0,1) -> 0 | E20: Justificado
C21: Criterio 3. Ejercicio | D21: 0 | E21: Justificado
C22: Criterio 4. Periodo que se reporta | D22: 0 | E22: Justificado
C23: Criterio 5. Número de expediente, folio o nomenclatura que identifique a cada procedimiento | D23: 0 | E23: Justificado
C24: Criterio 6. Hipervínculo a la convocatoria o invitaciones emitidas | D24: 0 | E24: Justificado
C25: Criterio 7. Fecha de la convocatoria o invitación, expresada con el formato día/mes/año (por ej. 31/Marzo/2016) | D25: 0 | E25: Justificado
C26: Criterio 8. Descripción de las obras públicas, los bienes o los servicios contratados | D26: 0 | E26: Justificado
C27: Criterio 9. Relación con los nombres de las personas físicas o morales que presentaron una proposición u oferta (en el caso de personas físicas: nombre[s], primer apellido, segundo apellido, en el caso de persona moral, razón social) | D27: 0 | E27: Justificado
C28: Criterio 10. Fecha en la que se celebró la junta de aclaraciones, expresada con el formato día/mes/año (por ej. 31/Marzo/2016) | D28: 0 | E28: Justificado
C29: Criterio 11. Relación con los nombres de los asistentes a la junta de aclaraciones (nombre[s], apellido paterno, apellido materno). En el caso de personas morales especificar su denominación o razón social | D29: 0 | E29: Justificado
C30: Criterio 12. Relación con los nombres de los servidores públicos asistentes a la junta de aclaraciones (nombre[s], apellido paterno, apellido materno) | D30: 0 | E30: Justificado
C31: Criterio 13. Incluir el cargo que ocupan en el sujeto obligado los servidores públicos asistentes a la junta de aclaraciones | D31: 0 | E31: Justificado
C32: Criterio 14. Hipervínculo al fallo de la de aclaraciones o al documento correspondiente | D32: 0 | E32: Justificado
C33: Criterio 15. Hipervínculo, en su caso, al (los) dictamen(es) | D33: 0 | E33: Justificado
C34: Criterio 16. Nombre completo o razón social del contratista o proveedor (en el caso de personas físicas: nombre[s], primer, apellido, segundo apellido) | D34: 0 | E34: Justificado
C35: Criterio 17. Descripción breve de las razones que justifican su elección | D35: 0 | E35: Justificado
C36: Criterio 18. Unidad administrativa solicitante de las obras públicas, el arrendamiento, la adquisición de bienes y/o la prestación de servicios | D36: 0 | E36: Justificado
C37: Criterio 19. Unidad administrativa contratante | D37: 0 | E37: Justificado
C38: Criterio 20. Unidad administrativa responsable de la ejecución | D38: 0 | E38: Justificado
C39: Criterio 21. Número que identifique al contrato | D39: 0 | E39: Justificado
C40: Criterio 22. Fecha del contrato, expresada con el formato día/mes/año (por ej. 31/Marzo/2016) | D40: 0 | E40: Justificado
C41: Criterio 23. Monto del contrato sin impuestos incluidos (expresados en pesos mexicanos) | D41: 0 | E41: Justificado
C42: Criterio 24. Monto total del contrato con impuestos incluidos (expresados en pesos mexicanos) | D42: 0 | E42: Justificado
C43: Criterio 25. Monto mínimo, y máximo, en su caso | D43: 0 | E43: Justificado
C44: Criterio 26. Tipo de moneda | D44: 0 | E44: Justificado
C45: Criterio 27. Tipo de cambio de referencia, en su caso | D45: 0 | E45: Justificado
C46: Criterio 28. Forma de pago (efectivo, cheque o transacción bancaria) | D46: 0 | E46: Justificado
C47: Criterio 29. Objeto del contrato | D47: 0 | E47: Justificado
C48: Criterio 30. Fecha de inicio expresada con el formato día/mes/año (por ej. 31/Marzo/2016) | D48: 0 | E48: Justificado
C49: Criterio 31. Fecha de término expresada con el formato día/mes/año (por ej. 31/Marzo/2016) | D49: 0 | E49: Justificado
C50: Criterio 32. Hipervínculo al documento del contrato y sus anexos, en versión pública si así corresponde | D50: 0 | E50: Justificado
C51: Criterio 33. Hipervínculo, en su caso al comunicado de suspensión, rescisión o terminación anticipada del contrato | D51: 0 | E51: Justificado
C52: Criterio 34. Partida presupuestal (catálogo) de acuerdo con el Clasificador por Objeto del Gasto en el caso de ser aplicable | D52: 0 | E52: Justificado
C53: Criterio 35. Origen de los recursos públicos: Federales / Estatales / Municipales | D53: 0 | E53: Justificado
C54: Criterio 36. Fuente de financiamiento: Recursos Fiscales / Financiamientos internos / Financiamientos externos / Ingresos propios / Recursos Federales / Recursos Estatales/ Otros recursos (especificar) | D54: 0 | E54: Justificado
C55: Criterio 37. Tipo de fondo de participación o aportación respectiva | D55: 0 | E55: Justificado
C56: Criterio 38. Lugar donde se realizará la obra pública y/o servicio relacionado con la misma | D56: 0 | E56: Justificado
C57: Criterio 39. Breve descripción de la obra pública | D57: 0 | E57: Justificado
C58: Criterio 40. Hipervínculo a los estudios de impacto urbano y ambiental. En su caso, señalar que no se realizaron | D58: 0 | E58: Justificado
C59: Criterio 41. Incluir, en su caso, observaciones dirigidas a la población relativas a la realización de las obras públicas, tales como: cierre de calles, cambio de circulación, impedimentos de paso, etcétera | D59: 0 | E59: Justificado
C60: Criterio 42. Etapa de la obra pública y/o servicio de la misma: en planeación, en ejecución; o en finiquito. | D60: 0 | E60: Justificado
C61: Criterio 43. Se realizaron convenios modificatorios: Sí/ No | D61: 0 | E61: Justificado
C62: Criterio 44. Número de convenio modificatorio que recaiga a la contratación; en su caso, señalar que no se realizó | D62: 0 | E62: Justificado
C63: Criterio 45. Objeto del convenio modificatorio | D63: 0 | E63: Justificado
C64: Criterio 46. Fecha de firma del convenio modificatorio, expresada con el formato día/mes/año (por ej. 31/Marzo/2016) | D64: 0 | E64: Justificado
C65: Criterio 47. Hipervínculo al documento del convenio, en versión pública si así corresponde | D65: 0 | E65: Justificado
C66: Criterio 48. Mecanismos de vigilancia y supervisión de la ejecución, especificados en los contratos y/o convenios | D66: 0 | E66: Justificado
C67: Criterio 49. Hipervínculo, en su caso, al (los) informe(s) de avance físicos en versión pública si así corresponde | D67: 0 | E67: Justificado
C68: Criterio 50. Hipervínculo, en su caso, al (los) informe(s) de avance financieros, en versión pública si así corresponde | D68: 0 | E68: Justificado
C69: Criterio 51. Hipervínculo al acta de recepción física de los trabajos ejecutados u homóloga | D69: 0 | E69: Justificado
C70: Criterio 52. Hipervínculo al finiquito | D70: 0 | E70: Justificado
C71: Criterio 53. Ejercicio | D71: 0 | E71: Justificado
C72: Criterio 54. Periodo que se reporta | D72: 0 | E72: Justificado
C73: Criterio 55. Número de expediente, folio o nomenclatura que lo identifique | D73: 0 | E73: Justificado
C74: Criterio 56. Los motivos y fundamentos legales aplicados para realizar la adjudicación directa | D74: 0 | E74: Justificado
C75: Criterio 57. Hipervínculo a la autorización del ejercicio de la opción | D75: 0 | E75: Justificado
C76: Criterio 58. Descripción de las obras, los bienes o servicios contratados y/o adquiridos | D76: 0 | E76: Justificado
C77: Criterio 59. Nombre completo o razón social de los posibles contratantes (personas físicas: nombre[s], primer apellido, segundo apellido). En su caso, incluir una leyenda señalando que no se realizaron cotizaciones | D77: 0 | E77: Justificado
C78: Criterio 60. Monto total de la cotización con impuestos incluidos | D78: 0 | E78: Justificado
C79: Criterio 61. Nombre o razón social del adjudicado (en el caso de personas físicas: nombre[s], primer apellido, segundo apellido) | D79: 0 | E79: Justificado
C80: Criterio 62. Unidad administrativa solicitante | D80: 0 | E80: Justificado
C81: Criterio 63. Unidad administrativa responsable de la ejecución del contrato | D81: 0 | E81: Justificado
C82: Criterio 64. Número que identifique al contrato | D82: 0 | E82: Justificado
C83: Criterio 65. Fecha del contrato, expresada con el formato día/mes/año (por ej. 31/Marzo/2016) | D83: 0 | E83: Justificado
C84: Criterio 66. Monto del contrato sin impuestos incluidos (expresados en pesos mexicanos) | D84: =IF(E84="Justificado",0,1) -> 0 | E84: Justificado
C85: Criterio 67. Monto total del contrato con impuestos incluidos (expresado en pesos mexicanos) | D85: 0 | E85: Justificado
C86: Criterio 68. Monto mínimo, y máximo, en su caso | D86: 0 | E86: Justificado
C87: Criterio 69. Tipo de moneda | D87: 0 | E87: Justificado
C88: Criterio 70. Tipo de cambio de referencia, en su caso | D88: 0 | E88: Justificado
C89: Criterio 71. Forma de pago (efectivo, cheque o transacción bancaria) | D89: 0 | E89: Justificado
C90: Criterio 72. Objeto del contrato | D90: 0 | E90: Justificado
C91: Criterio 73. Monto total de las garantías y/o contragarantías que, en su caso, se hubieren otorgado durante el procedimiento respectivo | D91: 0 | E91: Justificado
C92: Criterio 74. Fecha de inicio expresada con el formato día/mes/año (por ej. 31/Marzo/2016) | D92: 0 | E92: Justificado
C93: Criterio 75. Fecha de término expresada con el formato día/mes/año (por ej. 31/Marzo/2016) | D93: 0 | E93: Justificado
C94: Criterio 76. Hipervínculo al documento del contrato y sus anexos, en versión pública si así corresponde | D94: 0 | E94: Justificado
C95: Criterio 77. Hipervínculo, en su caso al comunicado de suspensión, rescisión o terminación anticipada del contrato | D95: 0 | E95: Justificado
C96: Criterio 78. Origen de los recursos públicos: Federales / Estatales Delegacionales / Municipales | D96: 0 | E96: Justificado
C97: Criterio 79. Fuentes de financiamiento: Recursos Fiscales / Financiamientos internos / Financiamientos externos / Ingresos propios / Recursos Federales / Recursos Estatales[6]/ Otros recursos (especificar) / Otros recursos (especificar) | D97: 0 | E97: Justificado
C98: Criterio 80. Lugar donde se realizará la obra pública y/o servicio relacionado con la misma | D98: 0 | E98: Justificado
C99: Criterio 81. Hipervínculo a los estudios de impacto urbano y ambiental. En su caso, señalar que no se realizaron | D99: 0 | E99: Justificado
C100: Criterio 82. Incluir, en su caso, observaciones dirigidas a la población relativas a la realización de las obras públicas, tales como: cierre de calles, cambio de circulación, impedimentos de paso, etcétera | D100: 0 | E100: Justificado
C101: Criterio 83. Etapa de la obra pública y/o servicio de la misma: en planeación, en ejecución; o en finiquito | D101: 0 | E101: Justificado
C102: Criterio 84. Se realizaron convenios modificatorios: Sí / No | D102: 0 | E102: Justificado
C103: Criterio 85. Número que le corresponde al(los) convenio(s) modificatorio(s) que recaiga(n) a la contratación | D103: 0 | E103: Justificado
C104: Criterio 86. Objeto del convenio | D104: 0 | E104: Justificado
C105: Criterio 87. Fecha de firma del convenio, expresada con el formato día/mes/año (por ej. 31/Marzo/2016) | D105: 0 | E105: Justificado
C106: Criterio 88. Hipervínculo al documento del convenio, en versión pública si así corresponde | D106: 0 | E106: Justificado
C107: Criterio 89. Mecanismos de vigilancia y supervisión | D107: 0 | E107: Justificado
C108: Criterio 90. Hipervínculo en su caso, al (los) Informe(s) de avance físicos en versión pública si así corresponde | D108: 0 | E108: Justificado
C109: Criterio 91. Hipervínculo, en su caso, al (los) Informe(s) de avance financieros, en versión pública si así corresponde | D109: 0 | E109: Justificado
C110: Criterio 92. Hipervínculo al acta de recepción física de los trabajos ejecutados u homóloga | D110: =IF(E110="Justificado",0,1) -> 0 | E110: Justificado
C111: Criterio 93. Hipervínculo al finiquito | D111: =IF(E111="Justificado",0,1) -> 0 | E111: Justificado
C116: Criterios Sustantivos de contenido LTG 2018 - LTG 2020 (DOF 28/12/20) | D116: =COUNTA(F119:F247) -> 1
C118: Criterio | E118: Valoración | F118: Tipo | G118: Observaciones, Recomendaciones y/o Requerimientos
C119: Criterio 1. Ejercicio | D119: =IF(E119="Justificado",0,1) -> 1
C120: Criterio 2. Periodo que se informa (fecha de inicio y fecha de término con el formato día/mes/año) | D120: =IF(E120="Justificado",0,1) -> 1
C121: Criterio 3. Tipo de procedimiento (catálogo): Licitación pública/Invitación a cuando menos tres personas/ Otra (especificar). En caso de que no se haya llevado a cabo alguno de los tres procedimientos en el periodo que se informa, se deberá incluir un registro con el periodo respectivo, el procedimiento y señalar mediante una nota fundamentada, motivada y actualizada al periodo correspondiente, que no se llevó a cabo ningún procedimiento de ese tipo. | D121: 1
C122: Criterio 4. Materia o tipo de contratación (catálogo): Obra pública/Servicios relacionados con obra pública/Adquisiciones/Arrendamientos/Servicios - Criterio Modificado DOF 28/12/2020 | D122: 1
C123: Criterio 5. Carácter del procedimiento (catálogo): Nacional/Internacional - Criterio adicionado DOF 28/12/2020 | D123: 1
C124: Criterio 6. En el caso de personas físicas: nombre[s], primer apellido, segundo apellido. En el caso de persona moral: razón social. En su caso, incluir una leyenda señalando que no se realizaron cotizaciones - Criterio Modificado DOF 28/12/2020 | D124: 1
C125: Criterio 7. Registro Federal de Contribuyentes (RFC) de las personas físicas o morales de los posibles contratantes | D125: 1
C126: Criterio 8 Número de expediente, folio o nomenclatura que identifique a cada procedimiento | D126: 1
C127: Criterio 9. Hipervínculo a la convocatoria o invitaciones emitidas | D127: 1
C128: Criterio 10. Fecha de la convocatoria o invitación, expresada con el formato día/mes/año | D128: 1
C129: Criterio 11 Descripción de las obras públicas, los bienes o los servicios contratados | D129: 1
C130: Criterio 12 En el caso de personas físicas: nombre[s], primer apellido, segundo apellido. En el caso de persona moral: razón social Criterio Modificado DOF 28/12/2020 | D130: 1
C131: Criterio 13. Registro Federal de Contribuyentes (RFC) de las personas físicas o morales que presentaron una proposición u oferta | D131: 1
C132: Criterio 14. Fecha en la que se celebró la junta de aclaraciones, expresada con el formato día/mes/año | D132: 1
C133: Criterio 15. Relación con los nombres de los asistentes a la junta de aclaraciones: Criterio 15 Nombre[s], primer apellido, segundo apellido. En el caso de personas morales especificar su denominación o razón social - Criterio Modificado DOF 28/12/2020 | D133: 1
C134: Criterio 16. Registro Federal de Contribuyentes (RFC) de las personas físicas o morales asistentes a la junta de aclaraciones | D134: 1
C135: Criterio 17. Relación con los nombres de los servidores públicos asistentes a la junta de aclaraciones: Nombre[s], primer apellido, segundo apellido) - Criterio Modificado DOF 28/12/2020 | D135: 1
C136: Criterio 18. Registro Federal de Contribuyentes (RFC) de los servidores públicos asistentes a la junta de aclaraciones | D136: 1
C137: Criterio 19. Cargo que ocupan en el sujeto obligado los servidores públicos asistentes a la junta de aclaraciones | D137: 1
C138: Criterio 20. Hipervínculo al fallo de la junta de aclaraciones o al documento correspondiente | D138: 1
C139: Criterio 21. Hipervínculo al documento donde conste la presentación las propuestas | D139: 1
C140: Criterio 22. Hipervínculo, en su caso, al (los) dictamen(es) | D140: 1
C141: Criterio 23. Nombre completo o razón social del contratista o proveedor (en el caso de personas físicas: nombre[s], primer apellido, segundo apellido) | D141: 1
C142: Criterio 24. RFC de la persona física o moral contratista o proveedor | D142: 1
C143: Criterio 25 Domicilio fiscal de la empresa, contratista o proveedor (tipo de vialidad [catálogo], nombre de vialidad [calle], número exterior, número interior [en su caso], Tipo de asentamiento humano [catálogo], nombre de asentamiento humano [colonia], clave de la localidad, nombre de la localidad, clave del municipio, nombre del municipio o delegación, clave de la entidad federativa, nombre de la entidad federativa [catálogo], código postal), es decir, el proporcionado ante el SAT - Criterio Adicionado DOF 28/12/2020 | D143: 1
C144: Criterio 26 Domicilio en el extranjero. En caso de que la empresa, proveedor o contratista sea de otro país, se deberá especificar, por lo menos: país, ciudad, calle y número - Criterio Adicionado DOF 28/12/2020 | D144: 1
C145: Criterio 27. Descripción breve de las razones que justifican la elección del/los proveedor/es o contratista/s | D145: 1
C146: Criterio 28. Área(s) solicitante(s) de las obras públicas, el arrendamiento, la adquisición de bienes y/o la prestación de servicios | D146: 1
C147: Criterio 29. Área(s) contratante(s) | D147: 1
C148: Criterio 30. Área(s) responsable de la ejecución | D148: 1
C149: Criterio 31 Número que identifique al contrato | D149: 1
C150: Criterio 32. Fecha del contrato, expresada con el formato día/mes/año | D150: 1
C151: Criterio 33. Fecha de inicio de la vigencia del contrato, expresada con el formato día/mes/año - Criterio Adicionado DOF 28/12/2020 | D151: 1
C152: Criterio 34 Fecha de término de la vigencia del contrato, expresada con el formato día/mes/año - Criterio Adicionado DOF 28/12/2020 | D152: 1
C153: Criterio 35. Monto del contrato sin impuestos incluidos (expresados en pesos mexicanos) | D153: 1
C154: Criterio 36. Monto total del contrato con impuestos incluidos (expresados en pesos mexicanos) | D154: 1
C155: Criterio 37. Monto mínimo con impuestos incluidos, en su caso | D155: 1
C156: Criterio 38. Monto máximo con impuestos incluidos, en su caso | D156: 1
C157: Criterio 39. Tipo de moneda. Por ejemplo: Peso, Dólar, Euro, Libra, Yen | D157: 1
C158: Criterio 40. Tipo de cambio de referencia, en su caso | D158: 1
C159: Criterio 41. Forma de pago. Por ejemplo: efectivo, cheque o transacción bancaria | D159: 1
C160: Criterio 42. Objeto del contrato | D160: 1
C161: Criterio 43. Fecha de inicio expresada con el formato día/mes/año | D161: 1
C162: Criterio 44. Fecha de término expresada con el formato día/mes/año | D162: 1
C163: Criterio 45. Hipervínculo al documento del contrato y sus anexos, en versión pública si así corresponde | D163: 1
C164: Criterio 46. Hipervínculo, en su caso al comunicado de suspensión, rescisión o terminación anticipada del contrato | D164: 1
C165: Criterio 47. Partida presupuestal. Catálogo de acuerdo con el Clasificador por Objeto del Gasto en el caso de ser aplicable | D165: 1
C166: Criterio 48. Origen de los recursos públicos (catálogo): Federales / Estatales / Municipales | D166: 1
C167: Criterio 49 Fuente de financiamiento. Por ejemplo: Recursos fiscales, financiamientos internos, financiamientos externos, ingresos propios, recursos federales, recursos estatales, | D167: 1
C168: Criterio 50. Tipo de fondo de participación o aportación respectiva (en caso de que se haya elegido en el criterio 49 la opción "recursos federales", "recursos estatales" u "otros recursos") - Criterio Modificado DOF 28/12/2020 | D168: 1
C169: Criterio 51. Lugar donde se realizará la obra pública y/o servicio relacionado con la misma | D169: 1
C170: Criterio 52. Breve descripción de la obra pública | D170: 1
C171: Criterio 53 Hipervínculo a los estudios de impacto urbano y ambiental. En su caso, señalar que no se realizaron | D171: 1
C172: Criterio 54 Incluir, en su caso, observaciones dirigidas a la población relativas a la realización de las obras públicas, tales como: cierre de calles, cambio de circulación, impedimentos de paso, etcétera | D172: 1
C173: Criterio 55. Etapa de la obra pública y/o servicio de la misma (catálogo): En planeación/ En progreso/ Finiquito | D173: 1
C174: Criterio 56. Se realizaron convenios modificatorios (catálogo): Sí/ No | D174: 1
C175: Criterio 57. Número de convenio modificatorio que recaiga a la contratación; en su caso, señalar que no se realizó | D175: 1
C176: Criterio 58. Objeto del convenio modificatorio | D176: 1
C177: Criterio 59. Fecha de firma del convenio modificatorio, expresada con el formato día/mes/año | D177: 1
C178: Criterio 60. Hipervínculo al documento del convenio, en versión pública si así corresponde | D178: 1
C179: Criterio 61. Mecanismos de vigilancia y supervisión de la ejecución, especificados en los contratos y/o convenios, en su caso | D179: 1
C180: Criterio 62. Hipervínculo, en su caso, al (los) informe(s) de avance físicos en versión pública si así corresponde | D180: 1
C181: Criterio 63. Hipervínculo, en su caso, al (los) informe(s) de avance financieros, en versión pública si así corresponde | D181: 1
C182: Criterio 64. Hipervínculo al acta de recepción física de los trabajos ejecutados u homóloga, en su caso | D182: 1
C183: Criterio 65. Hipervínculo al finiquito, contrato sin efectos concluido con anticipación o informe de resultados, en su caso - Criterio Modificado 28/12/2020 | D183: 1
C184: Criterio 66. Ejercicio | D184: =IF(E184="Justificado",0,1) -> 1
C185: Criterio 67. Periodo que se informa (fecha de inicio y fecha de término con el formato día/mes/año) | D185: 1
C186: Criterio 68. Tipo de procedimiento (catálogo): Adjudicación directa/ Otra (especificar) | D186: 1
C187: Criterio 69. Materia (catálogo): Obra pública/Servicios relacionados con obra pública/Adquisiciones/Arrendamientos/Servicios | D187: 1
C188: Criterio 70. Carácter del procedimiento (catálogo): Nacional/Internacional Criterio Adicionado 28/12/2020 | D188: 1
C189: Criterio 71. Número de expediente, folio o nomenclatura que lo identifique | D189: 1
C190: Criterio 72. Los motivos y fundamentos legales aplicados para realizar la adjudicación directa | D190: 1
C191: Criterio 73. Hipervínculo a la autorización o documento que dé cuenta de la suficiencia de recursos para efectuar el procedimiento - Criterio Modificado DOF 28/12/2020 | D191: 1
C192: Criterio 74. Descripción de las obras, los bienes, servicios, requisiciones u orden de servicio contratados y/o adquiridos | D192: 1
C193: Criterio 75. Nombre completo o razón social de los posibles contratantes (personas físicas: nombre[s], primer apellido, segundo apellido). En su caso, incluir una nota señalando que no se realizaron cotizaciones | D193: 1
C194: Criterio 76. Registro Federal de Contribuyentes (RFC) de las personas físicas o morales posibles contratantes | D194: 1
C195: Criterio 77. Monto total de la cotización con impuestos incluidos | D195: 1
C196: Criterio 78. Nombre o razón social del adjudicado (en el caso de personas físicas: nombre[s], primer apellido, segundo apellido) | D196: 1
C197: Criterio 79. Registro Federal de Contribuyentes (RFC) de la persona física o moral adjudicada | D197: 1
C198: Criterio 80. Domicilio fiscal de la empresa, contratista o proveedor (tipo de vialidad [catálogo], nombre de vialidad [calle], número exterior, número interior [en su caso], Tipo de asentamiento humano [catálogo], nombre de asentamiento humano [colonia], clave de la localidad, nombre de la localidad, clave del municipio, nombre del municipio o delegación, clave de la entidad federativa, nombre de la entidad federativa [catálogo], código postal), es decir, el proporcionado ante el SAT - Criterio Adicionado DOF 28/12/2020 | D198: 1
C199: Criterio 81. Domicilio en el extranjero. En caso de que la empresa, proveedor o contratista sea de otro país, se deberá incluir el domicilio el cual deberá incluir por lo menos: país, ciudad, calle y número - Criterio Adicionado DOF 28/12/2020 | D199: 1
C200: Criterio 82. Área(s) solicitante(s) | D200: 1
C201: Criterio 83. Área(s) responsable(s) de la ejecución del contrato | D201: 1
C202: Criterio 84. Número que identifique al contrato | D202: 1
C203: Criterio 85. Fecha del contrato, expresada con el formato día/mes/año | D203: 1
C204: Criterio 86. Fecha de inicio de la vigencia del contrato, expresada con el formato día/mes/año - Criterio Adicionado DOF 28/12/2020 | D204: 1
C205: Criterio 87. Fecha de término de la vigencia del contrato, expresada con el formato día/mes/año. Criterio Adicionado DOF 28/12/2020 | D205: 1
C206: Criterio 88 Monto del contrato sin impuestos incluidos (expresados en pesos mexicanos) | D206: 1
C207: Criterio 89. Monto total del contrato con impuestos incluidos (expresado en pesos mexicanos) | D207: 1
C208: Criterio 90. Monto mínimo, con impuestos incluidos, en su caso | D208: 1
C209: Criterio 91. Monto máximo, con impuestos incluidos, en su caso | D209: 1
C210: Criterio 92. Tipo de moneda, por ejemplo: Peso, Dólar, Euro, Libra, Yen | D210: 1
C211: Criterio 93. Tipo de cambio de referencia, en su caso | D211: 1
C212: Criterio 94. Forma de pago (por ejemplo: efectivo, cheque o transacción bancaria) | D212: 1
C213: Criterio 95. Objeto del contrato | D213: 1
... 36 more rows

Sheet Art 74_XXIX
C1: =IF(Aplicabilidad!E2="","",Aplicabilidad!E2) -> Consejería Jurídica
B3: Códigos de valoración : Cumplió totalmente = 1; Cumplió parcialmente = 0.5; No cumplió = 0; Justificado = Justificado
B5: Art. 74 - Fracción XXIX. Informes
C7: Fecha de Inicio de la Verificación: | G7: Fecha de Término de la verificación
C8: =IF(Resultados!$C$7="","",Resultados!$C$7) -> 2021-07-07 | D8: 2018-05-25 | G8: =IF(Resultados!G7="","",Resultados!G7) -> 2021-07-08
C10: Criterios Sustantivos | E10: =IF(Aplicabilidad!G40<>"SI","NA",(SUM(E19:E26)+SUM(E34:E41))/(SUM(D19:D26)+SUM(D34:D41))) -> 88%
C11: Criterios Adjetivos | E11: =IF(Aplicabilidad!G40<>"SI","NA",(SUM(E46:E54))/(SUM(D46:D54))) -> 100%
C12: Obligación | E12: =IF(Aplicabilidad!G40<>"SI","NA",E10*0.6+E11*0.4) -> 92.50%
C16: Criterios Sustantivos de contenido LTG 2018 - LTG 2020 (DOF 28/12/20) | D16: =COUNTA(F19:F27) -> 0
C18: Criterio | E18: Valoración | F18: Tipo | G18: Observaciones, Recomendaciones y/o Requerimientos
C19: Criterio 1. Ejercicio | D19: =IF(E19="Justificado",0,1) -> 0 | E19: Justificado
C20: Criterio 2. Periodo que se informa | D20: =IF(E20="Justificado",0,1) -> 0 | E20: Justificado
C21: Criterio 3. Denominación de cada uno de los informes, que por ley debe emitir el sujeto obligado. | D21: 0 | E21: Justificado
C22: Criterio 4. Denominación del área responsable de la elaboración y/o presentación del informe | D22: 0 | E22: Justificado
C23: Criterio 5. Fundamento legal para la elaboración y/o presentación del informe (normatividad, artículo, fracción) | D23: 0 | E23: Justificado
C24: Criterio 6. Periodicidad para elaborar y/o presentar el informe (mensual, bimestral, trimestral, tetramestral, semestral, anual, sexenal) | D24: 0 | E24: Justificado
C25: Criterio 7. Fecha en la que se presentó y/o entregó con el formato día/mes/año (ej. 31/Marzo/2016) | D25: =IF(E25="Justificado",0,1) -> 0 | E25: Justificado
C26: Criterio 8. Hipervínculo al documento del informe que corresponda | D26: =IF(E26="Justificado",0,1) -> 0 | E26: Justificado
C31: Criterios Sustantivos de contenido LTG 2018 - LTG 2020 (DOF 28/12/20) | D31: =COUNTA(F34:F54) -> 3
C33: Criterio | E33: Valoración | F33: Tipo | G33: Observaciones, Recomendaciones y/o Requerimientos
C34: Criterio 1. Ejercicio | D34: =IF(E34="Justificado",0,1) -> 1 | E34: 1
C35: Criterio 2. Periodo que se informa (fecha de inicio y fecha de término con el formato día/mes/año) | D35: =IF(E35="Justificado",0,1) -> 1 | E35: 1
C36: Criterio 3. Denominación de cada informe, que por ley debe generar el sujeto obligado. | D36: 1 | E36: 1
C37: Criterio 4. Denominación del área responsable de la elaboración y/o presentación del informe | D37: 1 | E37: 1
C38: Criterio 5. Fundamento legal para la elaboración y/o presentación del informe (normatividad, artículo, fracción) | D38: 1 | E38: 1
C39: Criterio 6. Periodicidad para elaborar y/o presentar el informe. Por ejemplo: mensual, bimestral, trimestral, tetramestral, semestral, anual, sexenal | D39: 1 | E39: 1
C40: Criterio 7. Fecha en la que se presentó y/o entregó con el formato día/mes/año | D40: =IF(E40="Justificado",0,1) -> 1 | E40: 0.5 | F40: Requerimiento | G40: Existen registros en el ejercicio 2021 donde no hay información publicada ni nota informativa que justifique la falta de información.
C41: Criterio 8. Hipervínculo al documento del informe que corresponda | D41: =IF(E41="Justificado",0,1) -> 1 | E41: 0.5 | F41: Requerimiento | G41: Existen registros en el ejercicio 2021 donde no hay información publicada ni nota informativa que justifique la falta de información.
C43: Criterios Adjetivos LTG 2018 - LTG 2020 (DOF 28/12/20)
C45: Criterio | E45: Valoración | F45: Tipo | G45: Observaciones, Recomendaciones y/o Requerimientos
C46: Criterio 9. Periodo de actualización de la información: trimestral | D46: =IF(E46="Justificado",0,1) -> 1 | E46: 1
C47: Criterio 10. La información publicada deberá estar actualizada al periodo que corresponde de acuerdo con la Tabla de actualización y conservación de la información | D47: 1 | E47: 1
C48: Criterio 11. Conservar en el sitio de Internet: información del ejercicio en curso y la correspondiente a dos ejercicios anteriores | D48: 1 | E48: 1
C49: Criterio 12. Área(s) responsable(s) que genera(n), posee(n), publica(n) y/o actualiza(n) la información | D49: 1 | E49: 1
C50: Criterio 13. Fecha de actualización de la información publicada con el formato día/mes/año | D50: 1 | E50: 1
C51: Criterio 14. Fecha de validación de la información publicada con el formato día/mes/año | D51: 1 | E51: 1
C52: Criterio 15. Nota. Este criterio se cumple en caso de que sea necesario que el sujeto obligado incluya alguna aclaración relativa a la información publicada y/o explicación por la falta de información | D52: 1 | E52: 1
C53: Criterio 16. La información publicada se organiza mediante el formato 29, en el que se incluyen todos los campos especificados en los criterios sustantivos de contenido | D53: 1 | E53: 1
C54: Criterio 17. El soporte de la información permite su reutilización | D54: 1 | E54: 1
D62: 2017 | E62: 2018
C63: CS | D63: =IF(Aplicabilidad!G40<>"SI","NA",SUM(E19:E26)/SUM(D19:D26)) ->  | E63: =IF(Aplicabilidad!G40<>"SI","NA",SUM(E34:E41)/SUM(D34:D41)) -> 87.50%
C64: CA | D64: =IF(Aplicabilidad!G40<>"SI","NA",SUM(#REF!)/SUM(#REF!)) ->  | E64: =IF(Aplicabilidad!G40<>"SI","NA",SUM(E46:E54)/SUM(D46:D54)) -> 100.00%
C65: OBLIGACIÓN | D65: =IF(Aplicabilidad!G40<>"SI","NA",D63*0.6+D64*0.4) ->  | E65: =IF(Aplicabilidad!G40<>"SI","NA",E63*0.6+E64*0.4) -> 92.50%

Sheet Art 74_XXX (hidden)
C1: =IF(Aplicabilidad!E2="","",Aplicabilidad!E2) -> Consejería Jurídica
B3: Códigos de valoración : Cumplió totalmente = 1; Cumplió parcialmente = 0.5; No cumplió = 0; Justificado = Justificado
B5: Art. 74 - Fracción XXX. Estadísticas generadas
C7: Fecha de Inicio de la Verificación: | G7: Fecha de Término de la verificación
C8: =IF(Resultados!$C$7="","",Resultados!$C$7) -> 2021-07-07 | D8: 2018-05-25 | G8: =IF(Resultados!G7="","",Resultados!G7) -> 2021-07-08
C10: Criterios Sustantivos | E10: =IF(Aplicabilidad!G41<>"SI","NA",(SUM(E19:E28)+SUM(E36:E45))/(SUM(D19:D28)+SUM(D36:D45))) -> NA
C11: Criterios Adjetivos | E11: =IF(Aplicabilidad!G41<>"SI","NA",(SUM(E50:E58))/(SUM(D50:D58))) -> NA
C12: Obligación | E12: =IF(Aplicabilidad!G41<>"SI","NA",E10*0.6+E11*0.4) -> NA
C16: Criterios Sustantivos de contenido 2015 -2017 | D16: =COUNTA(F19:F29) -> 0
C18: Criterio | E18: Valoración | F18: Tipo | G18: Observaciones, Recomendaciones y/o Requerimientos
C19: Criterio 1. Ejercicio | D19: =IF(E19="Justificado",0,1) -> 1
C20: Criterio 2. Listado con las denominaciones temáticas de las estadísticas que genera el sujeto obligado | D20: =IF(E20="Justificado",0,1) -> 1
C21: Criterio 3. Periodo de actualización de datos: Quincenal / Mensual / Bimestral / Trimestral / Anual Sexenal / Otro (especificar) | D21: 1
C22: Criterio 4. Periodo que se informa | D22: 1
C23: Criterio 5. Denominación del proyecto | D23: 1
C24: Criterio 6. Descripción de variables | D24: 1
C25: Criterio 7. Documentos técnicos, metodológicos y normativos relacionados con la generación de estadísticas y el manejo de las bases de datos | D25: 1
C26: Criterio 8. Tipos de archivo de las bases de datos: HTML / XLS / IQY / CSV / XML / SAV / Otro (especificar) | D26: 1
C27: Criterio 9. Hipervínculo a las bases de datos respectivas | D27: =IF(E27="Justificado",0,1) -> 1
C28: Criterio 10. Hipervínculo a las series o bancos de datos existentes | D28: =IF(E28="Justificado",0,1) -> 1
C33: Criterios Sustantivos de contenido LTG 2018 - LTG 2020 (DOF 28/12/20) | D33: =COUNTA(F36:F58) -> 1
C35: Criterio | E35: Valoración | F35: Tipo | G35: Observaciones, Recomendaciones y/o Requerimientos
C36: Criterio 1. Ejercicio | D36: =IF(E36="Justificado",0,1) -> 1
C37: Criterio 2. Periodo que se informa (fecha de inicio y fecha de término con el formato día/mes/año) | D37: =IF(E37="Justificado",0,1) -> 1
C38: Criterio 3. Tema | D38: 1
C39: Criterio 4. Periodo de actualización de datos. Por ejemplo, Quincenal, mensual, bimestral, trimestral, anual, sexenal | D39: 1
C40: Criterio 5. Denominación del proyecto | D40: 1
C41: Criterio 6. Hipervínculo al documento en el cual se describan las variables | D41: 1
C42: Criterio 7. Hipervínculo a los documentos técnicos, metodológicos y normativos relacionados con la generación de estadísticas y el manejo de las bases de datos | D42: 1
C43: Criterio 8. Tipos de archivo de las bases de datos. Por ejemplo HTML, XLS, IQY, CSV, XML, SAV | D43: 1
C44: Criterio 9. Hipervínculo a las bases de datos respectivas. Las bases de datos deberán corresponder directamente con el proyecto que se está informando | D44: =IF(E44="Justificado",0,1) -> 1
C45: Criterio 10. Hipervínculo a las series o bancos de datos existentes. Las series o banco de datos deberán corresponder directamente con el tema estadístico que se está informando | D45: =IF(E45="Justificado",0,1) -> 1
C47: Criterios Adjetivos LTG 2018 - LTG 2020 (DOF 28/12/20)
C49: Criterio | E49: Valoración | F49: Tipo | G49: Observaciones, Recomendaciones y/o Requerimientos
C50: Criterio 11. Periodo de actualización de la información: trimestral | D50: =IF(E50="Justificado",0,1) -> 1
C51: Criterio 12. La información publicada deberá estar actualizada al periodo que corresponde de acuerdo con la Tabla de actualización y conservación de la información | D51: 1
C52: Criterio 13. Conservar en el sitio de Internet y a través de la Plataforma Nacional la información de acuerdo con la Tabla de actualización y conservación de la información | D52: 1
C53: Criterio 14. Área(s) responsable(s) que genera(n), posee(n), publica(n) y/o actualiza(n) la información | D53: 1
C54: Criterio 15. Fecha de actualización de la información publicada con el formato día/mes/año | D54: 1
C55: Criterio 16. Fecha de validación de la información publicada con el formato día/mes/año | D55: 1
C56: Criterio 17. Nota. Este criterio se cumple en caso de que sea necesario que el sujeto obligado incluya alguna aclaración relativa a la información publicada y/o explicación por la falta de información | D56: 1
C57: Criterio 18. La información publicada se organiza mediante el formato 30, en el que se incluyen todos los campos especificados en los criterios sustantivos de contenido | D57: 1
C58: Criterio 19. El soporte de la información permite su reutilización | D58: 1
D66: 2017 | E66: 2018
C67: CS | D67: =IF(Aplicabilidad!G41<>"SI","NA",SUM(E19:E28)/SUM(D19:D28)) -> NA | E67: =IF(Aplicabilidad!G41<>"SI","NA",SUM(E36:E45)/SUM(D36:D45)) -> NA
C68: CA | D68: =IF(Aplicabilidad!G41<>"SI","NA",SUM(#REF!)/SUM(#REF!)) -> NA | E68: =IF(Aplicabilidad!G41<>"SI","NA",SUM(E50:E58)/SUM(D50:D58)) -> NA
C69: OBLIGACIÓN | D69: =IF(Aplicabilidad!G41<>"SI","NA",D67*0.6+D68*0.4) -> NA | E69: =IF(Aplicabilidad!G41<>"SI","NA",E67*0.6+E68*0.4) -> NA

Sheet Art 74_XXXI
C1: =IF(Aplicabilidad!E2="","",Aplicabilidad!E2) -> Consejería Jurídica
B3: Códigos de valoración : Cumplió totalmente = 1; Cumplió parcialmente = 0.5; No cumplió = 0; Justificado = Justificado
B5: Art. 74 - Fracción XXXI. Informes de avances y documentos financieros
C7: Fecha de Inicio de la Verificación: | G7: Fecha de Término de la verificación
C8: =IF(Resultados!$C$7="","",Resultados!$C$7) -> 2021-07-07 | D8: 2018-05-25 | G8: =IF(Resultados!G7="","",Resultados!G7) -> 2021-07-08
C10: Criterios Sustantivos | E10: =IF(Aplicabilidad!G42<>"SI","NA",(SUM(E19:E29)+SUM(E37:E56))/(SUM(D19:D29)+SUM(D37:D56))) -> 81%
C11: Criterios Adjetivos | E11: =IF(Aplicabilidad!G42<>"SI","NA",(SUM(E61:E69))/(SUM(D61:D69))) -> 100%
C12: Obligación | E12: =IF(Aplicabilidad!G42<>"SI","NA",E10*0.6+E11*0.4) -> 88.89%
C16: Criterios Sustantivos de contenido 2015-2017 | D16: =COUNTA(F19:F30) -> 0
C18: Criterio | E18: Valoración | F18: Tipo | G18: Observaciones, Recomendaciones y/o Requerimientos
C19: Criterio 1. Ejercicio | D19: =IF(E19="Justificado",0,1) -> 1 | E19: 1
C20: Criterio 2. Periodo que se reporta | D20: =IF(E20="Justificado",0,1) -> 1 | E20: 1
C21: Criterio 3. Clave y denominación del capítulo, concepto y partidas, con base en la clasificación económica del gasto | D21: 1 | E21: 1
C22: Criterio 4. Presupuesto asignado por capítulo, concepto y partidas, con base en la clasificación económica del gasto | D22: 1 | E22: 1
C23: Criterio 5. Presupuesto modificado por capítulo, concepto y partidas, con base en la clasificación económica del gasto | D23: 1 | E23: 1
C24: Criterio 6. Justificación de la modificación del presupuesto, en su caso | D24: 1 | E24: 1
C25: Criterio 7. Presupuesto ejercido por capítulo, concepto y partidas, con base en la clasificación económica del gasto | D25: 1 | E25: 1
C26: Criterio 8. Hipervínculo al informe trimestral de avance programático y presupuestal del sujeto obligado | D26: 1 | E26: 1
C27: Criterio 9. Hipervínculo a los Balances generales (en su caso) del sujeto obligado | D27: 1 | E27: 1
C28: Criterio 10. Hipervínculo al Estado financiero del sujeto obligado | D28: =IF(E28="Justificado",0,1) -> 1 | E28: 1
C29: Criterio 11. Hipervínculo al sitio de Internet de la Secretaría de Hacienda, las secretarías de finanzas o análogas de las Entidades Federativas, o a las tesorerías de los municipios y sus equivalentes en las demarcaciones territoriales del Distrito Federal, en el apartado donde se publica la información sobre el avance programático presupuestal trimestral y acumulado consolidado | D29: =IF(E29="Justificado",0,1) -> 1 | E29: 1
C34: Criterios Sustantivos de contenido LTG 2018 - LTG 2020 (DOF 28/12/20) | D34: =COUNTA(F37:F69) -> 11
C36: Criterio | E36: Valoración | F36: Tipo | G36: Observaciones, Recomendaciones y/o Requerimientos
C37: Criterio 1. Ejercicio | D37: =IF(E37="Justificado",0,1) -> 1 | E37: 1
C38: Criterio 2. Periodo que se informa (fecha de inicio y fecha de término con el formato día/mes/año) | D38: =IF(E38="Justificado",0,1) -> 1 | E38: 1
C39: Criterio 3. Clave del capítulo, con base en la clasificación por objeto del gasto - Criterio modificado DOF 28/12/2020 | D39: 1 | E39: 0.5 | F39: Requerimiento | G39: Existen registros donde no hay información publicada ni nota informativa que justifique la falta de información.
C40: Criterio 4. Clave del concepto, con base en la clasificación por objeto del gasto - Criterio modificado DOF 28/12/2020 | D40: 1 | E40: 0.5 | F40: Requerimiento | G40: Existen registros donde no hay información publicada ni nota informativa que justifique la falta de información.
C41: Criterio 5. Clave de la partida, con base en la clasificación por objeto del gasto - Criterio modificado DOF 28/12/2020 | D41: 1 | E41: 0.5 | F41: Requerimiento | G41: Existen registros donde no hay información publicada ni nota informativa que justifique la falta de información.
C42: Criterio 6.Denominación del capítulo, concepto y partida con base en la clasificación por objeto del gasto - Criterio modificado DOF 28/12/2020 | D42: 1 | E42: 0.5 | F42: Requerimiento | G42: Existen registros donde no hay información publicada ni nota informativa que justifique la falta de información.
C43: Criterio 7. Gasto aprobado por capítulo, concepto y partida, con base en la clasificación por objeto del gasto - Criterio modificado DOF 28/12/2020 | D43: 1 | E43: 0.5 | F43: Requerimiento | G43: Existen registros donde no hay información publicada ni nota informativa que justifique la falta de información.
C44: Criterio 8. Gasto modificado por capítulo, concepto y partidas, con base en la clasificación por objeto del gasto - Criterio modificado DOF 28/12/2020 | D44: 1 | E44: 0.5 | F44: Requerimiento | G44: Existen registros donde no hay información publicada ni nota informativa que justifique la falta de información.
C45: Criterio 9. Gasto comprometido por capítulo, concepto y partidas, con base en la clasificación por objeto del gasto - Criterio modificado DOF 28/12/2020 | D45: 1 | E45: 0.5 | F45: Requerimiento | G45: Existen registros donde no hay información publicada ni nota informativa que justifique la falta de información.
C46: Criterio 10. Gasto devengado por capítulo, concepto y partidas, con base en la clasificación por objeto del gasto - Criterio modificado DOF 28/12/2020 | D46: 1 | E46: 0.5 | F46: Requerimiento | G46: Existen registros donde no hay información publicada ni nota informativa que justifique la falta de información.
C47: Criterio 11. Gasto ejercido por capítulo, concepto y partidas, con base en la clasificación por objeto del gasto - Criterio modificado DOF 28/12/2020 | D47: 1 | E47: 0.5 | F47: Requerimiento | G47: Existen registros donde no hay información publicada ni nota informativa que justifique la falta de información.
C48: Criterio 12. Gasto pagado por capítulo, concepto y partidas, con base en la clasificación por objeto del gasto - Criterio modificado DOF 28/12/2020 | D48: 1 | E48: 0.5 | F48: Requerimiento | G48: Existen registros donde no hay información publicada ni nota informativa que justifique la falta de información.
C49: Criterio 13. Justificación de la modificación del presupuesto, en su caso | D49: 1 | E49: 1
C50: Criterio 14. Hipervínculo al Estado analítico del ejercicio del Presupuesto de Egresos | D50: 1 | E50: 1
C51: Criterio 15. Ejercicio | D51: 1 | E51: 1
C52: Criterio 16. Periodo que se informa (fecha de inicio y fecha de término con el formato día/mes/año) | D52: 1 | E52: 1
C53: Criterio 17. Tipo de documento financiero (catálogo): Contable/Presupuestal/Programático | D53: 0 | E53: Justificado
